{"text_format":"1","workbook":"xlsx","n_sheets":9,"sheets":["Uvod","Limit","Splatkovy_kalendar","Zadost","Prohlaseni","Zprostredkovani","Data_export","Changelog","pomocne"],"not_rendered":{"charts":0,"images":23,"macros":1,"external_links":0,"defined_names":12,"comments":1,"pivot_tables":0},"unopened":[],"bounds":{"document_bytes":16777216,"sheet_cells":100000,"rows_first":2000,"rows_last":500,"rows_between":2000,"halvings":0,"cell_chars":16384,"cell_head_chars":4096},"cells_cut":0,"cells_raw":0,"read":"whole","date_system":"1900"}

{"sheet":"Uvod","index":0,"n_rows":40,"n_cols":5,"rows_kept":40,"cut":false,"hidden":false,"merged":[[30,2,32,13],[25,2,25,13],[0,0,1,15],[5,2,6,13],[10,3,10,13],[9,3,9,13],[8,2,8,13],[26,4,26,13],[27,4,27,13],[12,2,12,13],[13,3,13,13],[14,3,14,13],[16,2,16,13],[28,4,28,13],[34,2,34,13],[35,3,35,13],[36,3,36,13],[37,3,37,13],[39,2,39,13]]}
["KB  KALKULAČKA SPOTŘEBITELSKÝCH ÚVĚRŮ"]
[]
[]
[]
[]
[null,null,"V KB kalkulačce SÚ je možné modelovat různé varianty výše úvěru a splátek, ověřit bonitu žadatele (a zjistit maximální výši úvěru) a vytvořit dokument Žádost o spotřebitelský úvěr. Pro správné fungování kalkulačky viz. Důležité informace níže."]
[]
[]
[null,null,"Modelace parametrů úvěru\n\n"]
[null,null,null,"• Klikněte na \"Modelace / Vytvoření žádosti o úvěr\"."]
[null,null,null,"• Do odstavce Modelace úvěru zadejte požadované údaje. Splátkový kalendář si zobrazíte kliknutím na  \"Vypočítej splátkový kalendář\"."]
[]
[null,null,"Ověření bonity žadatele\n\n"]
[null,null,null,"• Po modelaci úvěru vyplňte příjmy a výdaje žadatele do odstavců Příjmy žadatele, Výdaje domácnosti a informace o jiných úvěrech žadatele ."]
[null,null,null,"• Klikněte na \"Ověřit bonitu žadatele\" ve spodní části obrazovky."]
[]
[null,null,"Vytvoření dokumentu Žádost o spotřebitelský úvěr\n\n"]
[null,null,null,"• Po modelaci úvěru a vyplnění údajů o příjmech a výdajích žadatele pokračujte dále kliknutím na \"Pokračovat k Žádosti o úvěr\"."]
[null,null,null,"• Vyplňte požadované informace o žadateli a pokračujte dále kliknutím na \"Pokračovat k Žádosti o úvěr\" a následně i jeho prohlášení."]
[null,null,null,"• Vyplňte požadované informace o Vás jako zprostředkovateli žádosti o úvěr. Kliknutím na  \"Vytvořit Žádost o úvěr\" se automaticky vygeneruje"]
[null,null,null,null,"dokument Žádost o spotřebitelský úvěr."]
[]
[]
[]
[]
[null,null,"Užitečné odkazy\n\n"]
[null,null,null,"•","Metodika spotřebitelských úvěrů "]
[null,null,null,"•","Dokumentace a formuláře potřebné pro zpracování Žádosti o spotřebitelský úvěr "]
[null,null,null,"•","Kalkulačka daňového přiznání"]
[]
[null,null,"\"Zobrazené výpočty bonity klienta, splátek, RPSN apod. jsou pouze orientační. Přesné parametry úvěru (úroková sazba, RPSN, výše měsíční splátky a celková splatná částka) budou upřesněny po zpracování žádosti o úvěr na pobočce KB v závislosti na výsledcích interního posouzení úvěruschopnosti klienta a až do okamžiku uzavření smluvního vztahu nemohou být považovány za garantované.\""]
[]
[]
[]
[null,null,"Důležité informace pro používání KB kalkulačky spotřebitelských úvěrů:"]
[null,null,null,"• Doporučený operační systém: WIN10 a WIN8; aplikace není podporována operačními systémy společnosti  Apple."]
[null,null,null,"• Zachování názvů obou souborů (KBSUKALK.dot a ZADOSTSU.xlsm) je nutné pro funkčnost kalkulačky."]
[null,null,null,"• Stejně nutné je i uložení obou soborů (KBSUKALK.dot a ZADOSTSU.xlsm) do jedné složky."]
[]
[null,null,"Aktuální verze aplikace: 1.6\nVydáno: 27.03.2024"]

{"sheet":"Limit","index":1,"n_rows":66,"n_cols":13,"rows_kept":66,"cut":false,"hidden":false,"merged":[[0,0,1,14],[2,0,2,14]]}
["KB  KALKULAČKA SPOTŘEBITELSKÝCH ÚVĚRŮ"]
[]
["MODELACE ÚVĚRU A BONITA ŽADATEL > OSOBNÍ ÚDAJE  > PROHLÁŠENÍ ŽADATELE O VZTAHU KE KOMERČNÍ BANCE A JINÝCH INFORMACÍCH > INFORMACE O ZPROSTŘEDKOVATELI"]
[]
[]
[null,null,"Modelace úvěru"]
[]
[null,null,"Úvěrový produkt",null,null,"Celková výše úvěru",null,null,"Doba splácení (roky/let)",null,null,"Úroková sazba (pouze orientační)"]
[null,null,null,null,null,null,"Kč",null,null,"roky/let",null,{"$f":"pomocne!U3","v":""}]
[]
[null,null,"Počet žadatelů",null,null,"Zajištění úvěru",null,null,"Měsíční splátka"]
[null,null,null,null,null,null,null,null,{"$f":"IFERROR(pomocne!U17,\"\")","v":""},"Kč"]
[]
[]
[]
[null,null,"Příjmy hlavního žadatele"]
[]
[null,null,"Průměrný čistý měsíční příjem ze závislé činnosti dle potvrzení o příjmu",null,null,"Čistý roční příjem z podnikatelské činnosti",null,null,"Ostatní pravidelné měsíční příjmy"]
[null,null,null,"Kč",null,null,"Kč",null,null,"Kč"]
[]
[null,null,"Příjmy spolužadatele"]
[]
[null,null,"Průměrný čistý měsíční příjem ze závislé činnosti dle potvrzení o příjmu",null,null,"Čistý roční příjem z podnikatelské činnosti",null,null,"Ostatní pravidelné měsíční příjmy"]
[null,null,null,"Kč",null,null,"Kč",null,null,"Kč"]
[]
[]
[]
[null,null,"Výdaje domácnosti"]
[]
[null,null,"Výdaje na bydlení bez hypotéky",null,null,"Pojištění",null,null,"Spoření",null,null,"Alimenty"]
[null,null,null,"Kč",null,null,"Kč",null,null,"Kč",null,null,"Kč"]
[]
[null,null,"Ostatní pravidelné výdaje",null,null,"Počet vyživovaných dětí do 10 let",null,null,"Počet vyživovaných dětí nad 10 let"]
[null,null,null,"Kč"]
[]
[]
[null,null,null,null,null,null,null,null,null,null,null," "]
[null,null,"Úvěrové produkty v Komerční bance"]
[]
[null,null,"Celková výše zajištěných úvěrů (hypotéky, atd.)",null,null,"Celková výše měsíčních splátek zajištěných úvěrů ",null,null,"Celková výše nezajištěných úvěrů",null,null,"Celková výše měsíčních splátek nezajištěných úvěrů"]
[null,null,null,"Kč",null,null,"Kč",null,null,"Kč",null,null,"Kč"]
[]
[null,null,"z toho konsolidováno",null,null,"z toho konsolidováno",null,null,"z toho konsolidováno",null,null,"z toho konsolidováno"]
[null,null,null,"Kč",null,null,"Kč",null,null,"Kč",null,null,"Kč"]
[]
[null,null,"Celková výše limitů kreditních karet",null,null,"Celková výše kontokorentů a povolených debetů "]
[null,null,null,"Kč",null,null,"Kč"]
[]
[null,null,"z toho konsolidováno",null,null,"z toho konsolidováno"]
[null,null,null,"Kč",null,null,"Kč"]
[]
[]
[]
[null,null,"Úvěrové produkty mimo KB"]
[]
[null,null,"Celková výše zajištěných úvěrů (hypotéky, atd.)",null,null,"Celková výše měsíčních splátek zajištěných úvěrů",null,null,"Celková výše nezajištěných úvěrů",null,null,"Celková výše měsíčních splátek nezajištěných úvěrů"]
[null,null,null,"Kč",null,null,"Kč",null,null,"Kč",null,null,"Kč"]
[]
[null,null,"z toho konsolidováno",null,null,"z toho konsolidováno",null,null,"z toho konsolidováno",null,null,"z toho konsolidováno"]
[null,null,null,"Kč",null,null,"Kč",null,null,"Kč",null,null,"Kč"]
[]
[null,null,"Celková výše limitů kreditních karet",null,null,"Celková výše kontokorentů a povolených debetů "]
[null,null,null,"Kč",null,null,"Kč"]
[]
[null,null,"z toho konsolidováno",null,null,"z toho konsolidováno"]
[null,null,null,"Kč",null,null,"Kč"]

{"sheet":"Splatkovy_kalendar","index":2,"n_rows":366,"n_cols":15,"rows_kept":366,"cut":false,"hidden":false,"merged":[[0,0,1,15],[2,0,2,15]]}
["KB  KALKULAČKA SPOTŘEBITELSKÝCH ÚVĚRŮ"]
[]
[]
[]
[null,null,"Souhrnné informace o úvěru",null,null,null,null,null,"Platba","Datum splátky","Výše splátky","Z toho jistina","Z toho úrok","Zůstatek jistiny"]
[]
[null,null,{"$f":"pomocne!T2","v":"Celková výše úvěru"},{"$f":"Limit!F9","v":0},"Kč",null,null,null,1,"20.04.2020",423.45636666666672,0,423.45636666666672,444444,""]
[null,null,"Měsíční splátka",{"$f":"IFERROR(pomocne!U17,\"\")","v":""},"Kč",null,null,null,2,"2020-05-20",8493,6678.1869999999999,1814.8130000000001,437765.81300000002,""]
[null,null,{"$f":"pomocne!T3","v":"Úrok "},{"$f":"pomocne!U3","v":""},"p.a.",null,null,null,3,"2020-06-20",8493,6705.4562635833336,1787.5437364166667,431060.3567364167,""]
[null,null,{"$f":"pomocne!AG18","v":"RPSN "},{"$f":"ROUNDUP(pomocne!AH18,4)","v":5.0700000000000002E-2},null,null,null,null,4,"2020-07-20",8493,6732.8368766596313,1760.1631233403684,424327.51985975704,""]
[null,null,{"$f":"pomocne!T9","v":"Celková splatná částka"},{"$f":"pomocne!AH16","v":490},"Kč",null,null,null,5,"2020-08-20",8493,6760.329293905992,1732.670706094008,417567.19056585105,""]
[null,null,{"$f":"pomocne!AG12","v":"Poplatek za zpracování žádosti"},{"$f":"pomocne!AH12","v":490},"Kč",null,null,null,6,"2020-09-20",8493,6787.9339718561077,1705.066028143892,410779.25659399497,""]
[null,null,{"$f":"pomocne!AG13","v":"Pravidelné měsiční poplatky"},{"$f":"pomocne!AH13","v":0},"Kč",null,null,null,7,"2020-10-20",8493,6815.6513689078538,1677.3486310921462,403963.60522508714,""]
[null,null,{"$f":"pomocne!T4","v":"Počet splátek"},{"$f":"pomocne!U4","v":0},"měs.",null,null,null,8,"2020-11-20",8493,6843.4819453308937,1649.518054669106,397120.12327975623,""]
[null,null,{"$f":"pomocne!T5","v":"Datum podpisu smlouvy"},{"$f":"pomocne!U5","v":"2024-06-10"},null,null,null,null,9,"2020-12-20",8493,6871.4261632743282,1621.5738367256715,390248.6971164819,""]
[null,null,{"$f":"pomocne!T8","v":"Den pro splácení"},{"$f":"pomocne!U8","v":"20."},null,null,null,null,10,"2021-01-20",8493,6899.4844867743659,1593.5155132256343,383349.21262970753,""]
[null,null,{"$f":"pomocne!T10","v":"Datum první úrokové splátky"},{"$f":"pomocne!U10","v":"20.06.2024"},null,null,null,null,11,"2021-02-20",8493,6927.6573817620274,1565.3426182379726,376421.55524794548,""]
[null,null,{"$f":"pomocne!T12","v":"Datum první anuitní splátky"},{"$f":"pomocne!U12","v":"2024-07-20"},null,null,null,null,12,"2021-03-20",8493,6955.945316070889,1537.0546839291108,369465.60993187461,""]
[null,null,{"$f":"pomocne!AG9","v":"Datum poslední splátky"},{"$f":"pomocne!AH9","v":"2024-06-10"},null,null,null,null,13,"2021-04-20",8493,6984.3487594448452,1508.6512405551548,362481.26117242977,""]
[null,null,null,null,null,null,null,null,14,"2021-05-20",8493,7012.868183545912,1480.1318164540883,355468.39298888389,""]
[null,null,null,null,null,null,null,null,15,"2021-06-20",8493,7041.5040619620577,1451.4959380379426,348426.88892692182,""]
[null,null,null,null,null,null,null,null,16,"2021-07-20",8493,7070.2568702150693,1422.7431297849307,341356.63205670676,""]
[null,null,null,null,null,null,null,null,17,"2021-08-20",8493,7099.1270857684476,1393.8729142315526,334257.50497093832,""]
[null,null,null,null,null,null,null,null,18,"2021-09-20",8493,7128.1151880353354,1364.8848119646648,327129.38978290296,""]
[null,null,null,null,null,null,null,null,19,"2021-10-20",8493,7157.2216583864792,1335.7783416135205,319972.16812451649,""]
[null,null,null,null,null,null,null,null,20,"2021-11-20",8493,7186.4469801582245,1306.5530198417757,312785.72114435828,""]
[null,null,null,null,null,null,null,null,21,"2021-12-20",8493,7215.7916386605375,1277.208361339463,305569.92950569774,""]
[null,null,null,null,null,null,null,null,22,"2022-01-20",8493,7245.256121185068,1247.7438788149325,298324.67338451266,""]
[null,null,null,null,null,null,null,null,23,"2022-02-20",8493,7274.84091701324,1218.15908298676,291049.83246749942,""]
[null,null,null,null,null,null,null,null,24,"2022-03-20",8493,7304.5465174243773,1188.4534825756227,283745.28595007502,""]
[null,null,null,null,null,null,null,null,25,"2022-04-20",8493,7334.3734157038598,1158.6265842961398,276410.91253437113,""]
[null,null,null,null,null,null,null,null,26,"2022-05-20",8493,7364.3221071513181,1128.6778928486822,269046.59042721981,""]
[null,null,null,null,null,null,null,null,27,"2022-06-20",8493,7394.3930890888523,1098.6069109111475,261652.19733813097,""]
[null,null,null,null,null,null,null,null,28,"2022-07-20",8493,7424.5868608692981,1068.4131391307014,254227.61047726165,""]
[null,null,null,null,null,null,null,null,29,"2022-08-20",8493,7454.9039238845144,1038.0960761154852,246772.70655337715,""]
[null,null,null,null,null,null,null,null,30,"2022-09-20",8493,7485.34478157371,1007.65521842629,239287.36177180344,""]
[null,null,null,null,null,null,null,null,31,"2022-10-20",8493,7515.9099394318027,977.09006056819737,231771.45183237165,""]
[null,null,null,null,null,null,null,null,32,"2022-11-20",8493,7546.5999050178161,946.40009498218433,224224.85192735383,""]
[null,null,null,null,null,null,null,null,33,"2022-12-20",8493,7577.4151879633055,915.58481203669487,216647.43673939051,""]
[null,null,null,null,null,null,null,null,34,"2023-01-20",8493,7608.3562999808219,884.64370001917803,209039.08043940968,""]
[null,null,null,null,null,null,null,null,35,"2023-02-20",8493,7639.4237548724104,853.57624512758957,201399.65668453727,""]
[null,null,null,null,null,null,null,null,36,"2023-03-20",8493,7670.6180685381396,822.38193146186052,193729.03861599913,""]
[null,null,null,null,null,null,null,null,37,"2023-04-20",8493,7701.9397589846703,791.06024101532978,186027.09885701447,""]
[null,null,null,null,null,null,null,null,38,"2023-05-20",8493,7733.3893463338572,759.61065366614241,178293.70951068061,""]
[null,null,null,null,null,null,null,null,39,"2023-06-20",8493,7764.967352831387,728.03264716861258,170528.74215784922,""]
[null,null,null,null,null,null,null,null,40,"2023-07-20",8493,7796.6743028554492,696.3256971445511,162732.06785499377,""]
[null,null,null,null,null,null,null,null,41,"2023-08-20",8493,7828.5107229254418,664.48927707455789,154903.55713206832,""]
[null,null,null,null,null,null,null,null,42,"2023-09-20",8493,7860.4771417107213,632.52285828927904,147043.0799903576,""]
[null,null,null,null,null,null,null,null,43,"2023-10-20",8493,7892.574090039373,600.42590996062688,139150.50590031821,""]
[null,null,null,null,null,null,null,null,44,"2023-11-20",8493,7924.8021009070344,568.19789909296605,131225.70379941119,""]
[null,null,null,null,null,null,null,null,45,"2023-12-20",8493,7957.1617094857374,535.83829051426244,123268.54208992545,""]
[null,null,null,null,null,null,null,null,46,"2024-01-20",8493,7989.6534531328043,503.34654686719563,115278.88863679265,""]
[null,null,null,null,null,null,null,null,47,"2024-02-20",8493,8022.2778713997632,470.72212860023666,107256.61076539288,""]
[null,null,null,null,null,null,null,null,48,"2024-03-20",8493,8055.0355060413121,437.96449395868763,99201.575259351564,""]
[null,null,null,null,null,null,null,null,49,"2024-04-20",8493,8087.9269010243142,405.07309897568558,91113.648358327249,""]
[null,null,null,null,null,null,null,null,50,"2024-05-20",8493,8120.9526025368305,372.0473974631696,82992.695755790424,""]
[null,null,null,null,null,null,null,null,51,"2024-06-20",8493,8154.1131589971892,338.88684100281091,74838.582596793232,""]
[null,null,null,null,null,null,null,null,52,"2024-07-20",8493,8187.4091210630941,305.59087893690571,66651.173475730146,""]
[null,null,null,null,null,null,null,null,53,"2024-08-20",8493,8220.8410416407678,272.15895835923146,58430.332434089374,""]
[null,null,null,null,null,null,null,null,54,"2024-09-20",8493,8254.4094758941355,238.59052410586494,50175.922958195239,""]
[null,null,null,null,null,null,null,null,55,"2024-10-20",8493,8288.1149812540352,204.88501874596389,41887.8079769412,""]
[null,null,null,null,null,null,null,null,56,"2024-11-20",8493,8321.9581174274899,171.04188257250993,33565.849859513706,""]
[null,null,null,null,null,null,null,null,57,"2024-12-20",8493,8355.9394464069865,137.0605535930143,25209.910413106722,""]
[null,null,null,null,null,null,null,null,58,"2025-01-20",8493,8390.0595324798142,102.94046752018579,16819.850880626909,""]
[null,null,null,null,null,null,null,null,59,"2025-02-20",8493,8424.3189422374398,68.681057762559888,8395.5319383894694,""]
[null,null,null,null,null,null,null,null,60,"2025-03-20",8429.8136938045591,8395.5319383894694,34.281755415090338,0,""]
[null,null,null,null,null,null,null,null,"","","","","","",""]
[null,null,null,null,null,null,null,null,"","","","","","",""]
[null,null,null,null,null,null,null,null,"","","","","","",""]
[null,null,null,null,null,null,null,null,"","","","","","",""]
[null,null,null,null,null,null,null,null,"","","","","","",""]
[null,null,null,null,null,null,null,null,"","","","","","",""]
[null,null,null,null,null,null,null,null,"","","","","","",""]
[null,null,null,null,null,null,null,null,"","","","","","",""]
[null,null,null,null,null,null,null,null,"","","","","","",""]
[null,null,null,null,null,null,null,null,"","","","","","",""]
[null,null,null,null,null,null,null,null,"","","","","","",""]
[null,null,null,null,null,null,null,null,"","","","","","",""]
[null,null,null,null,null,null,null,null,"","","","","","",""]
[null,null,null,null,null,null,null,null,"","","","","","",""]
[null,null,null,null,null,null,null,null,"","","","","","",""]
[null,null,null,null,null,null,null,null,"","","","","","",""]
[null,null,null,null,null,null,null,null,"","","","","","",""]
[null,null,null,null,null,null,null,null,"","","","","","",""]
[null,null,null,null,null,null,null,null,"","","","","","",""]
[null,null,null,null,null,null,null,null,"","","","","","",""]
[null,null,null,null,null,null,null,null,"","","","","","",""]
[null,null,null,null,null,null,null,null,"","","","","","",""]
[null,null,null,null,null,null,null,null,"","","","","","",""]
[null,null,null,null,null,null,null,null,"","","","","","",""]
[null,null,null,null,null,null,null,null,"","","","","","",""]
[null,null,null,null,null,null,null,null,"","","","","","",""]
[null,null,null,null,null,null,null,null,"","","","","","",""]
[null,null,null,null,null,null,null,null,"","","","","","",""]
[null,null,null,null,null,null,null,null,"","","","","","",""]
[null,null,null,null,null,null,null,null,"","","","","","",""]
[null,null,null,null,null,null,null,null,"","","","","","",""]
[null,null,null,null,null,null,null,null,"","","","","","",""]
[null,null,null,null,null,null,null,null,"","","","","","",""]
[null,null,null,null,null,null,null,null,"","","","","","",""]
[null,null,null,null,null,null,null,null,"","","","","","",""]
[null,null,null,null,null,null,null,null,"","","","","","",""]
[null,null,null,null,null,null,null,null,"","","","","","",""]
[null,null,null,null,null,null,null,null,"","","","","","",""]
[null,null,null,null,null,null,null,null,"","","","","","",""]
[null,null,null,null,null,null,null,null,"","","","","","",""]
[null,null,null,null,null,null,null,null,"","","","","","",""]
[null,null,null,null,null,null,null,null,"","","","","","",""]
[null,null,null,null,null,null,null,null,"","","","","","",""]
[null,null,null,null,null,null,null,null,"","","","","","",""]
[null,null,null,null,null,null,null,null,"","","","","","",""]
[null,null,null,null,null,null,null,null,"","","","","","",""]
[null,null,null,null,null,null,null,null,"","","","","","",""]
[null,null,null,null,null,null,null,null,"","","","","","",""]
[null,null,null,null,null,null,null,null,"","","","","","",""]
[null,null,null,null,null,null,null,null,"","","","","","",""]
[null,null,null,null,null,null,null,null,"","","","","","",""]
[null,null,null,null,null,null,null,null,"","","","","","",""]
[null,null,null,null,null,null,null,null,"","","","","","",""]
[null,null,null,null,null,null,null,null,"","","","","","",""]
[null,null,null,null,null,null,null,null,"","","","","","",""]
[null,null,null,null,null,null,null,null,"","","","","","",""]
[null,null,null,null,null,null,null,null,"","","","","","",""]
[null,null,null,null,null,null,null,null,"","","","","","",""]
[null,null,null,null,null,null,null,null,"","","","","","",""]
[null,null,null,null,null,null,null,null,"","","","","","",""]
[null,null,null,null,null,null,null,null,"","","","","",""]
[null,null,null,null,null,null,null,null,"","","","","",""]
[null,null,null,null,null,null,null,null,"","","","","",""]
[null,null,null,null,null,null,null,null,"","","","","",""]
[null,null,null,null,null,null,null,null,"","","","","",""]
[null,null,null,null,null,null,null,null,"","","","","",""]
[null,null,null,null,null,null,null,null,"","","","","",""]
[null,null,null,null,null,null,null,null,"","","","","",""]
[null,null,null,null,null,null,null,null,"","","","","",""]
[null,null,null,null,null,null,null,null,"","","","","",""]
[null,null,null,null,null,null,null,null,"","","","","",""]
[null,null,null,null,null,null,null,null,"","","","","",""]
[null,null,null,null,null,null,null,null,"","","","","",""]
[null,null,null,null,null,null,null,null,"","","","","",""]
[null,null,null,null,null,null,null,null,"","","","","",""]
[null,null,null,null,null,null,null,null,"","","","","",""]
[null,null,null,null,null,null,null,null,"","","","","",""]
[null,null,null,null,null,null,null,null,"","","","","",""]
[null,null,null,null,null,null,null,null,"","","","","",""]
[null,null,null,null,null,null,null,null,"","","","","",""]
[null,null,null,null,null,null,null,null,"","","","","",""]
[null,null,null,null,null,null,null,null,"","","","","",""]
[null,null,null,null,null,null,null,null,"","","","","",""]
[null,null,null,null,null,null,null,null,"","","","","",""]
[null,null,null,null,null,null,null,null,"","","","","",""]
[null,null,null,null,null,null,null,null,"","","","","",""]
[null,null,null,null,null,null,null,null,"","","","","",""]
[null,null,null,null,null,null,null,null,"","","","","",""]
[null,null,null,null,null,null,null,null,"","","","","",""]
[null,null,null,null,null,null,null,null,"","","","","",""]
[null,null,null,null,null,null,null,null,"","","","","",""]
[null,null,null,null,null,null,null,null,"","","","","",""]
[null,null,null,null,null,null,null,null,"","","","","",""]
[null,null,null,null,null,null,null,null,"","","","","",""]
[null,null,null,null,null,null,null,null,"","","","","",""]
[null,null,null,null,null,null,null,null,"","","","","",""]
[null,null,null,null,null,null,null,null,"","","","","",""]
[null,null,null,null,null,null,null,null,"","","","","",""]
[null,null,null,null,null,null,null,null,"","","","","",""]
[null,null,null,null,null,null,null,null,"","","","","",""]
[null,null,null,null,null,null,null,null,"","","","","",""]
[null,null,null,null,null,null,null,null,"","","","","",""]
[null,null,null,null,null,null,null,null,"","","","","",""]
[null,null,null,null,null,null,null,null,"","","","","",""]
[null,null,null,null,null,null,null,null,"","","","","",""]
[null,null,null,null,null,null,null,null,"","","","","",""]
[null,null,null,null,null,null,null,null,"","","","","",""]
[null,null,null,null,null,null,null,null,"","","","","",""]
[null,null,null,null,null,null,null,null,"","","","","",""]
[null,null,null,null,null,null,null,null,"","","","","",""]
[null,null,null,null,null,null,null,null,"","","","","",""]
[null,null,null,null,null,null,null,null,"","","","","",""]
[null,null,null,null,null,null,null,null,"","","","","",""]
[null,null,null,null,null,null,null,null,"","","","","",""]
[null,null,null,null,null,null,null,null,"","","","","",""]
[null,null,null,null,null,null,null,null,"","","","","",""]
[null,null,null,null,null,null,null,null,"","","","","",""]
[null,null,null,null,null,null,null,null,"","","","","",""]
[null,null,null,null,null,null,null,null,"","","","","",""]
[null,null,null,null,null,null,null,null,"","","","","",""]
[null,null,null,null,null,null,null,null,"","","","","",""]
[null,null,null,null,null,null,null,null,"","","","","",""]
[null,null,null,null,null,null,null,null,"","","","","",""]
[null,null,null,null,null,null,null,null,"","","","","",""]
[null,null,null,null,null,null,null,null,"","","","","",""]
[null,null,null,null,null,null,null,null,"","","","","",""]
[null,null,null,null,null,null,null,null,"","","","","",""]
[null,null,null,null,null,null,null,null,"","","","","",""]
[null,null,null,null,null,null,null,null,"","","","","",""]
[null,null,null,null,null,null,null,null,"","","","","",""]
[null,null,null,null,null,null,null,null,"","","","","",""]
[null,null,null,null,null,null,null,null,"","","","","",""]
[null,null,null,null,null,null,null,null,"","","","","",""]
[null,null,null,null,null,null,null,null,"","","","","",""]
[null,null,null,null,null,null,null,null,"","","","","",""]
[null,null,null,null,null,null,null,null,"","","","","",""]
[null,null,null,null,null,null,null,null,"","","","","",""]
[null,null,null,null,null,null,null,null,"","","","","",""]
[null,null,null,null,null,null,null,null,"","","","","",""]
[null,null,null,null,null,null,null,null,"","","","","",""]
[null,null,null,null,null,null,null,null,"","","","","",""]
[null,null,null,null,null,null,null,null,"","","","","",""]
[null,null,null,null,null,null,null,null,"","","","","",""]
[null,null,null,null,null,null,null,null,"","","","","",""]
[null,null,null,null,null,null,null,null,"","","","","",""]
[null,null,null,null,null,null,null,null,"","","","","",""]
[null,null,null,null,null,null,null,null,"","","","","",""]
[null,null,null,null,null,null,null,null,"","","","","",""]
[null,null,null,null,null,null,null,null,"","","","","",""]
[null,null,null,null,null,null,null,null,"","","","","",""]
[null,null,null,null,null,null,null,null,"","","","","",""]
[null,null,null,null,null,null,null,null,"","","","","",""]
[null,null,null,null,null,null,null,null,"","","","","",""]
[null,null,null,null,null,null,null,null,"","","","","",""]
[null,null,null,null,null,null,null,null,"","","","","",""]
[null,null,null,null,null,null,null,null,"","","","","",""]
[null,null,null,null,null,null,null,null,"","","","","",""]
[null,null,null,null,null,null,null,null,"","","","","",""]
[null,null,null,null,null,null,null,null,"","","","","",""]
[null,null,null,null,null,null,null,null,"","","","","",""]
[null,null,null,null,null,null,null,null,"","","","","",""]
[null,null,null,null,null,null,null,null,"","","","","",""]
[null,null,null,null,null,null,null,null,"","","","","",""]
[null,null,null,null,null,null,null,null,"","","","","",""]
[null,null,null,null,null,null,null,null,"","","","","",""]
[null,null,null,null,null,null,null,null,"","","","","",""]
[null,null,null,null,null,null,null,null,"","","","","",""]
[null,null,null,null,null,null,null,null,"","","","","",""]
[null,null,null,null,null,null,null,null,"","","","","",""]
[null,null,null,null,null,null,null,null,"","","","","",""]
[null,null,null,null,null,null,null,null,"","","","","",""]
[null,null,null,null,null,null,null,null,"","","","","",""]
[null,null,null,null,null,null,null,null,"","","","","",""]
[null,null,null,null,null,null,null,null,"","","","","",""]
[null,null,null,null,null,null,null,null,"","","","","",""]
[null,null,null,null,null,null,null,null,"","","","","",""]
[null,null,null,null,null,null,null,null,"","","","","",""]
[null,null,null,null,null,null,null,null,"","","","","",""]
[null,null,null,null,null,null,null,null,"","","","","",""]
[null,null,null,null,null,null,null,null,"","","","","",""]
[null,null,null,null,null,null,null,null,"","","","","",""]
[null,null,null,null,null,null,null,null,"","","","","",""]
[null,null,null,null,null,null,null,null,"","","","","",""]
[null,null,null,null,null,null,null,null,"","","","","",""]
[null,null,null,null,null,null,null,null,"","","","","",""]
[null,null,null,null,null,null,null,null,"","","","","",""]
[null,null,null,null,null,null,null,null,"","","","","",""]
[null,null,null,null,null,null,null,null,"","","","","",""]
[null,null,null,null,null,null,null,null,"","","","","",""]
[null,null,null,null,null,null,null,null,"","","","","",""]
[null,null,null,null,null,null,null,null,"","","","","",""]
[null,null,null,null,null,null,null,null,"","","","","",""]
[null,null,null,null,null,null,null,null,"","","","","",""]
[null,null,null,null,null,null,null,null,"","","","","",""]
[null,null,null,null,null,null,null,null,"","","","","",""]
[null,null,null,null,null,null,null,null,"","","","","",""]
[null,null,null,null,null,null,null,null,"","","","","",""]
[null,null,null,null,null,null,null,null,"","","","","",""]
[null,null,null,null,null,null,null,null,"","","","","",""]
[null,null,null,null,null,null,null,null,"","","","","",""]
[null,null,null,null,null,null,null,null,"","","","","",""]
[null,null,null,null,null,null,null,null,"","","","","",""]
[null,null,null,null,null,null,null,null,"","","","","",""]
[null,null,null,null,null,null,null,null,"","","","","",""]
[null,null,null,null,null,null,null,null,"","","","","",""]
[null,null,null,null,null,null,null,null,"","","","","",""]
[null,null,null,null,null,null,null,null,"","","","","",""]
[null,null,null,null,null,null,null,null,"","","","","",""]
[null,null,null,null,null,null,null,null,"","","","","",""]
[null,null,null,null,null,null,null,null,"","","","","",""]
[null,null,null,null,null,null,null,null,"","","","","",""]
[null,null,null,null,null,null,null,null,"","","","","",""]
[null,null,null,null,null,null,null,null,"","","","","",""]
[null,null,null,null,null,null,null,null,"","","","","",""]
[null,null,null,null,null,null,null,null,"","","","","",""]
[null,null,null,null,null,null,null,null,"","","","","",""]
[null,null,null,null,null,null,null,null,"","","","","",""]
[null,null,null,null,null,null,null,null,"","","","","",""]
[null,null,null,null,null,null,null,null,"","","","","",""]
[null,null,null,null,null,null,null,null,"","","","","",""]
[null,null,null,null,null,null,null,null,"","","","","",""]
[null,null,null,null,null,null,null,null,"","","","","",""]
[null,null,null,null,null,null,null,null,"","","","","",""]
[null,null,null,null,null,null,null,null,"","","","","",""]
[null,null,null,null,null,null,null,null,"","","","","",""]
[null,null,null,null,null,null,null,null,"","","","","",""]
[null,null,null,null,null,null,null,null,"","","","","",""]
[null,null,null,null,null,null,null,null,"","","","","",""]
[null,null,null,null,null,null,null,null,"","","","","",""]
[null,null,null,null,null,null,null,null,"","","","","",""]
[null,null,null,null,null,null,null,null,"","","","","",""]
[null,null,null,null,null,null,null,null,"","","","","",""]
[null,null,null,null,null,null,null,null,"","","","","",""]
[null,null,null,null,null,null,null,null,"","","","","",""]
[null,null,null,null,null,null,null,null,"","","","","",""]
[null,null,null,null,null,null,null,null,"","","","","",""]
[null,null,null,null,null,null,null,null,"","","","","",""]
[null,null,null,null,null,null,null,null,"","","","","",""]
[null,null,null,null,null,null,null,null,"","","","","",""]
[null,null,null,null,null,null,null,null,"","","","","",""]
[null,null,null,null,null,null,null,null,"","","","","",""]
[null,null,null,null,null,null,null,null,"","","","","",""]
[null,null,null,null,null,null,null,null,"","","","","",""]
[null,null,null,null,null,null,null,null,"","","","","",""]
[null,null,null,null,null,null,null,null,"","","","","",""]
[null,null,null,null,null,null,null,null,"","","","","",""]
[null,null,null,null,null,null,null,null,"","","","","",""]
[null,null,null,null,null,null,null,null,"","","","","",""]
[null,null,null,null,null,null,null,null,"","","","","",""]
[null,null,null,null,null,null,null,null,"","","","","",""]
[null,null,null,null,null,null,null,null,"","","","","",""]
[null,null,null,null,null,null,null,null,"","","","","",""]
[null,null,null,null,null,null,null,null,"","","","","",""]
[null,null,null,null,null,null,null,null,"","","","","",""]
[null,null,null,null,null,null,null,null,"","","","","",""]
[null,null,null,null,null,null,null,null,"","","","","",""]
[null,null,null,null,null,null,null,null,"","","","","",""]
[null,null,null,null,null,null,null,null,"","","","","",""]
[null,null,null,null,null,null,null,null,"","","","","",""]
[null,null,null,null,null,null,null,null,"","","","","",""]
[null,null,null,null,null,null,null,null,"","","","","",""]
[null,null,null,null,null,null,null,null,"","","","","",""]
[null,null,null,null,null,null,null,null,"","","","","",""]
[null,null,null,null,null,null,null,null,"","","","","",""]
[null,null,null,null,null,null,null,null,"","","","","",""]
[null,null,null,null,null,null,null,null,"","","","","",""]
[null,null,null,null,null,null,null,null,"","","","","",""]
[null,null,null,null,null,null,null,null,"","","","","",""]
[null,null,null,null,null,null,null,null,"","","","","",""]
[null,null,null,null,null,null,null,null,"","","","","",""]
[null,null,null,null,null,null,null,null,"","","","","",""]
[null,null,null,null,null,null,null,null,"","","","","",""]
[null,null,null,null,null,null,null,null,"","","","","",""]
[null,null,null,null,null,null,null,null,"","","","","",""]
[null,null,null,null,null,null,null,null,"","","","","",""]
[null,null,null,null,null,null,null,null,"","","","","",""]
[null,null,null,null,null,null,null,null,"","","","","",""]
[null,null,null,null,null,null,null,null,"","","","","",""]
[null,null,null,null,null,null,null,null,"","","","","",""]
[null,null,null,null,null,null,null,null,"","","","","",""]
[null,null,null,null,null,null,null,null,"","","","","",""]
[null,null,null,null,null,null,null,null,"","","","","",""]
[null,null,null,null,null,null,null,null,"","","","","",""]
[null,null,null,null,null,null,null,null,"","","","","",""]
[null,null,null,null,null,null,null,null,"","","","","",""]
[null,null,null,null,null,null,null,null,"","","","","",""]
[null,null,null,null,null,null,null,null,"","","","","",""]
[null,null,null,null,null,null,null,null,"","","","","",""]
[null,null,null,null,null,null,null,null,"","","","","",""]
[null,null,null,null,null,null,null,null,"","","","","",""]
[null,null,null,null,null,null,null,null,"","","","","",""]
[null,null,null,null,null,null,null,null,"","","","","",""]
[null,null,null,null,null,null,null,null,"","","","","",""]
[null,null,null,null,null,null,null,null,"","","","","",""]
[null,null,null,null,null,null,null,null,"","","","","",""]
[null,null,null,null,null,null,null,null,"","","","","",""]
[null,null,null,null,null,null,null,null,"","","","","",""]
[null,null,null,null,null,null,null,null,"","","","","",""]
[null,null,null,null,null,null,null,null,"","","","","",""]
[null,null,null,null,null,null,null,null,"","","","","",""]

{"sheet":"Zadost","index":3,"n_rows":666,"n_cols":16,"rows_kept":666,"cut":false,"hidden":false,"merged":[[36,2,36,5],[10,8,10,14],[13,8,13,14],[10,2,10,5],[53,2,53,5],[53,8,53,14],[44,2,44,5],[43,2,43,5],[37,2,37,5],[94,8,94,11],[86,8,86,9],[87,8,87,9],[43,8,43,9],[44,8,44,9],[56,8,56,14],[54,8,54,14],[0,0,1,17],[11,8,11,14],[14,8,14,14],[11,2,11,5],[24,2,24,5],[23,2,23,5],[17,8,17,14],[16,8,16,14],[2,0,2,17],[54,2,54,5],[93,2,93,5],[93,8,93,11],[60,8,60,14],[59,8,59,14],[57,8,57,14],[87,2,87,5],[86,2,86,5],[80,2,80,5],[67,2,67,5],[66,2,66,5],[79,2,79,5],[104,2,104,5],[113,2,113,5],[110,2,110,5],[107,2,107,5],[94,2,94,5],[109,2,109,5],[106,2,106,5],[103,2,103,5],[112,2,112,5],[122,2,122,5],[124,2,124,5],[125,2,125,5],[115,2,115,5],[116,2,116,5],[118,2,118,5],[119,2,119,5],[121,2,121,5]]}
["KB  KALKULAČKA SPOTŘEBITELSKÝCH ÚVĚRŮ"]
[]
["MODELACE ÚVĚRU A BONITA ŽADATEL > OSOBNÍ ÚDAJE  > PROHLÁŠENÍ ŽADATELE O VZTAHU KE KOMERČNÍ BANCE A JINÝCH INFORMACÍCH > INFORMACE O ZPROSTŘEDKOVATELI"]
[]
[]
[null,null,"Žadatel"]
[]
[null,null,"Titul",null,null,"Jméno",null,null,"Příjmení",null,null,"Rodné číslo",null,null,"Datum narození"]
[null,null,"",null,null,"",null,null,"",null,null,"",null,null,""]
[]
[null,null,"Rodinný stav",null,null,null,null,null,"Vzdělání"]
[null,null,"",null,null,null,null,null,""]
[]
[null,null,"Bytové poměry",null,null,"Trvalé bydliště od roku",null,null,"Adresa trvalého pobytu"]
[null,null,"",null,null,"",null,null,""]
[]
[null,null,"Telefon",null,null,"Email",null,null,"Kontaktní adresa"]
[null,null,"",null,null,"",null,null,""]
[]
[]
[]
[null,null,"Informace o příjmu ze závislé činnosti"]
[null,null,"",null,null,null,null,null,"",null,null,"",null,null,""]
[null,null,"Název zaměstnavatele",null,null,null,null,null,"Zaměstnán jako",null,null,"Zaměstnán od",null,null,"Zaměstnán do"]
[null,null,"",null,null,null,"","","",null,null,"",null,null,""]
[]
[null,null,"IČO",null,null,"Průměrný čistý měsíční příjem ze závislé činnosti",null,null,"Zkušební doba",null,null,"Výpovědní doba"]
[null,null,"",null,null,{"$f":"Limit!C19","v":0},"Kč",null,"",null,null,"",null,null,""]
[]
[]
[]
[null,null,"Informace o příjmu z podnikání"]
[]
[null,null,"IČO",null,null,"Čistý roční příjem z podnikání",null,null,"Podnikám jako",null,null,"Za rok ",null,null,"Podnikám od"]
[null,null,"",null,null,{"$f":"Limit!F19","v":0},"Kč",null,"",null,null,"",null,null,""]
[]
[null,null,"OKEČ"]
[null,null,""]
[]
[]
[]
[null,null,"Ostatní příjmy"]
[]
[null,null,"Typ příjmu",null,null,null,null,null,"Ostatní pravidelné měsíční příjmy"]
[null,null,"",null,null,null,null,null,{"$f":"Limit!I19","v":0},null,"Kč"]
[]
[]
[]
[null,null,"Spolužadatel"]
[]
[null,null,"Titul",null,null,"Jméno",null,null,"Příjmení",null,null,"Rodné číslo",null,null,"Datum narození"]
[null,null,"",null,null,"",null,null,"",null,null,"",null,null,""]
[]
[null,null,"Rodinný stav",null,null,null,null,null,"Vzdělání"]
[null,null,"",null,null,null,null,null,""]
[]
[null,null,"Bytové poměry",null,null,"Trvalé bydliště od roku",null,null,"Adresa trvalého pobytu"]
[null,null,"",null,null,"",null,null,""]
[]
[null,null,"Telefon",null,null,"Email",null,null,"Kontaktní adresa"]
[null,null,"",null,null,"",null,null,""]
[]
[]
[]
[null,null,"Spolužadatel - informace o příjmu ze závislé činnosti "]
[]
[null,null,"Název zaměstnavatele",null,null,null,null,null,"Zaměstnán jako",null,null,"Zaměstnán od",null,null,"Zaměstnán do"]
[null,null,"",null,null,null,"","","",null,null,"",null,null,""]
[]
[null,null,"IČO",null,null,"Průměrný čistý měsíční příjem ze závislé činnosti",null,null,"Zkušební doba",null,null,"Výpovědní doba"]
[null,null,"",null,null,{"$f":"Limit!C24","v":0},"Kč",null,"",null,null,"",null,null,""]
[]
[]
[]
[null,null,"Spolužadatel - informace o příjmu z podnikání"]
[]
[null,null,"IČO",null,null,"Čistý roční příjem z podnikání",null,null,"Podnikám jako",null,null,"Za rok ",null,null,"Podnikám od"]
[null,null,"",null,null,{"$f":"Limit!F24","v":0},"Kč",null,"",null,null,"",null,null,""]
[]
[null,null,"OKEČ"]
[null,null,""]
[]
[]
[]
[null,null,"Spolužadatel - ostatní příjmy"]
[]
[null,null,"Typ příjmu",null,null,null,null,null,"Ostatní pravidelné měsíční příjmy"]
[null,null,"",null,null,null,null,null,{"$f":"Limit!I24","v":0},null,"Kč"]
[]
[]
[]
[null,null,"Ostatní informace o žadateli"]
[]
[null,null,"Vypořádání majetku po rozvodu",null,null,null,null,null,"Upravení SJM"]
[null,null,"",null,null,null,null,null,""]
[]
[]
[]
[null,null,"Konsolidované produkty"]
[]
[null,null,"Počet"]
[]
[]
[null,null,"Název produktu",null,null,null,null,null,"Věřitel",null,null,"Částka ke splacení",null,null,"Měsíční splátka"]
[null,null,"",null,null,null,null,null,"",null,null,"","Kč",null,"","Kč"]
[]
[null,null,"Název produktu",null,null,null,null,null,"Věřitel",null,null,"Částka ke splacení",null,null,"Měsíční splátka"]
[null,null,"",null,null,null,null,null,"",null,null,"","Kč",null,"","Kč"]
[]
[null,null,"Název produktu",null,null,null,null,null,"Věřitel",null,null,"Částka ke splacení",null,null,"Měsíční splátka"]
[null,null,"",null,null,null,null,null,"",null,null,"","Kč",null,"","Kč"]
[]
[null,null,"Název produktu",null,null,null,null,null,"Věřitel",null,null,"Částka ke splacení",null,null,"Měsíční splátka"]
[null,null,"",null,null,null,null,null,"",null,null,"","Kč",null,"","Kč"]
[]
[null,null,"Název produktu",null,null,null,null,null,"Věřitel",null,null,"Částka ke splacení",null,null,"Měsíční splátka"]
[null,null,"",null,null,null,null,null,"",null,null,"","Kč",null,"","Kč"]
[]
[null,null,"Název produktu",null,null,null,null,null,"Věřitel",null,null,"Částka ke splacení",null,null,"Měsíční splátka"]
[null,null,"",null,null,null,null,null,"",null,null,"","Kč",null,"","Kč"]
[]
[null,null,"Název produktu",null,null,null,null,null,"Věřitel",null,null,"Částka ke splacení",null,null,"Měsíční splátka"]
[null,null,"",null,null,null,null,null,"",null,null,"","Kč",null,"","Kč"]
[]
[null,null,"Název produktu",null,null,null,null,null,"Věřitel",null,null,"Částka ke splacení",null,null,"Měsíční splátka"]
[null,null,"",null,null,null,null,null,"",null,null,"","Kč",null,"","Kč"]
[]
[]
[]
[]
[]
[]
[]
[]
[]
[]
[]
[]
[]
[]
[]
[]
[]
[]
[]
[]
[]
[]
[]
[]
[]
[]
[]
[]
[]
[]
[]
[]
[]
[]
[]
[]
[]
[]
[]
[]
[]
[]
[]
[]
[]
[]
[]
[]
[]
[]
[]
[]
[]
[]
[]
[]
[]
[]
[]
[]
[]
[]
[]
[]
[]
[]
[]
[]
[]
[]
[]
[]
[]
[]
[]
[]
[]
[]
[]
[]
[]
[]
[]
[]
[]
[]
[]
[]
[]
[]
[]
[]
[]
[]
[]
[]
[]
[]
[]
[]
[]
[]
[]
[]
[]
[]
[]
[]
[]
[]
[]
[]
[]
[]
[]
[]
[]
[]
[]
[]
[]
[]
[]
[]
[]
[]
[]
[]
[]
[]
[]
[]
[]
[]
[]
[]
[]
[]
[]
[]
[]
[]
[]
[]
[]
[]
[]
[]
[]
[]
[]
[]
[]
[]
[]
[]
[]
[]
[]
[]
[]
[]
[]
[]
[]
[]
[]
[]
[]
[]
[]
[]
[]
[]
[]
[]
[]
[]
[]
[]
[]
[]
[]
[]
[]
[]
[]
[]
[]
[]
[]
[]
[]
[]
[]
[]
[]
[]
[]
[]
[]
[]
[]
[]
[]
[]
[]
[]
[]
[]
[]
[]
[]
[]
[]
[]
[]
[]
[]
[]
[]
[]
[]
[]
[]
[]
[]
[]
[]
[]
[]
[]
[]
[]
[]
[]
[]
[]
[]
[]
[]
[]
[]
[]
[]
[]
[]
[]
[]
[]
[]
[]
[]
[]
[]
[]
[]
[]
[]
[]
[]
[]
[]
[]
[]
[]
[]
[]
[]
[]
[]
[]
[]
[]
[]
[]
[]
[]
[]
[]
[]
[]
[]
[]
[]
[]
[]
[]
[]
[]
[]
[]
[]
[]
[]
[]
[]
[]
[]
[]
[]
[]
[]
[]
[]
[]
[]
[]
[]
[]
[]
[]
[]
[]
[]
[]
[]
[]
[]
[]
[]
[]
[]
[]
[]
[]
[]
[]
[]
[]
[]
[]
[]
[]
[]
[]
[]
[]
[]
[]
[]
[]
[]
[]
[]
[]
[]
[]
[]
[]
[]
[]
[]
[]
[]
[]
[]
[]
[]
[]
[]
[]
[]
[]
[]
[]
[]
[]
[]
[]
[]
[]
[]
[]
[]
[]
[]
[]
[]
[]
[]
[]
[]
[]
[]
[]
[]
[]
[]
[]
[]
[]
[]
[]
[]
[]
[]
[]
[]
[]
[]
[]
[]
[]
[]
[]
[]
[]
[]
[]
[]
[]
[]
[]
[]
[]
[]
[]
[]
[]
[]
[]
[]
[]
[]
[]
[]
[]
[]
[]
[]
[]
[]
[]
[]
[]
[]
[]
[]
[]
[]
[]
[]
[]
[]
[]
[]
[]
[]
[]
[]
[]
[]
[]
[]
[]
[]
[]
[]
[]
[]
[]
[]
[]
[]
[]
[]
[]
[]
[]
[]
[]
[]
[]
[]
[]
[]
[]
[]
[]
[]
[]
[]
[]
[]
[]
[]
[]
[]
[]
[]
[]
[]
[]
[]
[]
[]
[]
[]
[]
[]
[]
[]
[]
[]
[]
[]
[]
[]
[]
[]
[]
[]
[]
[]
[]
[]
[]
[]
[]
[]
[]
[]
[]
[]
[]
[]
[]
[]
[]
[]
[]
[]
[]
[]
[]
[]
[]
[]
[null,null,null,{"$f":"IFERROR(IF((YEAR(TODAY())-RIGHT(Zadost!$L$25,4))=666,666,0),\"\")","v":""}]

{"sheet":"Prohlaseni","index":4,"n_rows":48,"n_cols":11,"rows_kept":48,"cut":false,"hidden":false,"merged":[[39,4,40,15],[42,4,43,15],[47,3,47,15],[37,6,37,8],[24,3,24,15],[36,10,36,12],[31,2,31,6],[13,10,13,12],[14,6,14,8],[16,4,17,15],[19,4,20,15],[30,2,30,5],[30,7,30,15],[0,0,1,17],[7,2,7,5],[7,7,7,15],[8,2,8,6],[2,0,2,17]]}
["KB  KALKULAČKA SPOTŘEBITELSKÝCH ÚVĚRŮ"]
[]
["MODELACE ÚVĚRU A BONITA ŽADATEL > OSOBNÍ ÚDAJE  > PROHLÁŠENÍ ŽADATELE O VZTAHU KE KOMERČNÍ BANCE A JINÝCH INFORMACÍCH > INFORMACE O ZPROSTŘEDKOVATELI"]
[]
[]
[null,null,"Prohlášení žadatele o zvláštním vztahu k bance"]
[]
[null,null,"Podpisem této žádosti prohlašuji , že",null,null,null,"","osobou se zvláštním vztahem k Bance ve smyslu ustanovení § 19 z.č. 21/1992 Sb., o bankách, ve znění"]
[null,null,"pozdějších předpisů."]
[]
[null,null,"Prohlášení žadatele o daňovém rezidentství"]
[]
[null,null,"Podpisem této žádosti prohlašuji:"]
[null,null,null,"▪ že jsem k datu podpisu této žádosti daňovým rezidentem v",null,null,null,null,null,null,""]
[null,null,null,null,"DIČ v zemi daňové rezidence",null,""]
[null,null,null,"▪ že jsem skutečným vlastníkem všech příjmů, které mi plynou od Správce, jak je definován ve Všeobecných obchodních podmínkách Banky (jedná se "]
[null,null,null,null,"zejména o příjmy z  úroků plynoucích vám v souvislosti s vedením účtu a příjmy z dividend), a že tyto příjmy jsou považovány za můj příjem dle daňového práva státu, ve kterém jsem daňovým rezidentem."]
[]
[null,null,null,"▪ že, pokud jsem výše uvedl stát daňové rezidence jiný než Spojené státy americké, nejsem U.S. osobou podle čl. 35.1. Všeobecných obchodních"]
[null,null,null,null,"podmínek Banky ani nesplňuji jinou indicii vazby na USA (místo narození, adresa pro doručování nebo bydliště, telefonní kontakt, trvalý příkaz propřevod prostředků na účet vedený v USA, poskytnutí plné moci nebo podpisové právo osobě s adresou v USA) splňující definiční podmínky dle Dohody FATCA."]
[]
[null,null,null,"▪ že pokud jsem daňovým rezidentem i v jiné zemi/zemích než v zemi, kterou jsem uvedl výše, uvádím dále název příslušné země/zemí daňové"]
[null,null,null,null,"rezidence a daňové identifikační číslo/čísla pro každou z nich."]
[]
[null,null,null,"Výše uvedené údaje budou použity k plnění daňových, účetních a oznamovacích povinností Banky v souladu s platnými právními předpisy.\n\nToto prohlášení vydávám na dobu neurčitou. V případě, že se změní země mé daňové rezidence uvedená v tomto prohlášení, zavazuji se o této změně neprodleně informovat Banku a podepsat nové prohlášení o daňovém rezidentství.\n\nZavazuji se nahradit veškerou újmu, která by Bance vznikla v důsledku nesprávnosti informací uvedených v tomto prohlášení.\n\nBeru na vědomí, že v případě mnou sjednaných produktů u společností Komerční pojišťovna, a.s. (IČO 63998017), Amundi Czech Republic, investiční společnost, a.s. (IČO 60196769) a Modrá pyramida stavební spořitelna, a.s. (IČO 60192852), budou výše uvedené údaje Bankou předány těmto společnostem za účelem plnění jejich zjišťovací a oznamovací povinnosti dle zákona č. 164/2013 Sb., o mezinárodní spolupráci při správě daní a o změně dalších souvisejících zákonů, ve znění pozdějších předpisů."]
[]
[]
[]
[null,null,"Prohlášení spolužadatele o zvláštním vztahu k bance"]
[]
[null,null,"Podpisem této žádosti prohlašuji , že",null,null,null,"","osobou se zvláštním vztahem k Bance ve smyslu ustanovení § 19 z.č. 21/1992 Sb., o bankách, ve znění"]
[null,null,"pozdějších předpisů."]
[]
[null,null,"Prohlášení spolužadatele o daňovém rezidentství"]
[]
[null,null,"Podpisem této žádosti prohlašuji:"]
[null,null,null,"▪ že jsem k datu podpisu této žádosti daňovým rezidentem v",null,null,null,null,null,null,""]
[null,null,null,null,"DIČ v zemi daňové rezidence",null,""]
[null,null,null,"▪ že jsem skutečným vlastníkem všech příjmů, které mi plynou od Správce, jak je definován ve Všeobecných obchodních podmínkách Banky (jedná se "]
[null,null,null,null,"zejména o příjmy z  úroků plynoucích vám v souvislosti s vedením účtu a příjmy z dividend), a že tyto příjmy jsou považovány za můj příjem dle daňového práva státu, ve kterém jsem daňovým rezidentem."]
[]
[null,null,null,"▪ že, pokud jsem výše uvedl stát daňové rezidence jiný než Spojené státy americké, nejsem U.S. osobou podle čl. 35.1. Všeobecných obchodních"]
[null,null,null,null,"podmínek Banky ani nesplňuji jinou indicii vazby na USA (místo narození, adresa pro doručování nebo bydliště, telefonní kontakt, trvalý příkaz propřevod prostředků na účet vedený v USA, poskytnutí plné moci nebo podpisové právo osobě s adresou v USA) splňující definiční podmínky dle Dohody FATCA."]
[]
[null,null,null,"▪ že pokud jsem daňovým rezidentem i v jiné zemi/zemích než v zemi, kterou jsem uvedl výše, uvádím dále název příslušné země/zemí daňové"]
[null,null,null,null,"rezidence a daňové identifikační číslo/čísla pro každou z nich."]
[]
[null,null,null,"Výše uvedené údaje budou použity k plnění daňových, účetních a oznamovacích povinností Banky v souladu s platnými právními předpisy.\n\nToto prohlášení vydávám na dobu neurčitou. V případě, že se změní země mé daňové rezidence uvedená v tomto prohlášení, zavazuji se o této změně neprodleně informovat Banku a podepsat nové prohlášení o daňovém rezidentství.\n\nZavazuji se nahradit veškerou újmu, která by Bance vznikla v důsledku nesprávnosti informací uvedených v tomto prohlášení.\n\nBeru na vědomí, že v případě mnou sjednaných produktů u společností Komerční pojišťovna, a.s. (IČO 63998017), Amundi Czech Republic, investiční společnost, a.s. (IČO 60196769) a Modrá pyramida stavební spořitelna, a.s. (IČO 60192852), budou výše uvedené údaje Bankou předány těmto společnostem za účelem plnění jejich zjišťovací a oznamovací povinnosti dle zákona č. 164/2013 Sb., o mezinárodní spolupráci při správě daní a o změně dalších souvisejících zákonů, ve znění pozdějších předpisů."]

{"sheet":"Zprostredkovani","index":5,"n_rows":12,"n_cols":13,"rows_kept":12,"cut":false,"hidden":false,"merged":[[0,0,1,17],[8,12,8,15],[7,12,7,15],[10,2,10,5],[11,2,11,5],[10,7,10,10],[11,7,11,10],[7,2,7,5],[8,2,8,5],[7,7,7,9],[8,7,8,10],[2,0,2,17]]}
["KB  KALKULAČKA SPOTŘEBITELSKÝCH ÚVĚRŮ"]
[]
["MODELACE ÚVĚRU A BONITA ŽADATEL > OSOBNÍ ÚDAJE  > PROHLÁŠENÍ ŽADATELE O VZTAHU KE KOMERČNÍ BANCE A JINÝCH INFORMACÍCH > INFORMACE O ZPROSTŘEDKOVATELI"]
[]
[]
[null,null,"Informace do potvrzení o zprostředkování"]
[]
[null,null,"Jméno a příjmení zprostředkovatele",null,null,null,null,"E-mail",null,null,null,null,"Identifikační číslo/IČO/RČ"]
[null,null,"",null,null,null,null,"",null,null,null,null,""]
[]
[null,null,"Název obchodní společnosti",null,null,null,null,"V obchodním místě"]
[null,null,"",null,null,null,null,""]

{"sheet":"Data_export","index":6,"n_rows":113,"n_cols":11,"rows_kept":113,"cut":false,"hidden":true,"merged":[[89,1,89,4],[89,7,89,10],[101,1,101,4],[1,0,1,3],[38,0,38,3],[38,6,38,9],[65,0,65,3],[74,0,74,3],[74,6,74,9],[9,0,9,3],[20,0,20,3],[20,6,20,9]]}
[]
["Klienti"]
[null,"Jméno Příjmení","Jmeno_Klient1",{"$f":"IF(OR(Zadost!C9=pomocne!B12,Zadost!C9=pomocne!B13,Zadost!C9=pomocne!B16,Zadost!C9=pomocne!B17,Zadost!C9=pomocne!B20,Zadost!C9=pomocne!B29),CONCATENATE(Zadost!F9,\" \",Zadost!I9,\", \",Zadost!C9),CONCATENATE(Zadost!C9,\" \",Zadost!F9,\" \",Zadost!I9))","v":"  "},"Zadost"]
[null,"Trvalý pobyt ","AdrTrvPobytKlient1",{"$f":"IF(Zadost!I15=\"\",\"\",Zadost!I15)","v":""},"Zadost"]
[null,"Rodné číslo/datum narození","RC_Klient1",{"$f":"IF(AND(Zadost!L9=\"\",Zadost!O9=\"\"),\"- / -\",IF(AND(Zadost!L9=\"\",Zadost!O9<>\"\"),\"- / \"&Zadost!O9,IF(AND(Zadost!L9<>\"\",Zadost!O9=\"\"),Zadost!L9&\" / -\",IF(AND(Zadost!L9<>\"\",Zadost!O9<>\"\"),Zadost!L9&\" / \"&Zadost!O9,))))","v":"- / -"},"Zadost"]
[null,"Jméno Příjmení","Jmeno_Klient2",{"$f":"IF(OR(Zadost!C52=pomocne!B12,Zadost!C52=pomocne!B13,Zadost!C52=pomocne!B16,Zadost!C52=pomocne!B17,Zadost!C52=pomocne!B20,Zadost!C52=pomocne!B29),CONCATENATE(Zadost!F52,\" \",Zadost!I52,\", \",Zadost!C52),CONCATENATE(Zadost!C52,\" \",Zadost!F52,\" \",Zadost!I52))","v":"  "},"Zadost"]
[null,"Trvalý pobyt ","AdrTrvPobytKlient2",{"$f":"IF(Zadost!I58=\"\",\"\",Zadost!I58)","v":""},"Zadost"]
[null,"Rodné číslo/datum narození","RC_Klient2",{"$f":"IF(AND(Zadost!L52=\"\",Zadost!O52=\"\"),\"- / -\",IF(AND(Zadost!L52=\"\",Zadost!O52<>\"\"),\"- / \"&Zadost!O52,IF(AND(Zadost!L52<>\"\",Zadost!O52=\"\"),Zadost!L52&\" / -\",IF(AND(Zadost!L52<>\"\",Zadost!O52<>\"\"),Zadost!L52&\" / \"&Zadost!O52,))))","v":"- / -"},"Zadost"]
[]
["Parametry úvěru"]
[null,"Druh úvěru","V_D1_cmbSmlouvaTyp_1",{"$f":"IF(Limit!C9=\"\",\"\",Limit!C9)","v":""},"Limit"]
[null,"Celková výše úvěru","V_D1_txtVyseUveru_1",{"$f":"IF(Limit!F9=\"\",\"\",Limit!F9)","v":""},"Limit"]
[null,"slovy","V_D1_txtSlovyVyseU_1",{"$f":"IF(Limit!F9=\"\",\"\",slovy(Limit!F9))","v":""},"Limit"]
[null,"Účelová část","V_D1_txtUcelVyseUv_1",null,"-"]
[null,"slovy","V_D1_txtSlovVyseUc_1",{"$f":"IF(Limit!F9=\"\",\"\",slovy(D14))","v":""},"-"]
[null,"Účel","V_D1_txtUcel_1",{"$f":"IF(Limit!C9=\"\",\"\",IF(Limit!C9=pomocne!G4,\"bez účelu\",\"konsolidace dluhů\"))","v":""},"funkce zde"]
[null,"Počet měsíčních splátek","PPC_DobaTrvaniM_1",{"$f":"IFERROR(IF(Limit!I9=\"\",\"\",Limit!I9)*12,\"\")","v":""},"Limit"]
[null,"Čerpání do","Cerpani_Do",{"$f":"pomocne!AH7","v":"2024-06-10"},"Pomocne"]
[null,"Zajištění úvěru","Zajisteni_Typ",{"$f":"IF(Limit!F12=\"\",\"\",Limit!F12)","v":""},"Limit"]
[]
["Konsolidované dluhy",null,null,null,null,null,"Konsolidované dluhy"]
[null,"Název produktu","Opt_Konsol_uver1",{"$f":"IF(Zadost!$C$105=\"\",\"\",Zadost!$C$105)","v":""},"Zadost",null,null,"Název produktu","Opt_Konsol_uver5",{"$f":"IF(Zadost!$C$117=\"\",\"\",Zadost!$C$117)","v":""},"Zadost"]
[null,"Věřitel","VeritelKonsolUveru1",{"$f":"IF(Zadost!$I$105=\"\",\"\",Zadost!$I$105)","v":""},"Zadost",null,null,"Věřitel","VeritelKonsolUveru5",{"$f":"IF(Zadost!$I$117=\"\",\"\",Zadost!$I$117)","v":""},"Zadost"]
[null,"Částka ke splacení (Kč)","Vyse_konsol_uver1",{"$f":"IF(Zadost!$L$105=\"\",\"\",Zadost!$L$105)","v":""},"Zadost",null,null,"Částka ke splacení (Kč)","Vyse_konsol_uver5",{"$f":"IF(Zadost!$L$117=\"\",\"\",Zadost!$L$117)","v":""},"Zadost"]
[null,"Výše měsíční splátky (Kč)","Mes_spl_konsol_uver1",{"$f":"IF(Zadost!$O$105=\"\",\"\",Zadost!$O$105)","v":""},"Zadost",null,null,"Výše měsíční splátky (Kč)","Mes_spl_konsol_uver5",{"$f":"IF(Zadost!$O$117=\"\",\"\",Zadost!$O$117)","v":""},"Zadost"]
[null,"Název produktu","Opt_Konsol_uver2",{"$f":"IF(Zadost!C108=\"\",\"\",Zadost!C108)","v":""},"Zadost",null,null,"Název produktu","Opt_Konsol_uver6",{"$f":"IF(Zadost!$C$120=\"\",\"\",Zadost!$C$120)","v":""},"Zadost"]
[null,"Věřitel","VeritelKonsolUveru2",{"$f":"IF(Zadost!I108=\"\",\"\",Zadost!I108)","v":""},"Zadost",null,null,"Věřitel","VeritelKonsolUveru6",{"$f":"IF(Zadost!$I$120=\"\",\"\",Zadost!$I$120)","v":""},"Zadost"]
[null,"Částka ke splacení (Kč)","Vyse_konsol_uver2",{"$f":"IF(Zadost!L108=\"\",\"\",Zadost!L108)","v":""},"Zadost",null,null,"Částka ke splacení (Kč)","Vyse_konsol_uver6",{"$f":"IF(Zadost!$L$120=\"\",\"\",Zadost!$L$120)","v":""},"Zadost"]
[null,"Výše měsíční splátky (Kč)","Mes_spl_konsol_uver2",{"$f":"IF(Zadost!O108=\"\",\"\",Zadost!O108)","v":""},"Zadost",null,null,"Výše měsíční splátky (Kč)","Mes_spl_konsol_uver6",{"$f":"IF(Zadost!$O$120=\"\",\"\",Zadost!$O$120)","v":""},"Zadost"]
[null,"Název produktu","Opt_Konsol_uver3",{"$f":"IF(Zadost!C111=\"\",\"\",Zadost!C111)","v":""},"Zadost",null,null,"Název produktu","Opt_Konsol_uver7",{"$f":"IF(Zadost!$C$123=\"\",\"\",Zadost!$C$123)","v":""},"Zadost"]
[null,"Věřitel","VeritelKonsolUveru3",{"$f":"IF(Zadost!I111=\"\",\"\",Zadost!I111)","v":""},"Zadost",null,null,"Věřitel","VeritelKonsolUveru7",{"$f":"IF(Zadost!$I$123=\"\",\"\",Zadost!$I$123)","v":""},"Zadost"]
[null,"Částka ke splacení (Kč)","Vyse_konsol_uver3",{"$f":"IF(Zadost!L111=\"\",\"\",Zadost!L111)","v":""},"Zadost",null,null,"Částka ke splacení (Kč)","Vyse_konsol_uver7",{"$f":"IF(Zadost!$L$123=\"\",\"\",Zadost!$L$123)","v":""},"Zadost"]
[null,"Výše měsíční splátky (Kč)","Mes_spl_konsol_uver3",{"$f":"IF(Zadost!O111=\"\",\"\",Zadost!O111)","v":""},"Zadost",null,null,"Výše měsíční splátky (Kč)","Mes_spl_konsol_uver7",{"$f":"IF(Zadost!$O$123=\"\",\"\",Zadost!$O$123)","v":""},"Zadost"]
[null,"Název produktu","Opt_Konsol_uver4",{"$f":"IF(Zadost!C114=\"\",\"\",Zadost!C114)","v":""},"Zadost",null,null,"Název produktu","Opt_Konsol_uver8",{"$f":"IF(Zadost!$C$126=\"\",\"\",Zadost!$C$126)","v":""},"Zadost"]
[null,"Věřitel","VeritelKonsolUveru4",{"$f":"IF(Zadost!I114=\"\",\"\",Zadost!I114)","v":""},"Zadost",null,null,"Věřitel","VeritelKonsolUveru8",{"$f":"IF(Zadost!$I$126=\"\",\"\",Zadost!$I$126)","v":""},"Zadost"]
[null,"Částka ke splacení (Kč)","Vyse_konsol_uver4",{"$f":"IF(Zadost!L114=\"\",\"\",Zadost!L114)","v":""},"Zadost",null,null,"Částka ke splacení (Kč)","Vyse_konsol_uver8",{"$f":"IF(Zadost!$L$126=\"\",\"\",Zadost!$L$126)","v":""},"Zadost"]
[null,"Výše měsíční splátky (Kč)","Mes_spl_konsol_uver4",{"$f":"IF(Zadost!O114=\"\",\"\",Zadost!O114)","v":""},"Zadost",null,null,"Výše měsíční splátky (Kč)","Mes_spl_konsol_uver8",{"$f":"IF(Zadost!$O$126=\"\",\"\",Zadost!$O$126)","v":""},"Zadost"]
[]
["Údaje o žadateli",null,null,null,null,null,"Údaje o spolužadateli"]
[null,"Kontaktní adresa","KontaktAdresaKl1",{"$f":"IF(Zadost!I18=\"\",\"\",Zadost!I18)","v":""},"Zadost",null,null,"Kontaktní adresa","KontaktAdresaKl2",{"$f":"IF(Zadost!I61=\"\",\"\",Zadost!I61)","v":""},"Zadost"]
[null,"Telefon","KontaktTelKl1",{"$f":"IF(Zadost!C18=\"\",\"\",Zadost!C18)","v":""},"Zadost",null,null,"Telefon","KontaktTelKl2",{"$f":"IF(Zadost!C61=\"\",\"\",Zadost!C61)","v":""},"Zadost"]
[null,"E-mailová adresa","KontaktEmailKl1",{"$f":"IF(Zadost!F18=\"\",\"\",Zadost!F18)","v":""},"Zadost",null,null,"E-mailová adresa","KontaktEmailKl2",{"$f":"IF(Zadost!F61=\"\",\"\",Zadost!F61)","v":""},"Zadost"]
[null,"Rodinný stav","RodStav1",{"$f":"IF(Zadost!C12=\"\",\"\",Zadost!C12)","v":""},"Zadost",null,null,"Rodinný stav","RodStav2",{"$f":"IF(Zadost!C55=\"\",\"\",Zadost!C55)","v":""},"Zadost"]
[null,"Bytové poměry","BytPomery1",{"$f":"IF(Zadost!C15=\"\",\"\",Zadost!C15)","v":""},"Zadost",null,null,"Bytové poměry","BytPomery2",{"$f":"IF(Zadost!C58=\"\",\"\",Zadost!C58)","v":""},"Zadost"]
[null,"Trvalý pobyt od roku","TrvPobytOd1",{"$f":"IF(Zadost!F15=\"\",\"\",Zadost!F15)","v":""},"Zadost",null,null,"Trvalý pobyt od roku","TrvPobytOd2",{"$f":"IF(Zadost!F58=\"\",\"\",Zadost!F58)","v":""},"Zadost"]
[null,"Vzdělání","Vzdelani1",{"$f":"IF(Zadost!I12=\"\",\"\",Zadost!I12)","v":""},"Zadost",null,null,"Vzdělání","Vzdelani2",{"$f":"IF(Zadost!I55=\"\",\"\",Zadost!I55)","v":""},"Zadost"]
[null,"ze závislé činnosti od zaměstnavatele","ZamtelNazev1",{"$f":"IF(Zadost!C25=\"\",\"\",Zadost!C25)","v":""},"Zadost",null,null,"ze závislé činnosti od zaměstnavatele","ZamtelNazev2",{"$f":"IF(Zadost!C68=\"\",\"\",Zadost!C68)","v":""},"Zadost"]
[null,"IČO","IcoZamtel1",{"$f":"IF(Zadost!C28=\"\",\"\",Zadost!C28)","v":""},"Zadost",null,null,"IČO","IcoZamtel2",{"$f":"IF(Zadost!C71=\"\",\"\",Zadost!C71)","v":""},"Zadost"]
[null,"zaměstnán jako","PracPozice1",{"$f":"IF(Zadost!I25=\"\",\"\",Zadost!I25)","v":""},"Zadost",null,null,"zaměstnán jako","PracPozice2",{"$f":"IF(Zadost!I68=\"\",\"\",Zadost!I68)","v":""},"Zadost"]
[null,"průměrný čistý měsíční příjem za posledních 12 měsíců","CistyMesPrijemZam1",{"$f":"IF(Zadost!F28=0,\"\",Zadost!F28)","v":""},"Zadost",null,null,"průměrný čistý měsíční příjem za posledních 12 měsíců","CistyMesPrijemZam2",{"$f":"IF(Zadost!F71=0,\"\",Zadost!F71)","v":""},"Zadost"]
[null,"zaměstnán od","ZamestnanOd1",{"$f":"IF(Zadost!L25=\"\",\"\",Zadost!L25)","v":""},"Zadost",null,null,"zaměstnán od","ZamestnanOd2",{"$f":"IF(Zadost!L68=\"\",\"\",Zadost!L68)","v":""},"Zadost"]
[null,"zaměstnán do","ZamestnanDo1",{"$f":"IF(Zadost!O25=\"\",\"\",Zadost!O25)","v":""},"Zadost",null,null,"zaměstnán do","ZamestnanDo2",{"$f":"IF(Zadost!O68=\"\",\"\",Zadost!O68)","v":""},"Zadost"]
[null,"zkušební","ZkusDoba1",{"$f":"IF(Zadost!I28=\"\",\"\",Zadost!I28)","v":""},"Zadost",null,null,"zkušební","ZkusDoba2",{"$f":"IF(Zadost!I71=\"\",\"\",Zadost!I71)","v":""},"Zadost"]
[null,"výpovědní doba","VypovDoba1",{"$f":"IF(Zadost!L28=\"\",\"\",Zadost!L28)","v":""},"Zadost",null,null,"výpovědní doba","VypovDoba2",{"$f":"IF(Zadost!L71=\"\",\"\",Zadost!L71)","v":""},"Zadost"]
[null,"typ","-","Ze závislé činnosti","Zadost",null,null,"typ","-","Ze závislé činnosti","Zadost"]
[null,"z podnikání","OKEC1",{"$f":"IF(Zadost!C38=\"\",\"\",Zadost!C38)","v":""},"Zadost",null,null,"z podnikání","OKEC2",{"$f":"IF(Zadost!C81=\"\",\"\",Zadost!C81)","v":""},"Zadost"]
[null,"IČO","IcoKlient1",{"$f":"IF(Zadost!C35=\"\",\"\",Zadost!C35)","v":""},"Zadost",null,null,"IČO","IcoKlient2",{"$f":"IF(Zadost!C78=\"\",\"\",Zadost!C78)","v":""},"Zadost"]
[null,"podnikám jako","PodnikCinnost1",{"$f":"IF(Zadost!I35=\"\",\"\",Zadost!I35)","v":""},"Zadost",null,null,"podnikám jako","PodnikCinnost2",{"$f":"IF(Zadost!I78=\"\",\"\",Zadost!I78)","v":""},"Zadost"]
[null,"čistý roční příjem z podnikání","CistyMesPrijPodCin1",{"$f":"IF(Zadost!F35=0,\"\",Zadost!F35)","v":""},"Zadost",null,null,"čistý roční příjem z podnikání","CistyMesPrijPodCin2",{"$f":"IF(Zadost!F78=0,\"\",Zadost!F78)","v":""},"Zadost"]
[null,"za rok ","PrijemZPodnikZaRok1",{"$f":"IF(Zadost!L35=\"\",\"\",Zadost!L35)","v":""},"Zadost",null,null,"za rok ","PrijemZPodnikZaRok2",{"$f":"IF(Zadost!L78=\"\",\"\",Zadost!L78)","v":""},"Zadost"]
[null,"podnikám od","PodnikaniOd1",{"$f":"IF(Zadost!O35=\"\",\"\",Zadost!O35)","v":""},"Zadost",null,null,"podnikám od","PodnikaniOd2",{"$f":"IF(Zadost!O78=\"\",\"\",Zadost!O78)","v":""},"Zadost"]
[null,"z ostatních příjmů","OstPrijmyTyp1",{"$f":"IF(Zadost!C45=\"\",\"\",Zadost!C45)","v":""},"Zadost",null,null,"z ostatních příjmů","OstPrijmyTyp2",{"$f":"IF(Zadost!C88=\"\",\"\",Zadost!C88)","v":""},"Zadost"]
[null,"pravidelný ostatní čistý měsíční příjem","CistyMesPrijemOstat1",{"$f":"IF(Zadost!I45=0,\"\",Zadost!I45)","v":""},"Zadost",null,null,"pravidelný ostatní čistý měsíční příjem","CistyMesPrijemOstat2",{"$f":"IF(Zadost!I88=0,\"\",Zadost!I88)","v":""},"Zadost"]
[]
[]
["Ostatní údaje"]
[null,"Počet vyživovaných dětí do 10 let věku","PocetDetiDo10_1",{"$f":"IF(Limit!F34=\"\",\"\",Limit!F34)","v":""},"Limit"]
[null,"Počet vyživovaných dětí nad 10 let věku","PocetDetiDo10_2",{"$f":"IF(Limit!I34=\"\",\"\",Limit!I34)","v":""},"Limit"]
[null,"Vypořádání majetku po rozvodu","VypMajPoRoz1",{"$f":"IF(Zadost!C95=\"\",\"\",Zadost!C95)","v":""},"Zadost"]
[null,"Upravení SJM","UprSJM1",{"$f":"IF(Zadost!I95=\"\",\"\",Zadost!I95)","v":""},"Zadost"]
[null,"Výdaje na bydlení","VydajeBydleni1",{"$f":"IF(Limit!C31=\"\",\"\",Limit!C31)","v":""},"Limit"]
[null,"Výdaje pojištění","VydajePojisteniDom1",{"$f":"IF(AND(Limit!F31=0,Limit!I31=0),\"\",Limit!F31)","v":""},"Limit"]
[null,"Ostatní výdaje na domácnost","OstVydajeDom1",{"$f":"IF(AND(Limit!L31=0,Limit!C34=0),\"\",Limit!L31+Limit!C34)","v":""},"Limit"]
[null,"Výdaje na spoření","VydajeSporeniDom1",{"$f":"IF(AND(Limit!I31=0,Limit!I31=0),\"\",Limit!I31)","v":""},"Limit"]
["Dluhy JPÚ",null,null,null,null,null,"Dluhy KB"]
[null,"Celková výše zajištěných úvěrů","TotZajUveryJPU1",{"$f":"IF(Limit!C57=\"\",\"\",Limit!C57)","v":""},"Limit",null,null,"Celková výše zajištěných úvěrů","TotZajUveryKB1",{"$f":"IF(Limit!C41=\"\",\"\",Limit!C41)","v":""},"Limit"]
[null,"z toho konsolidováno/sníženo o","TotZajUveryJPUKons1",{"$f":"IF(Limit!C60=\"\",\"\",Limit!C60)","v":""},"Limit",null,null,"z toho konsolidováno/sníženo o","TotZajUveryKBKons1",{"$f":"IF(Limit!C44=\"\",\"\",Limit!C44)","v":""},"Limit"]
[null,"a celková výše měsíčních splátek","TotSplZajUveryJPU1",{"$f":"IF(Limit!F57=\"\",\"\",Limit!F57)","v":""},"Limit",null,null,"a celková výše měsíčních splátek","TotSplZajUveryKB1",{"$f":"IF(Limit!F41=\"\",\"\",Limit!F41)","v":""},"Limit"]
[null,"z toho konsolidováno/sníženo o","TotSplZajUvKonsJPU1",{"$f":"IF(Limit!F60=\"\",\"\",Limit!F60)","v":""},"Limit",null,null,"z toho konsolidováno/sníženo o","TotSplZajUvKonsKB1",{"$f":"IF(Limit!F44=\"\",\"\",Limit!F44)","v":""},"Limit"]
[null,"Celková výše nezajištěných úvěrů","TotNezajUveryJPU1",{"$f":"IF(Limit!I57=\"\",\"\",Limit!I57)","v":""},"Limit",null,null,"Celková výše nezajištěných úvěrů","TotNezajUveryKB1",{"$f":"IF(Limit!I41=\"\",\"\",Limit!I41)","v":""},"Limit"]
[null,"z toho konsolidováno/sníženo o","TotNezajUverJPUKons1",{"$f":"IF(Limit!I60=\"\",\"\",Limit!I60)","v":""},"Limit",null,null,"z toho konsolidováno/sníženo o","TotNezajUverKBKons1",{"$f":"IF(Limit!I44=\"\",\"\",Limit!I44)","v":""},"Limit"]
[null,"a celková výše měsíčních splátek","TotSplNezajUveryJPU1",{"$f":"IF(Limit!L57=\"\",\"\",Limit!L57)","v":""},"Limit",null,null,"a celková výše měsíčních splátek","TotSplNezajUveryKB1",{"$f":"IF(Limit!L41=\"\",\"\",Limit!L41)","v":""},"Limit"]
[null,"z toho konsolidováno/sníženo o","TotSplNezajUvKonJPU1",{"$f":"IF(Limit!L60=\"\",\"\",Limit!L60)","v":""},"Limit",null,null,"z toho konsolidováno/sníženo o","TotSplNezajUvKonKB1",{"$f":"IF(Limit!L44=\"\",\"\",Limit!L44)","v":""},"Limit"]
[null,"Celková výše limitů kreditních karet","TotLimitKK_JPU1",{"$f":"IF(Limit!C63=\"\",\"\",Limit!C63)","v":""},"Limit",null,null,"Celková výše limitů kreditních karet","TotLimitKK_KB1",{"$f":"IF(Limit!C47=\"\",\"\",Limit!C47)","v":""},"Limit"]
[null,"z toho konsolidováno/sníženo o","TotLimitKkKonsJPU1",{"$f":"IF(Limit!C66=\"\",\"\",Limit!C66)","v":""},"Limit",null,null,"z toho konsolidováno/sníženo o","TotLimitKkKonsKB1",{"$f":"IF(Limit!C50=\"\",\"\",Limit!C50)","v":""},"Limit"]
[null,"Celková výše limitů kontokorentů","TotLimitKTK_JPU1",{"$f":"IF(Limit!F63=\"\",\"\",Limit!F63)","v":""},"Limit",null,null,"Celková výše limitů kontokorentů","TotLimitKTK_KB1",{"$f":"IF(Limit!F47=\"\",\"\",Limit!F47)","v":""},"Limit"]
[null,"z toho konsolidováno/sníženo o","TotLimitKtkKonsJPU1",{"$f":"IF(Limit!F66=\"\",\"\",Limit!F66)","v":""},"Limit",null,null,"z toho konsolidováno/sníženo o","TotLimitKtkKonsKB1",{"$f":"IF(Limit!F50=\"\",\"\",Limit!F50)","v":""},"Limit"]
[]
[]
[null,"Prohlášení žadatel",null,null,null,null,null,"Prohlášení spolužadatel"]
[null,"Prohlášení žadatel 1","klient1_bank_ok/klient1_bank_nok",{"$f":"IF(Prohlaseni!G8=\"\",\"\",IF(Prohlaseni!G8=\"nejsem\",0,1))","v":""},"prohlaseni",null,null,"Prohlášení spolužadatel 1","klient2_bank_ok/klient2_bank_nok",{"$f":"IF(Prohlaseni!G31=\"\",\"\",IF(Prohlaseni!G31=\"nejsem\",0,1))","v":""},"prohlaseni"]
[null,"Prohlášení žadatel 2","klient1_rezident",{"$f":"IF(Prohlaseni!K14=\"\",\"\",Prohlaseni!K14)","v":""},"prohlaseni",null,null,"Prohlášení spolužadatel 2","klient2_rezident",{"$f":"IF(Prohlaseni!K37=\"\",\"\",Prohlaseni!K37)","v":""},"prohlaseni"]
[null,"Osoba blízká","klient1_rezident_DIC",{"$f":"IF(Prohlaseni!G15=\"\",\"\",Prohlaseni!G15)","v":""},"prohlaseni",null,null,"Osoba blízká","klient2_rezident_DIC",{"$f":"IF(Prohlaseni!G38=\"\",\"\",Prohlaseni!G38)","v":""},"prohlaseni"]
[null,"Osoba blízká pracující v","klient1_osblizka_prc",null,"- nepřenáší se",null,null,"Osoba blízká pracující v","klient2_osblizka_prc",null,"- nepřenáší se"]
[null,"Propojen s organizací","klient1_org_ok/klient1_org_nok",null,"- nepřenáší se",null,null,"Propojen s organizací","klient2_org_ok/klient2_org_nok",null,"- nepřenáší se"]
[null,"IČO organizace","klient1_org_ico",null,"- nepřenáší se",null,null,"IČO organizace","klient2_org_ico",null,"- nepřenáší se"]
[null,"20 % hlasů","klient1_hlasy_ok/klient1_hlasy_nok",null,"- nepřenáší se",null,null,"20 % hlasů","klient2_hlasy_ok/klient2_hlasy_nok",null,"- nepřenáší se"]
[null,"řídící orgán","klient1_ridorg_ok/klient1_ridorg_nok",null,"- nepřenáší se",null,null,"řídící orgán","klient2_ridorg_ok/klient2_ridorg_nok",null,"- nepřenáší se"]
[null,"vztah k ovládající osobě","klient1_osvztah_ok/klient1_osvztah_nok",null,"- nepřenáší se",null,null,"vztah k ovládající osobě","klient2_osvztah_ok/klient2_osvztah_nok",null,"- nepřenáší se"]
[]
[]
[null,"Infomraci o zprostředkovateli a podpis"]
[null,"Jméno zprostředkovatele","Zprostredkovatel_jme",{"$f":"IF(Zprostredkovani!C9=\"\",\"\",Zprostredkovani!C9)","v":""}]
[null,"IC zprostredkovatele","Zprostredkovatel_ic",{"$f":"IF(Zprostredkovani!M9=\"\",\"\",Zprostredkovani!M9)","v":""}]
[null,"Email zprostředkovatele","Zprostredkovatel_ema",{"$f":"IF(Zprostredkovani!H9=\"\",\"\",Zprostredkovani!H9)","v":""}]
[null,"Zástupce obchodní společnosti","Zprostredkovatel_spo",{"$f":"IF(Zprostredkovani!C12=\"\",\"\",Zprostredkovani!C12)","v":""}]
[null,"Typ zprostředkovaného úvěru","Zprostredkovatel_os/Zprostredkovatel_op",{"$f":"IF(Limit!C9=\"\",\"\",Limit!C9)","v":""},"Limit"]
[null,"Obchodní místo","Zprostredkovatel_mis",{"$f":"IF(Zprostredkovani!H12=\"\",\"\",Zprostredkovani!H12)","v":""}]
[null,"Podpis žadatele","Klient1_pod",{"$f":"IF(OR(Zadost!C9=pomocne!B12,Zadost!C9=pomocne!B13,Zadost!C9=pomocne!B16,Zadost!C9=pomocne!B17,Zadost!C9=pomocne!B20,Zadost!C9=pomocne!B29),CONCATENATE(Zadost!F9,\" \",Zadost!I9,\", \",Zadost!C9),CONCATENATE(Zadost!C9,\" \",Zadost!F9,\" \",Zadost!I9))","v":"  "},"Zadost"]
[null,"Podpis spolužadatele","Klient2_pod",{"$f":"IF(OR(Zadost!C52=pomocne!B12,Zadost!C52=pomocne!B13,Zadost!C52=pomocne!B16,Zadost!C52=pomocne!B17,Zadost!C52=pomocne!B20,Zadost!C52=pomocne!B29),CONCATENATE(Zadost!F52,\" \",Zadost!I52,\", \",Zadost!C52),CONCATENATE(Zadost!C52,\" \",Zadost!F52,\" \",Zadost!I52))","v":"  "},"Zadost"]
[null,"Podpis zprostředkovatele","Zprostredkovatel_pod",{"$f":"IF(Zprostredkovani!C9=\"\",\"\",Zprostredkovani!C9)","v":""}]
[]
[null,"prostor do podpisu","podpis","                                       "]

{"sheet":"Changelog","index":7,"n_rows":11,"n_cols":6,"rows_kept":11,"cut":false,"hidden":false,"merged":[]}
[]
[null,"Datum","Jméno","Verze vývoj","Úprava","Verze nasazena jako"]
[null,"2024-03-27","KPE","Kalkule_rdparty_v2.09","- všechny sazby na 5,9%","kalksu_v1.6"]
[null,"2022-04-07","KPE","Kalkule_rdparty_v2.08","- nejvyšší sazba na 6,9%","kalksu_v1.5"]
[null,"2022-04-07","KPE","Kalkule_rdparty_v2.07","- nejvyšší sazba na 5,5%","kalksu_v1.4"]
[null,"2022-03-21","KPE","Kalkule_rdparty_v2.06","- všechny sazby kromě nejvyšší na 5,9%","kalksu_v1.3"]
[null,"2020-12-14","TTO","Kalkule_rdparty_v2.05","- upraven odkaz na kalkulačku DP","kalksu_v1.2"]
[null,"2020-12-14","TTO","Kalkule_rdparty_v2.04","- všechny sazby kromě nejvyšší na 4,9%","kalksu_v1.1"]
[null,"2020-07-17","TTO","Kalkule_rdparty_v2.03","- upravena hranice pro sazbu 3,8 %","kalksu_v1.0"]
[null,"2020-04-13","TTO","Kalkule_rdparty_v2.02","- přidány odkazy na kalkulačku DP do nadpusu příjmů z podnikání\n- úprava textací","kalksu_v1.0"]
[null,"2020-04-13","TTO","Kalkule_rdparty_v2.01","- dopočet úrokové sazby dle výše úvěru\n- Upravena textace několika polí\n- nastaven poplatek u osobního úvěru na 490","kalksu_v1.0"]

{"sheet":"pomocne","index":8,"n_rows":724,"n_cols":45,"rows_kept":724,"cut":false,"hidden":true,"merged":[[59,1,59,5],[59,8,59,12]]}
["Informace pro seznamy",null,null,null,null,null,null,null,null,null,null,null,null,null,null,null,null,null,null,"Výpočet anuity",null,null,null,"Výpočet anuity",null,null,null,null,null,null,null,null,"Výpočet RPSN"]
[null,"titul","pohlaví","stav",null,null,"produkt","maturita","sazba","poplatek za sjednání","výpis BU",null,"děti","ANO/NE",null,null,null,null,null,"Celková výše úvěru",{"$f":"Limit!F9","v":0},null,null,null,null,"Celkem",{"$f":"SUM(AA4:AA301)","v":0},{"$f":"SUM(AB4:AB301)","v":0},{"$f":"SUM(AC4:AC301)","v":{"$error":"#VALUE!"}},null,null,null,"Celková výše úvěru",{"$f":"U2","v":0},null,null,"Výpočet RPSN"]
[null,null,null,null,null,null,null,null,null,null,null,null,null,null,null,null,null,null,null,"Úrok ",{"$f":"IFERROR(IF(Limit!F9=\"\",\"\",InterestRate(Limit!F9)),\"\")","v":""},null,null,null,"Platba","Datum splátky","Výše splátky","Z toho jistina","Z toho úrok","Zůstatek jistiny",null,null,"Úrok ","",null,null,null,"Platba","Datum platby","Typ platby","Výše úhrady","Dnů od čerpání","Dnů v roce","Část roku","Disk CF"]
["PŘED","Akad.","Muž","Svobodný(á)",null,null,"Osobní úvěr",1,3.7999999999999999E-2,0,0,null,0,"Ano",null,null,null,null,null,"Počet splátek",{"$f":"Limit!I9*12","v":0},null,null,0,0,null,null,null,null,{"$f":"U2","v":0},null,null,"Počet anuitní splátek",0,null,null,0,0,{"$f":"AH6","v":"2024-06-10"},"čerpání",{"$f":"-AH2","v":0},{"$f":"AM4-$AM$4","v":0},{"$f":"IF(OR(MOD(YEAR(AM4),400)=0,AND(MOD(YEAR(AM4),4)=0,MOD(YEAR(AM4),100)<>0)),366,365)","v":366},{"$f":"AP4/AQ4","v":0},{"$f":"AO4/(1+$AH$18)^AR4","v":0}]
["PŘED","Akad. arch.","Žena","Ženatý(á)",null,null,"Optimální půjčka",2,4.9000000000000002E-2,490,20,null,1,"Ne",null,null,null,null,null,"Datum podpisu smlouvy",{"$f":"TODAY()","v":"2024-06-10"},null,null,1,{"$f":"IF($U$4>=X5,X5,\"\")","v":""},{"$f":"IF(Y5=\"\",\"\",U10)","v":""},{"$f":"IF(Y5=\"\",\"\",AC5)","v":""},{"$f":"IF(Y5=\"\",\"\",AA5-AC5)","v":""},{"$f":"U2*U3/360*U15","v":{"$error":"#VALUE!"}},{"$f":"AD4-AB5","v":{"$error":"#VALUE!"}},null,null,"Datum podpisu smlouvy","2024-06-10",null,null,1,0,{"$f":"AH6","v":"2024-06-10"},"jednorázové poplatky",{"$f":"IF(AT5=\"Ano\",0,AH12)","v":490},{"$f":"AM5-$AM$4","v":0},{"$f":"IF(OR(MOD(YEAR(AM5),400)=0,AND(MOD(YEAR(AM5),4)=0,MOD(YEAR(AM5),100)<>0)),366,365)","v":366},{"$f":"AP5/AQ5","v":0},{"$f":"IF(AL5=\"\",\"\",AO5/(1+$AH$18)^AR5)","v":490}]
["PŘED","Akad. mal.",null,"Rozvedený(á)",null,null,null,3,6.9000000000000006E-2,null,null,null,2,null,null,null,null,null,null,"Datum započetí čerpání",{"$f":"TODAY()","v":"2024-06-10"},null,null,2,{"$f":"IF($U$4>=X6,X6,\"\")","v":""},{"$f":"IF(Y6=\"\",\"\",EDATE($Z$5,Y5))","v":""},{"$f":"IF(Y6=\"\",\"\",IF(Y6=$U$4,AD5+AC6,IF(Z6>=$U$12,$U$17,AC6)))","v":""},"",{"$f":"IF(Y6=\"\",\"\",(AD4*$U$3/12))","v":""},{"$f":"IF(Y6=\"\",\"\",AD5-AB6)","v":""},null,null,"Datum započetí čerpání","2024-06-10",null,null,2,1,{"$f":"Z5","v":""},"platba splátky",{"$f":"IF(AT5=\"Ano\",0,AA5)","v":""},{"$f":"AM6-$AM$4","v":{"$error":"#VALUE!"}},{"$f":"IF(OR(MOD(YEAR(AM6),400)=0,AND(MOD(YEAR(AM6),4)=0,MOD(YEAR(AM6),100)<>0)),366,365)","v":{"$error":"#VALUE!"}},{"$f":"AP6/AQ6","v":{"$error":"#VALUE!"}},{"$error":"#VALUE!"}]
["PŘED","Akad. soch.",null,"Vdovec/vdova",null,null,{"$f":"Limit!C9","v":0},5,8.8999999999999996E-2,null,null,null,3,null,null,null,null,null,null,"Datum dočerpání",{"$f":"TODAY()","v":"2024-06-10"},null,null,3,{"$f":"IF($U$4>=X7,X7,\"\")","v":""},"",{"$f":"IF(Y7=\"\",\"\",IF(Y7=$U$4,AD6+AC7,IF(Z7>=$U$12,$U$17,AC7)))","v":""},"",{"$f":"IF(Y7=\"\",\"\",(AD6*$U$3/12))","v":""},"",null,null,"Datum dočerpání","2024-06-10",null,null,3,{"$f":"IF($AH$13=0,IF($AH$4>=AK6,AK6,\"\"),IF($AH$11>=AK6,AK6,\"\"))","v":""},{"$f":"IF(AL7=\"\",\"\",IF($AH$13=0,EDATE(AM6,1),IF(ISEVEN(AL7)=TRUE,EOMONTH(AM6,0),EDATE(CONCATENATE(DAY($AH$8),\".\",MONTH(AM6),\".\",YEAR(AM6)),1))))","v":""},{"$f":"IF(AL7=\"\",\"\",IF(DAY(AM7)=DAY($AH$8),\"platba splátky\",\"platba poplatků\"))","v":""},{"$f":"IF(AL7=\"\",\"\",IF(AT7=\"Ano\",0,IF(AN7=\"platba splátky\",VLOOKUP(AM7,Z:AA,2,FALSE),$AH$13)))","v":""},{"$f":"IF(AL7=\"\",\"\",AM7-$AM$4)","v":""},{"$f":"IF(AL7=\"\",\"\",IF(OR(MOD(YEAR(AM7),400)=0,AND(MOD(YEAR(AM7),4)=0,MOD(YEAR(AM7),100)<>0)),366,365))","v":""},{"$f":"IF(AL7=\"\",\"\",AP7/AQ7)","v":""},""]
["PŘED","Arch.",null,"Druh/družka",null,null,null,6,0.109,null,null,null,4,null,null,null,null,null,null,"Den pro splácení","20.",null,null,4,"","","","","","",null,null,"Datum první splátky",{"$f":"U10","v":"20.06.2024"},null,null,4,"","","","","",{"$f":"IF(AL8=\"\",\"\",IF(OR(MOD(YEAR(AM8),400)=0,AND(MOD(YEAR(AM8),4)=0,MOD(YEAR(AM8),100)<>0)),366,365))","v":""},{"$f":"IF(AL8=\"\",\"\",AP8/AQ8)","v":""},""]
["PŘED","Bc.",null,"Registrovaný partner(ka)",null,null,null,7,0.129,null,null,null,5,null,null,null,null,null,null,"Celková splatná částka",null,null,null,5,"","","","","","",null,null,"Datum poslední splátky",{"$f":"VLOOKUP(AH4,AL:AM,2,FALSE)","v":"2024-06-10"},null,null,5,"","","","","","","",""]
["PŘED","BcA",null,null,null,null,null,8,null,null,null,null,6,null,null,null,null,null,null,"Datum první úrokové splátky",{"$f":"IF(MONTH(U5)>9,\n\nIF(DAY(U5)<20,CONCATENATE(20,\".\",MONTH(U5),\".\",YEAR(U5)),EDATE(CONCATENATE(20,\".\",MONTH(U5),\".\",YEAR(U5)),1)),\n\nIF(DAY(U5)<20,CONCATENATE(20,\".0\",MONTH(U5),\".\",YEAR(U5)),EDATE(CONCATENATE(20,\".0\",MONTH(U5),\".\",YEAR(U5)),1)))","v":"20.06.2024"},null,null,6,"","","","","","",null,null,"Datum posledního poplatku",{"$f":"IF(AH13=0,\"-\",IF(AH14=\"bude účtován\",EOMONTH(AH9,0),EOMONTH(AH9,-1)))","v":"-"},null,null,6,"","","","","","","",""]
["PŘED","BcA.",null,null,null,null,null,null,null,null,"OKEČ",null,null,null,"Ostatní příimy",null,null,null,null,"Datum poslední splátky úroků",{"$f":"IF(MONTH(U5)>9,\n\nIF(DAY(U5)<20,CONCATENATE(20,\".\",MONTH(U5),\".\",YEAR(U5)),EDATE(CONCATENATE(20,\".\",MONTH(U5),\".\",YEAR(U5)),1)),\n\nIF(DAY(U5)<20,CONCATENATE(20,\".0\",MONTH(U5),\".\",YEAR(U5)),EDATE(CONCATENATE(20,\".0\",MONTH(U5),\".\",YEAR(U5)),1)))","v":"20.06.2024"},null,null,7,"","","","","","",null,null,"Údaje pro výpočet RPSN - doplnit",{"$f":"IF(AH14=\"bude účtován\",AH4*2,AH4*2-1)","v":-1},null,null,7,"","","","","","","",""]
["ZA","CSc.",null,null,null,null,null,"Počet konsolidovaných",null,null,null,null,null,null,null,null,null,null,null,"Datum první anuitní splátky",{"$f":"EDATE(U11,1)","v":"2024-07-20"},null,null,8,"","","","","","",null,null,"Poplatek za zpracování žádosti",490,null,null,8,"","","","","","","",""]
["Za","DiS.",null,null,null,null,null,null,null,null,"Zemědělství, lesnictví, rybolov",null,null,null,"Z pronájmu nemovitosti ",null,null,null,null,"Počet anuitních splátek",{"$f":"U4-(DATEDIF(U10,U11,\"m\")+1)","v":-1},null,null,9,"","","","","","",null,null,"Pravidelné měsiční poplatky",0,null,null,9,"","","","","","","",""]
["PŘED","doc.",null,"Vzdělání",null,null,null,1,null,null,"Těžba a zpracování nerostných surovin",null,null,null,"Spolupracující osoby FOP",null,null,null,null,null,null,null,null,10,"","","","","","",null,null,"Poslední pravidelný poplatek","nebude účtován",null,null,10,"","","","","","","",""]
["PŘED","Dr.",null,null,null,null,null,2,null,null,"Potravinářská výroba",null,null,null,"Ostatní prokazatelné příjmy ",null,null,null,null,"Počet dní do první splátky",{"$f":"DAYS360(U5,U10)","v":10},null,null,11,"","","","","","",null,null,null,null,null,null,11,"","","","","","","",""]
["ZA","dr.h.c.",null,"Základní škola",null,null,null,3,null,null,"Textilní a kožedělný průmysl",null,null,null,"Skupina doplňkových příjmů ",null,null,null,null,"Vzorec",{"$f":"U2*(1+U3/12)^U13*(1+U3/12-1)/((1+U3/12)^U13-1)","v":{"$error":"#VALUE!"}},null,null,12,"","","","","","",null,null,"Celková splatná částka",{"$f":"SUM(AO5:AO724)","v":490},null,null,12,"","","","","","","",""]
["ZA","DrSc.",null,"Střední škola",null,null,null,4,null,null,"Dřevařský a papírenský průmysl",null,null,null,null,null,null,null,null,"KB výše anuitní splátky",{"$f":"IF(U4=0,\"\",CEILING(U16,1))","v":""},null,null,13,"","","","","","",null,null,"Součet pro iteraci",{"$f":"SUM(AS4:AS1000)","v":{"$error":"#VALUE!"}},null,null,13,"","","","","","","",""]
["PŘED","Ing.",null,"Střední škola s maturitou, VOS",null,null,null,5,null,null,"Tiskařský a polygrafický průmysl",null,null,null,null,null,null,null,null,"Výše poslední splátky",{"$f":"VLOOKUP(U4,Y:AA,3,FALSE)","v":0},null,null,14,"","","","","","",null,null,"RPSN ",5.0611865420747165E-2,null,null,14,"","","","","","","",""]
["PŘED","JUDr.",null,"VŠ - bakalářské studium",null,null,null,6,null,null,"Chemický a farmaceutický průmysl",null,null,null,null,null,null,null,null,"Rozdíl mezi splátkami",{"$f":"U17-U18","v":{"$error":"#VALUE!"}},null,null,15,"","","","","","",null,null,null,null,null,null,15,"","","","","","","",""]
["Za","M.B.A.",null,"VŠ - inženýrské, magisterské studium",null,null,null,7,null,null,"Hutnictví, kovovýroba",null,null,null,null,null,null,null,null,null,null,null,null,16,"","","","","","",null,null,null,null,null,null,16,"","","","","","","",""]
["PŘED","MDDr.",null,"VŠ - doktorandské studium nebo více ukončených VŠ studií nižšího stupně",null,null,null,8,null,null,"Strojírenství",null,null,null,null,null,null,null,null,null,null,null,null,17,"","","","","","",null,null,null,null,null,null,17,"","","","","","","",""]
["PŘED","Mg.A",null,null,null,null,null,null,null,null,"Elektrotechnický průmysl",null,null,null,null,null,null,null,null,null,null,null,null,18,"","","","","","",null,null,null,null,null,null,18,"","","","","","","",""]
["PŘED","MgA.",null,"Počet klientů",null,null,"Zajištění úvěru",null,"Typ závislé činnosti",null,"Ostatní zpracovatelký průmysl",null,null,null,null,null,null,null,null,null,null,null,null,19,"","","","","","",null,null,null,null,null,null,19,"","","","","","","",""]
["PŘED","Mgr.",null,null,null,null,null,null,null,null,"Výroba a rozvod elektřiny, plynu a vody",null,null,null,null,null,null,null,null,null,null,null,null,20,"","","","","","",null,null,null,null,null,null,20,"","","","","","","",""]
["PŘED","MUDr.",null,"Bez spolužadatele",null,null,"Bez zajištění",null,"Ze závislé činnosti",null,"Stavebnictví",null,null,null,null,null,null,null,null,null,null,null,null,21,"","","","","","",null,null,null,null,null,null,21,"","","","","","","",""]
["PŘED","MVDr.",null,"Se spolužadatelem",null,null,"Ručením třetí osoby",null,"Z funkčních požitků",null,"Prodej a údržba motorových vozidel",null,null,null,null,null,null,null,null,null,null,null,null,22,"","","","","","",null,null,null,null,null,null,22,"","","","","","","",""]
["PŘED","PaedDr.",null,null,null,null,null,null,null,null,"Velkoobchod, maloobchod",null,null,null,null,null,null,null,null,null,null,null,null,23,"","","","","","",null,null,null,null,null,null,23,"","","","","","","",""]
["PŘED","PharmDr.",null,null,null,null,null,null,null,null,"Služby",null,null,null,"Počet splátek",null,null,null,null,null,null,null,null,24,"","","","","","",null,null,null,null,null,null,24,"","","","","","","",""]
["Za","Ph.D.",null,"Typ bydlení",null,null,"Vypořádání majetku po rozvodu",null,"Upravení SJM",null,"Pohostinství, ubytování",null,null,null,null,null,null,null,null,null,null,null,null,25,"","","","","","",null,null,null,null,null,null,25,"","","","","","","",""]
["PŘED","PhDr.",null,null,null,null,null,null,null,null,"Doprava",null,null,null,1,null,null,null,null,null,null,null,null,26,"","","","","","",null,null,null,null,null,null,26,"","","","","",{"$f":"IF(AL30=\"\",\"\",IF(OR(MOD(YEAR(AM30),400)=0,AND(MOD(YEAR(AM30),4)=0,MOD(YEAR(AM30),100)<>0)),366,365))","v":""},{"$f":"IF(AL30=\"\",\"\",AP30/AQ30)","v":""},""]
["PŘED","PhMr.",null,"Vlastník domu/bytu",null,null,"Vypořádání po rozvodu ukončeno",null,"Zúžení SJM nepřipadá v úvahu",null,"Telekomunikace, spoje",null,null,null,2,null,null,null,null,null,null,null,null,27,"","","","","","",null,null,null,null,null,null,27,"","","","","","","",""]
["PŘED","prof.",null,"Družstevní",null,null,"Vypořádání po rozvodu neukončeno",null,"SJM zrušeno/zúženo",null,"Školství, výzkum, státní zpráva, kultura",null,null,null,3,null,null,null,null,null,null,null,null,28,"","","","","","",null,null,null,null,null,null,28,"","","","","","","",""]
["PŘED","prom. fil.",null,"Nájemník",null,null,"Vypořádání po rozvodu nepřipadá v úvahu",null,"SJM nezúženo",null,"Zdravotnictví",null,null,null,4,null,null,null,null,null,null,null,null,29,"","","","","","",null,null,null,null,null,null,29,"","","","","","","",""]
["PŘED","prom. mat.",null,"Bydlení u rodičů",null,null,null,null,null,null,"Peněžnictví, pojišťovnictví",null,null,null,5,null,null,null,null,null,null,null,null,30,"","","","","","",null,null,null,null,null,null,30,"","","","","","","",""]
["PŘED","prom. ped.",null,"Ostatní",null,null,"Prohlášení",null,null,null,"Ostatní činnosti",null,null,null,6,null,null,null,null,null,null,null,null,31,"","","","","","",null,null,null,null,null,null,31,"","","","","","","",""]
["PŘED","RNDr.",null,null,null,null,null,null,null,null,null,null,null,null,7,null,null,null,null,null,null,null,null,32,"","","","","","",null,null,null,null,null,null,32,"","","","","","","",""]
["PŘED","RSDr.",null,null,null,null,"jsem","Jsem","disponuji","zastávám",null,null,null,null,8,null,null,null,null,null,null,null,null,33,"","","","","","",null,null,null,null,null,null,33,"","","","","","","",""]
["PŘED","ThDr.",null,null,null,null,"nejsem","Nejsem","nedisponuji","nezastávám",null,null,null,null,9,null,null,null,null,null,null,null,null,34,"","","","","","",null,null,null,null,null,null,34,"","","","","","","",""]
["PŘED","ThLic",null,null,null,null,null,null,null,null,null,null,null,null,10,null,null,null,null,null,null,null,null,35,"","","","","","",null,null,null,null,null,null,35,"","","","","","","",""]
[null,null,null,null,null,null,null,null,null,null,null,null,null,null,null,null,null,null,null,null,null,null,null,36,"","","","","","",null,null,null,null,null,null,36,"","","","","",{"$f":"IF(AL40=\"\",\"\",IF(OR(MOD(YEAR(AM40),400)=0,AND(MOD(YEAR(AM40),4)=0,MOD(YEAR(AM40),100)<>0)),366,365))","v":""},{"$f":"IF(AL40=\"\",\"\",AP40/AQ40)","v":""},""]
[null,null,null,null,null,null,null,null,null,null,null,null,null,null,null,null,null,null,null,null,null,null,null,37,"","","","","","",null,null,null,null,null,null,37,"","","","","","","",""]
["Kontroly",null,null,null,null,null,null,null,null,null,null,null,null,null,null,null,null,null,null,null,null,null,null,38,"","","","","","",null,null,null,null,null,null,38,"","","","","","","",""]
[null,null,null,null,null,null,null,null,null,null,null,null,null,null,null,null,null,null,null,null,null,null,null,39,"","","","","","",null,null,null,null,null,null,39,"","","","","","","",""]
[null,"Splátkový kalendář - vyplněno",null,"Modelace úvěru - výpočet",null,null,"Nevybrán produklt",null,null,"ZPROSTREDKOVANI - nevyplněno",null,null,null,null,null,null,null,null,null,null,null,null,null,40,"","","","","","",null,null,null,null,null,null,40,"","","","","","","",""]
[null,{"$f":"IF(Limit!C9=\"\",1,0)+IF((OR(Limit!F9=\"\",Limit!F9=0)),1,0)+IF((OR(Limit!I9=\"\",Limit!I9=0)),1,0)+IF(Limit!L9=\"\",1,0)","v":4},null,{"$f":"IF(Limit!C9=\"\",1,0)+IF((OR(Limit!F9=\"\",Limit!F9=0)),1,0)+IF((OR(Limit!I9=\"\",Limit!I9=0)),1,0)+IF(Limit!L9=\"\",1,0)","v":4},null,null,{"$f":"IF(OR(Limit!C9=\"\",Limit!C12=\"\"),0,1)","v":0},null,null,{"$f":"IF(OR(Zprostredkovani!C9=\"\",Zprostredkovani!H9=\"\",Zprostredkovani!M9=\"\",Zprostredkovani!C12=\"\",Zprostredkovani!H12=\"\"),0,1)","v":0},null,null,null,null,null,null,null,null,null,null,null,null,null,41,"","","","","","",null,null,null,null,null,null,41,"","","","","","","",""]
[null,null,null,null,null,null,null,null,null,null,null,null,null,null,null,null,null,null,null,null,null,null,null,42,"","","","","","",null,null,null,null,null,null,42,"","","","","","","",""]
[null,"Počítat DTI/DSTI",null,"Modelace úvěru - nulové příjmy",null,null,null,null,null,null,null,null,null,null,null,null,null,null,null,null,null,null,null,43,"","","","","","",null,null,null,null,null,null,43,"","","","","","","",""]
[null,{"$f":"IF(OR(Limit!C57-Limit!C60>0,Limit!C41-Limit!C44>0),1,0)","v":0},null,{"$f":"IF(C76=0,1,0)","v":1},null,null,null,null,null,null,null,null,null,null,null,null,null,null,null,null,null,null,null,44,"","","","","","",null,null,null,null,null,null,44,"","","","","","","",""]
[null,null,null,null,null,null,null,null,null,null,null,null,null,null,null,null,null,null,null,null,null,null,null,45,"","","","","","",null,null,null,null,null,null,45,"","","","","","","",""]
[null,null,null,null,null,null,null,null,null,null,null,null,null,null,null,null,null,null,null,null,null,null,null,46,"","","","","","",null,null,null,null,null,null,46,"","","","","","","",""]
[null,"Nevyplněn příjem - pokračovat na žádost",null,null,"Nevyplněny výdaje - pokračovat na žádost",null,null,null,null,null,null,null,null,null,null,null,null,null,null,null,null,null,null,47,"","","","","","",null,null,null,null,null,null,47,"","","","","","","",""]
[null,{"$f":"IF(OR((Limit!C19+Limit!F19+Limit!I19+Limit!C24+Limit!F24+Limit!I24)=0,(Limit!C19+Limit!F19+Limit!I19+Limit!C24+Limit!F24+Limit!I24)=\"\"),0,1)","v":0},null,null,{"$f":"IF(OR((Limit!C31+Limit!F31+Limit!I31+Limit!L31+Limit!C34+Limit!F34+Limit!I34)=0,(Limit!C31+Limit!F31+Limit!I31+Limit!L31+Limit!C34+Limit!F34+Limit!I34)=\"\"),0,1)","v":0},null,null,null,null,null,null,null,null,null,null,null,null,null,null,null,null,null,null,48,"","","","","","",null,null,null,null,null,null,48,"","","","","","","",""]
[null,null,null,null,null,null,null,null,null,null,null,null,null,null,null,null,null,null,null,null,null,null,null,49,"","","","","","",null,null,null,null,null,null,49,"","","","","","","",""]
[null,"Nevyplněny úvěry - pokračovat na žádost",null,null,null,null,null,null,null,null,null,null,null,null,null,null,null,null,null,null,null,null,null,50,"","","","","","",null,null,null,null,null,null,50,"","","","","","","",""]
[null,{"$f":"IF(OR((Limit!C57+Limit!F57+Limit!I57+Limit!L57+Limit!C63+Limit!F63+Limit!C41+Limit!F41+Limit!I41+Limit!L41+Limit!C47+Limit!F47)=0,(Limit!C57+Limit!F57+Limit!I57+Limit!L57+Limit!C63+Limit!F63+Limit!C41+Limit!F41+Limit!I41+Limit!L41+Limit!C47+Limit!F47)=\"\"),0,1)","v":0},null,null,null,null,null,null,null,null,null,null,null,null,null,null,null,null,null,null,null,null,null,51,"","","","","","",null,null,null,null,null,null,51,"","","","","","","",""]
[null,null,null,null,null,null,null,null,null,null,null,null,null,null,null,null,null,null,null,null,null,null,null,52,"","","","","","",null,null,null,null,null,null,52,"","","","","","","",""]
[null,null,null,null,null,null,null,null,null,null,null,null,null,null,null,null,null,null,null,null,null,null,null,53,"","","","","","",null,null,null,null,null,null,53,"","","","","","","",""]
[null,null,null,null,null,null,null,null,null,null,null,null,null,null,null,null,null,null,null,null,null,null,null,54,"","","","","","",null,null,null,null,null,null,54,"","","","","","","",""]
["Vstup do FRMs",null,null,null,null,null,null,null,null,null,null,null,null,null,null,null,null,null,null,null,null,null,null,55,"","","","","","",null,null,null,null,null,null,55,"","","","","","","",""]
[null,"Pro FRM",null,null,null,null,null,null,"Výpočty",null,null,null,null,null,null,null,null,null,null,null,null,null,null,56,"","","","","","",null,null,null,null,null,null,56,"","","","","","","",""]
[null,"FRM2",null,null,"FRM1",null,null,null,"FRM2",null,null,"FRM1",null,null,null,null,null,null,null,null,null,null,null,57,"","","","","","",null,null,null,null,null,null,57,"","","","","","","",""]
[null,"Celková výše úvěru",2232323,null,"Celková výše úvěru","2 232 323",null,null,"Celková výše úvěru",{"$f":"Limit!F9","v":0},null,"Celková výše úvěru",{"$f":"Limit!F9","v":0},null,null,null,null,null,null,null,null,null,null,58,"","","","","","",null,null,null,null,null,null,58,"","","","","","","",""]
[null,"Doba splácení",10,null,"Doba splácení","10 roky/let",null,null,"Doba splácení",{"$f":"Limit!I9","v":0},null,"Doba splácení",{"$f":"Limit!I9","v":0},null,null,null,null,null,null,null,null,null,null,59,"","","","","","",null,null,null,null,null,null,59,"","","","","","","",""]
[null,"Úroková sazba",8.8999999999999996E-2,null,"Úroková sazba","  8,9 %",null,null,"Úroková sazba",{"$f":"Limit!L9","v":""},null,"Úroková sazba",{"$f":"Limit!L9","v":""},null,null,null,null,null,null,null,null,null,null,60,"","","","","","",null,null,null,null,null,null,60,"","","","","","","",""]
[null,"Maximální výše úvěru",2500000,null,"Maximální výše úvěru","2 500 000",null,null,"Maximální výše úvěru",{"$f":"C80","v":0},null,"Maximální výše úvěru",{"$f":"C80","v":0},null,null,null,null,null,null,null,null,null,null,61,"","","","","","",null,null,null,null,null,null,61,"","","","","","","",""]
[null,"Disponibilní limit",1861306,null,"Disponibilní limit","1 861 306",null,null,"Disponibilní limit",{"$f":"C79","v":0},null,"Disponibilní limit",{"$f":"C79","v":0},null,null,null,null,null,null,null,null,null,null,62,"","","","","","",null,null,null,null,null,null,62,"","","","","","","",""]
[null,"RPSN",9.2799999999999994,null,"RPSN",9.2799999999999994,null,null,"RPSN",{"$f":"ROUNDUP(Splatkovy_kalendar!D10,4)*100","v":5.07},null,"RPSN",{"$f":"ROUNDUP(Splatkovy_kalendar!D10,4)*100","v":5.07},null,null,null,null,null,null,null,null,null,null,63,"","","","","","",null,null,null,null,null,null,63,"","","","","","","",""]
[null,"DTI",0.06,null,null,null,null,null,"DTI",{"$f":"C83","v":0},null,null,null,null,null,null,null,null,null,null,null,null,null,64,"","","","","","",null,null,null,null,null,null,64,"","","","","","","",""]
[null,"DSTI",0.01,null,null,null,null,null,"DSTI",{"$f":"C82","v":0},null,null,null,null,null,null,null,null,null,null,null,null,null,65,"","","",{"$f":"IF(Y69=\"\",\"\",AA69-AC69)","v":""},"","",null,null,null,null,null,null,65,"","","","","","","",{"$f":"IF(AL69=\"\",\"\",AO69/(1+$AH$18)^AR69)","v":""}]
[null,null,null,null,null,null,null,null,null,null,null,null,null,null,null,null,null,null,null,null,null,null,null,66,"",{"$f":"IF(Y70=\"\",\"\",EDATE($Z$5,Y69))","v":""},{"$f":"IF(Y70=\"\",\"\",IF(Y70=$U$4,AD69+AC70,IF(Z70>=$U$12,$U$17,AC70)))","v":""},"","",{"$f":"IF(Y70=\"\",\"\",AD69-AB70)","v":""},null,null,null,null,null,null,66,"","","","","","","",""]
[null,null,null,null,null,null,null,null,null,null,null,null,null,null,null,null,null,null,null,null,null,null,null,67,{"$f":"IF($U$4>=X71,X71,\"\")","v":""},"","","",{"$f":"IF(Y71=\"\",\"\",(AD70*$U$3/12))","v":""},"",null,null,null,null,null,null,67,{"$f":"IF($AH$13=0,IF($AH$4>=AK70,AK70,\"\"),IF($AH$11>=AK70,AK70,\"\"))","v":""},{"$f":"IF(AL71=\"\",\"\",IF($AH$13=0,EDATE(AM70,1),IF(ISEVEN(AL71)=TRUE,EOMONTH(AM70,0),EDATE(CONCATENATE(DAY($AH$8),\".\",MONTH(AM70),\".\",YEAR(AM70)),1))))","v":""},{"$f":"IF(AL71=\"\",\"\",IF(DAY(AM71)=DAY($AH$8),\"platba splátky\",\"platba poplatků\"))","v":""},{"$f":"IF(AL71=\"\",\"\",IF(AT71=\"Ano\",0,IF(AN71=\"platba splátky\",VLOOKUP(AM71,Z:AA,2,FALSE),$AH$13)))","v":""},{"$f":"IF(AL71=\"\",\"\",AM71-$AM$4)","v":""},"","",""]
[null,null,null,null,null,null,null,null,null,null,null,null,null,null,null,null,null,null,null,null,null,null,null,68,"","","","","","",null,null,null,null,null,null,68,"","","","","","","",""]
[null,null,null,null,null,null,null,null,null,null,null,null,null,null,null,null,null,null,null,null,null,null,null,69,"","","","","","",null,null,null,null,null,null,69,"","","","","","","",""]
["Funkce",null,null,null,null,null,null,null,null,null,null,null,null,null,null,null,null,null,null,null,null,null,null,70,"","","","","","",null,null,null,null,null,null,70,"","","","","","","",""]
[null,null,null,null,null,null,null,null,null,null,null,null,null,null,null,null,null,null,null,null,null,null,null,71,"","","","","","",null,null,null,null,null,null,71,"","","","","","","",""]
[null,"INCOME",{"$f":"IFERROR(INCOME(Limit!C19,Limit!F19,Limit!I19,Limit!C24,Limit!F24,Limit!I24),0)","v":0},null,null,null,null,null,null,null,null,null,null,null,null,null,null,null,null,null,null,null,null,72,"","","","","","",null,null,null,null,null,null,72,"","","","","","","",""]
[null,"COST_WO_INST_1M",{"$f":"IFERROR(COST_WO_INST_1M(Limit!C12,Limit!F34,Limit!I34,Limit!C31,Limit!L31,Limit!C34,Limit!F31),0)","v":6500},null,null,null,null,null,null,null,null,null,null,null,null,null,null,null,null,null,null,null,null,73,"","","","","","",null,null,null,null,null,null,73,"","","","","","","",""]
[null,"TOTAL_INST",{"$f":"IFERROR(TOTAL_INST(Limit!C63,Limit!C66,Limit!F63,Limit!F66,Limit!F57,Limit!F60,Limit!L57,Limit!L60,Limit!C47,Limit!C50,Limit!F47,Limit!F50,Limit!F41,Limit!F44,Limit!L41,Limit!L44),0)","v":0},null,null,null,null,null,null,null,null,null,null,null,null,null,null,null,null,null,null,null,null,74,"","","","","","",null,null,null,null,null,null,74,"","","","","","","",""]
[null,"INSTALLMENT_LIMIT",{"$f":"IFERROR(INSTALLMENT_LIMIT(C76,C77,C78),0)","v":0},null,null,null,null,null,null,null,null,null,null,null,null,null,null,null,null,null,null,null,null,75,"","","","","","",null,null,null,null,null,null,75,"","","","","","","",""]
[null,"MAX_AMOUNT",{"$f":"IFERROR(MAX_AMOUNT(C79,C76,Limit!L9,Limit!I9),0)","v":0},null,null,null,null,null,null,null,null,null,null,null,null,null,null,null,null,null,null,null,null,76,"","","","","","",null,null,null,null,null,null,76,"","","","","","","",""]
[null,null,null,null,null,null,null,null,null,null,null,null,null,null,null,null,null,null,null,null,null,null,null,77,"","","","","","",null,null,null,null,null,null,77,"","","","","","","",""]
[null,"DSTI",{"$f":"IFERROR(DSTI(Limit!C63,Limit!C66,Limit!F63,Limit!F66,Limit!F57,Limit!F60,Limit!L57,Limit!L60,Limit!C47,Limit!C50,Limit!F47,Limit!F50,Limit!F41,Limit!F44,Limit!L41,Limit!L44,Limit!I12,C76),0)","v":0},null,null,null,null,null,null,null,null,null,null,null,null,null,null,null,null,null,null,null,null,78,"","","","","","",null,null,null,null,null,null,78,"","","","","","","",""]
[null,"DTI",{"$f":"IFERROR(DTI(Limit!C63,Limit!C66,Limit!F63,Limit!F66,Limit!C57,Limit!C60,Limit!I57,Limit!I60,Limit!C47,Limit!C50,Limit!F47,Limit!F50,Limit!C41,Limit!C44,Limit!I41,Limit!I44,Limit!F9,pomocne!C76),0)","v":0},null,null,null,null,null,null,null,null,null,null,null,null,null,null,null,null,null,null,null,null,79,"","","","","","",null,null,null,null,null,null,79,"","","","","","","",""]
[null,null,null,null,null,null,null,null,null,null,null,null,null,null,null,null,null,null,null,null,null,null,null,80,"","","","","","",null,null,null,null,null,null,80,"","","","","","","",""]
[null,null,null,null,null,null,null,null,null,null,null,null,null,null,null,null,null,null,null,null,null,null,null,81,"","","","","","",null,null,null,null,null,null,81,"","","","","","","",""]
[null,null,null,null,null,null,null,null,null,null,null,null,null,null,null,null,null,null,null,null,null,null,null,82,"","","","","","",null,null,null,null,null,null,82,"","","","","","","",""]
["Informace pro seznamy",null,null,null,null,null,null,null,null,null,null,null,null,null,null,null,null,null,null,null,null,null,null,83,"","","","","","",null,null,null,null,null,null,83,"","","","","","","",""]
[null,null,null,null,null,null,null,null,null,null,null,null,null,null,null,null,null,null,null,null,null,null,null,84,"","","","","","",null,null,null,null,null,null,84,"","","","","","","",""]
[null,null,null,null,null,null,null,null,null,null,null,null,null,null,null,null,null,null,null,null,null,null,null,85,"","","","","","",null,null,null,null,null,null,85,"","","","","","","",""]
[null,null,null,null,null,null,null,null,null,null,null,null,null,null,null,null,null,null,null,null,null,null,null,86,"","","","","","",null,null,null,null,null,null,86,"","","","","","","",""]
[null,"Česká republika",null,null,null,null,null,null,null,null,null,null,null,null,null,null,null,null,null,null,null,null,null,87,"","","","","","",null,null,null,null,null,null,87,"","","","","","","",""]
[null,"Slovensko",null,null,null,null,null,null,null,null,null,null,null,null,null,null,null,null,null,null,null,null,null,88,"","","","","","",null,null,null,null,null,null,88,"","","","","","","",""]
[null,null,null,null,null,null,null,null,null,null,null,null,null,null,null,null,null,null,null,null,null,null,null,89,"","","","","","",null,null,null,null,null,null,89,"","","","","","","",""]
[null,"Afgánistán",null,null,null,null,null,null,null,null,null,null,null,null,null,null,null,null,null,null,null,null,null,90,"","","","","","",null,null,null,null,null,null,90,"","","","","","","",""]
[null,"Albánie",null,null,null,null,null,null,null,null,null,null,null,null,null,null,null,null,null,null,null,null,null,91,"","","","","","",null,null,null,null,null,null,91,"","","","","","","",""]
[null,"Alžírsko",null,null,null,null,null,null,null,null,null,null,null,null,null,null,null,null,null,null,null,null,null,92,"","","","","","",null,null,null,null,null,null,92,"","","","","","","",""]
[null,"Andorra",null,null,null,null,null,null,null,null,null,null,null,null,null,null,null,null,null,null,null,null,null,93,"","","","","","",null,null,null,null,null,null,93,"","","","","","","",""]
[null,"Angola",null,null,null,null,null,null,null,null,null,null,null,null,null,null,null,null,null,null,null,null,null,94,"","","","","","",null,null,null,null,null,null,94,"","","","","","","",""]
[null,"Antigua a Barbuda ",null,null,null,null,null,null,null,null,null,null,null,null,null,null,null,null,null,null,null,null,null,95,"","","","","","",null,null,null,null,null,null,95,"","","","","","","",""]
[null,"Argentina",null,null,null,null,null,null,null,null,null,null,null,null,null,null,null,null,null,null,null,null,null,96,"","","","","","",null,null,null,null,null,null,96,"","","","","","","",""]
[null,"Arménie",null,null,null,null,null,null,null,null,null,null,null,null,null,null,null,null,null,null,null,null,null,97,"","","","","","",null,null,null,null,null,null,97,"","","","","","","",""]
[null,"Austrálie",null,null,null,null,null,null,null,null,null,null,null,null,null,null,null,null,null,null,null,null,null,98,"","","","","","",null,null,null,null,null,null,98,"","","","","","","",""]
[null,"Ázerbardžán",null,null,null,null,null,null,null,null,null,null,null,null,null,null,null,null,null,null,null,null,null,99,"","","","","","",null,null,null,null,null,null,99,"","","","","","","",""]
[null,"Bahamy",null,null,null,null,null,null,null,null,null,null,null,null,null,null,null,null,null,null,null,null,null,100,"","","","","","",null,null,null,null,null,null,100,"","","","","",{"$f":"IF(AL104=\"\",\"\",IF(OR(MOD(YEAR(AM104),400)=0,AND(MOD(YEAR(AM104),4)=0,MOD(YEAR(AM104),100)<>0)),366,365))","v":""},{"$f":"IF(AL104=\"\",\"\",AP104/AQ104)","v":""},""]
[null,"Bahrajn",null,null,null,null,null,null,null,null,null,null,null,null,null,null,null,null,null,null,null,null,null,101,"","","","","","",null,null,null,null,null,null,101,"","","","","","","",""]
[null,"Bangladéš",null,null,null,null,null,null,null,null,null,null,null,null,null,null,null,null,null,null,null,null,null,102,"","","","","","",null,null,null,null,null,null,102,"","","","","","","",""]
[null,"Barbados",null,null,null,null,null,null,null,null,null,null,null,null,null,null,null,null,null,null,null,null,null,103,"","","","","","",null,null,null,null,null,null,103,"","","","","","","",""]
[null,"Belgie",null,null,null,null,null,null,null,null,null,null,null,null,null,null,null,null,null,null,null,null,null,104,"","","","","","",null,null,null,null,null,null,104,"","","","","","","",""]
[null,"Belize",null,null,null,null,null,null,null,null,null,null,null,null,null,null,null,null,null,null,null,null,null,105,"","","","","","",null,null,null,null,null,null,105,"","","","","","","",""]
[null,"Bělorusko",null,null,null,null,null,null,null,null,null,null,null,null,null,null,null,null,null,null,null,null,null,106,"","","","","","",null,null,null,null,null,null,106,"","","","","","","",""]
[null,"Benin",null,null,null,null,null,null,null,null,null,null,null,null,null,null,null,null,null,null,null,null,null,107,"","","","","","",null,null,null,null,null,null,107,"","","","","","","",""]
[null,"Bhútán",null,null,null,null,null,null,null,null,null,null,null,null,null,null,null,null,null,null,null,null,null,108,"","","","","","",null,null,null,null,null,null,108,"","","","","","","",""]
[null,"Bolívie",null,null,null,null,null,null,null,null,null,null,null,null,null,null,null,null,null,null,null,null,null,109,"","","","","","",null,null,null,null,null,null,109,"","","","","","","",""]
[null,"Bosna a Hercegovina",null,null,null,null,null,null,null,null,null,null,null,null,null,null,null,null,null,null,null,null,null,110,"","","","","","",null,null,null,null,null,null,110,"","","","","","","",""]
[null,"Botswana",null,null,null,null,null,null,null,null,null,null,null,null,null,null,null,null,null,null,null,null,null,111,"","","","","","",null,null,null,null,null,null,111,"","","","","","","",""]
[null,"Brazílie",null,null,null,null,null,null,null,null,null,null,null,null,null,null,null,null,null,null,null,null,null,112,"","","","","","",null,null,null,null,null,null,112,"","","","","","","",""]
[null,"Brunej",null,null,null,null,null,null,null,null,null,null,null,null,null,null,null,null,null,null,null,null,null,113,"","","","","","",null,null,null,null,null,null,113,"","","","","","","",""]
[null,"Bulharsko",null,null,null,null,null,null,null,null,null,null,null,null,null,null,null,null,null,null,null,null,null,114,"","","","","","",null,null,null,null,null,null,114,"","","","","","","",""]
[null,"Burkina Faso",null,null,null,null,null,null,null,null,null,null,null,null,null,null,null,null,null,null,null,null,null,115,"","","","","","",null,null,null,null,null,null,115,"","","","","","","",""]
[null,"Burundi",null,null,null,null,null,null,null,null,null,null,null,null,null,null,null,null,null,null,null,null,null,116,"","","","","","",null,null,null,null,null,null,116,"","","","","","","",""]
[null,"Côte d'Ivoire (Pobřeží slonoviny)",null,null,null,null,null,null,null,null,null,null,null,null,null,null,null,null,null,null,null,null,null,117,"","","","","","",null,null,null,null,null,null,117,"","","","","","","",""]
[null,"Čad",null,null,null,null,null,null,null,null,null,null,null,null,null,null,null,null,null,null,null,null,null,118,"","","","","","",null,null,null,null,null,null,118,"","","","","","","",""]
[null,"Čína",null,null,null,null,null,null,null,null,null,null,null,null,null,null,null,null,null,null,null,null,null,119,"","","","","","",null,null,null,null,null,null,119,"","","","","","","",""]
[null,"Dánsko",null,null,null,null,null,null,null,null,null,null,null,null,null,null,null,null,null,null,null,null,null,120,"","","","","","",null,null,null,null,null,null,120,"","","","","","","",""]
[null,"Dominika",null,null,null,null,null,null,null,null,null,null,null,null,null,null,null,null,null,null,null,null,null,121,"","","","","","",null,null,null,null,null,null,121,"","","","","","","",""]
[null,"Dominikánská republika",null,null,null,null,null,null,null,null,null,null,null,null,null,null,null,null,null,null,null,null,null,122,"","","","","","",null,null,null,null,null,null,122,"","","","","","","",""]
[null,"Džibutsko",null,null,null,null,null,null,null,null,null,null,null,null,null,null,null,null,null,null,null,null,null,123,"","","","","","",null,null,null,null,null,null,123,"","","","","","","",""]
[null,"Egypt",null,null,null,null,null,null,null,null,null,null,null,null,null,null,null,null,null,null,null,null,null,124,"","","","","","",null,null,null,null,null,null,124,"","","","","","","",""]
[null,"Ekvádor",null,null,null,null,null,null,null,null,null,null,null,null,null,null,null,null,null,null,null,null,null,125,"","","","","","",null,null,null,null,null,null,125,"","","","","","","",""]
[null,"Eritrea",null,null,null,null,null,null,null,null,null,null,null,null,null,null,null,null,null,null,null,null,null,126,"","","","","","",null,null,null,null,null,null,126,"","","","","","","",""]
[null,"Estonsko",null,null,null,null,null,null,null,null,null,null,null,null,null,null,null,null,null,null,null,null,null,127,"","","","","","",null,null,null,null,null,null,127,"","","","","","","",""]
[null,"Etiopie",null,null,null,null,null,null,null,null,null,null,null,null,null,null,null,null,null,null,null,null,null,128,"","","","","","",null,null,null,null,null,null,128,"","","","","","","",""]
[null,"Fidži",null,null,null,null,null,null,null,null,null,null,null,null,null,null,null,null,null,null,null,null,null,129,"","","",{"$f":"IF(Y133=\"\",\"\",AA133-AC133)","v":""},"","",null,null,null,null,null,null,129,"","","","","","","",{"$f":"IF(AL133=\"\",\"\",AO133/(1+$AH$18)^AR133)","v":""}]
[null,"Filipíny",null,null,null,null,null,null,null,null,null,null,null,null,null,null,null,null,null,null,null,null,null,130,"",{"$f":"IF(Y134=\"\",\"\",EDATE($Z$5,Y133))","v":""},{"$f":"IF(Y134=\"\",\"\",IF(Y134=$U$4,AD133+AC134,IF(Z134>=$U$12,$U$17,AC134)))","v":""},"","",{"$f":"IF(Y134=\"\",\"\",AD133-AB134)","v":""},null,null,null,null,null,null,130,"","","","","","","",""]
[null,"Finsko",null,null,null,null,null,null,null,null,null,null,null,null,null,null,null,null,null,null,null,null,null,131,{"$f":"IF($U$4>=X135,X135,\"\")","v":""},"","","",{"$f":"IF(Y135=\"\",\"\",(AD134*$U$3/12))","v":""},"",null,null,null,null,null,null,131,{"$f":"IF($AH$13=0,IF($AH$4>=AK134,AK134,\"\"),IF($AH$11>=AK134,AK134,\"\"))","v":""},{"$f":"IF(AL135=\"\",\"\",IF($AH$13=0,EDATE(AM134,1),IF(ISEVEN(AL135)=TRUE,EOMONTH(AM134,0),EDATE(CONCATENATE(DAY($AH$8),\".\",MONTH(AM134),\".\",YEAR(AM134)),1))))","v":""},{"$f":"IF(AL135=\"\",\"\",IF(DAY(AM135)=DAY($AH$8),\"platba splátky\",\"platba poplatků\"))","v":""},{"$f":"IF(AL135=\"\",\"\",IF(AT135=\"Ano\",0,IF(AN135=\"platba splátky\",VLOOKUP(AM135,Z:AA,2,FALSE),$AH$13)))","v":""},{"$f":"IF(AL135=\"\",\"\",AM135-$AM$4)","v":""},"","",""]
[null,"Francie",null,null,null,null,null,null,null,null,null,null,null,null,null,null,null,null,null,null,null,null,null,132,"","","","","","",null,null,null,null,null,null,132,"","","","","","","",""]
[null,"Gabon",null,null,null,null,null,null,null,null,null,null,null,null,null,null,null,null,null,null,null,null,null,133,"","","","","","",null,null,null,null,null,null,133,"","","","","","","",""]
[null,"Gambie",null,null,null,null,null,null,null,null,null,null,null,null,null,null,null,null,null,null,null,null,null,134,"","","","","","",null,null,null,null,null,null,134,"","","","","","","",""]
[null,"Ghana",null,null,null,null,null,null,null,null,null,null,null,null,null,null,null,null,null,null,null,null,null,135,"","","","","","",null,null,null,null,null,null,135,"","","","","","","",""]
[null,"Grenada",null,null,null,null,null,null,null,null,null,null,null,null,null,null,null,null,null,null,null,null,null,136,"","","","","","",null,null,null,null,null,null,136,"","","","","","","",""]
[null,"Gruzie",null,null,null,null,null,null,null,null,null,null,null,null,null,null,null,null,null,null,null,null,null,137,"","","","","","",null,null,null,null,null,null,137,"","","","","","","",""]
[null,"Guatemala",null,null,null,null,null,null,null,null,null,null,null,null,null,null,null,null,null,null,null,null,null,138,"","","","","","",null,null,null,null,null,null,138,"","","","","","","",""]
[null,"Guinea",null,null,null,null,null,null,null,null,null,null,null,null,null,null,null,null,null,null,null,null,null,139,"","","","","","",null,null,null,null,null,null,139,"","","","","","","",""]
[null,"Guinea-Bissau",null,null,null,null,null,null,null,null,null,null,null,null,null,null,null,null,null,null,null,null,null,140,"","","","","","",null,null,null,null,null,null,140,"","","","","","","",""]
[null,"Guyana",null,null,null,null,null,null,null,null,null,null,null,null,null,null,null,null,null,null,null,null,null,141,"","","","","","",null,null,null,null,null,null,141,"","","","","","","",""]
[null,"Haiti",null,null,null,null,null,null,null,null,null,null,null,null,null,null,null,null,null,null,null,null,null,142,"","","","","","",null,null,null,null,null,null,142,"","","","","","","",""]
[null,"Honduras",null,null,null,null,null,null,null,null,null,null,null,null,null,null,null,null,null,null,null,null,null,143,"","","","","","",null,null,null,null,null,null,143,"","","","","","","",""]
[null,"Chile",null,null,null,null,null,null,null,null,null,null,null,null,null,null,null,null,null,null,null,null,null,144,"","","","","","",null,null,null,null,null,null,144,"","","","","","","",""]
[null,"Chorvatsko",null,null,null,null,null,null,null,null,null,null,null,null,null,null,null,null,null,null,null,null,null,145,"","","","","","",null,null,null,null,null,null,145,"","","","","","","",""]
[null,"Indie",null,null,null,null,null,null,null,null,null,null,null,null,null,null,null,null,null,null,null,null,null,146,"","","","","","",null,null,null,null,null,null,146,"","","","","","","",""]
[null,"Indonésie",null,null,null,null,null,null,null,null,null,null,null,null,null,null,null,null,null,null,null,null,null,147,"","","","","","",null,null,null,null,null,null,147,"","","","","","","",""]
[null,"Irák",null,null,null,null,null,null,null,null,null,null,null,null,null,null,null,null,null,null,null,null,null,148,"","","","","","",null,null,null,null,null,null,148,"","","","","","","",""]
[null,"Irán",null,null,null,null,null,null,null,null,null,null,null,null,null,null,null,null,null,null,null,null,null,149,"","","","","","",null,null,null,null,null,null,149,"","","","","","","",""]
[null,"Irsko",null,null,null,null,null,null,null,null,null,null,null,null,null,null,null,null,null,null,null,null,null,150,"","","","","","",null,null,null,null,null,null,150,"","","","","","","",""]
[null,"Island",null,null,null,null,null,null,null,null,null,null,null,null,null,null,null,null,null,null,null,null,null,151,"","","","","","",null,null,null,null,null,null,151,"","","","","","","",""]
[null,"Itálie",null,null,null,null,null,null,null,null,null,null,null,null,null,null,null,null,null,null,null,null,null,152,"","","","","","",null,null,null,null,null,null,152,"","","","","","","",""]
[null,"Izrael",null,null,null,null,null,null,null,null,null,null,null,null,null,null,null,null,null,null,null,null,null,153,"","","","","","",null,null,null,null,null,null,153,"","","","","","","",""]
[null,"Jamajka",null,null,null,null,null,null,null,null,null,null,null,null,null,null,null,null,null,null,null,null,null,154,"","","","","","",null,null,null,null,null,null,154,"","","","","","","",""]
[null,"Japonsko",null,null,null,null,null,null,null,null,null,null,null,null,null,null,null,null,null,null,null,null,null,155,"","","","","","",null,null,null,null,null,null,155,"","","","","","","",""]
[null,"Jemen",null,null,null,null,null,null,null,null,null,null,null,null,null,null,null,null,null,null,null,null,null,156,"","","","","","",null,null,null,null,null,null,156,"","","","","","","",""]
[null,"Jižní Afrika",null,null,null,null,null,null,null,null,null,null,null,null,null,null,null,null,null,null,null,null,null,157,"","","","","","",null,null,null,null,null,null,157,"","","","","","","",""]
[null,"Jordánsko",null,null,null,null,null,null,null,null,null,null,null,null,null,null,null,null,null,null,null,null,null,158,"","","","","","",null,null,null,null,null,null,158,"","","","","","","",""]
[null,"Kambodža",null,null,null,null,null,null,null,null,null,null,null,null,null,null,null,null,null,null,null,null,null,159,"","","","","","",null,null,null,null,null,null,159,"","","","","","","",""]
[null,"Kamerun",null,null,null,null,null,null,null,null,null,null,null,null,null,null,null,null,null,null,null,null,null,160,"","","","","","",null,null,null,null,null,null,160,"","","","","","","",""]
[null,"Kanada",null,null,null,null,null,null,null,null,null,null,null,null,null,null,null,null,null,null,null,null,null,161,"","","","","","",null,null,null,null,null,null,161,"","","","","","","",""]
[null,"Kapverdy",null,null,null,null,null,null,null,null,null,null,null,null,null,null,null,null,null,null,null,null,null,162,"","","","","","",null,null,null,null,null,null,162,"","","","","","","",""]
[null,"Katar",null,null,null,null,null,null,null,null,null,null,null,null,null,null,null,null,null,null,null,null,null,163,"","","","","","",null,null,null,null,null,null,163,"","","","","","","",""]
[null,"Kazachstán",null,null,null,null,null,null,null,null,null,null,null,null,null,null,null,null,null,null,null,null,null,164,"","","","","","",null,null,null,null,null,null,164,"","","","","",{"$f":"IF(AL168=\"\",\"\",IF(OR(MOD(YEAR(AM168),400)=0,AND(MOD(YEAR(AM168),4)=0,MOD(YEAR(AM168),100)<>0)),366,365))","v":""},{"$f":"IF(AL168=\"\",\"\",AP168/AQ168)","v":""},""]
[null,"Keňa",null,null,null,null,null,null,null,null,null,null,null,null,null,null,null,null,null,null,null,null,null,165,"","","","","","",null,null,null,null,null,null,165,"","","","","","","",""]
[null,"Kiribati",null,null,null,null,null,null,null,null,null,null,null,null,null,null,null,null,null,null,null,null,null,166,"","","","","","",null,null,null,null,null,null,166,"","","","","","","",""]
[null,"KLDR",null,null,null,null,null,null,null,null,null,null,null,null,null,null,null,null,null,null,null,null,null,167,"","","","","","",null,null,null,null,null,null,167,"","","","","","","",""]
[null,"Kolumbie",null,null,null,null,null,null,null,null,null,null,null,null,null,null,null,null,null,null,null,null,null,168,"","","","","","",null,null,null,null,null,null,168,"","","","","","","",""]
[null,"Komory",null,null,null,null,null,null,null,null,null,null,null,null,null,null,null,null,null,null,null,null,null,169,"","","","","","",null,null,null,null,null,null,169,"","","","","","","",""]
[null,"Konžská demokratická republika",null,null,null,null,null,null,null,null,null,null,null,null,null,null,null,null,null,null,null,null,null,170,"","","","","","",null,null,null,null,null,null,170,"","","","","","","",""]
[null,"Konžská republika",null,null,null,null,null,null,null,null,null,null,null,null,null,null,null,null,null,null,null,null,null,171,"","","","","","",null,null,null,null,null,null,171,"","","","","","","",""]
[null,"Korejská republika",null,null,null,null,null,null,null,null,null,null,null,null,null,null,null,null,null,null,null,null,null,172,"","","","","","",null,null,null,null,null,null,172,"","","","","","","",""]
[null,"Kostarika",null,null,null,null,null,null,null,null,null,null,null,null,null,null,null,null,null,null,null,null,null,173,"","","","","","",null,null,null,null,null,null,173,"","","","","","","",""]
[null,"Kuba",null,null,null,null,null,null,null,null,null,null,null,null,null,null,null,null,null,null,null,null,null,174,"","","","","","",null,null,null,null,null,null,174,"","","","","","","",""]
[null,"Kuvajt",null,null,null,null,null,null,null,null,null,null,null,null,null,null,null,null,null,null,null,null,null,175,"","","","","","",null,null,null,null,null,null,175,"","","","","","","",""]
[null,"Kypr",null,null,null,null,null,null,null,null,null,null,null,null,null,null,null,null,null,null,null,null,null,176,"","","","","","",null,null,null,null,null,null,176,"","","","","","","",""]
[null,"Kyrgyzstán",null,null,null,null,null,null,null,null,null,null,null,null,null,null,null,null,null,null,null,null,null,177,"","","","","","",null,null,null,null,null,null,177,"","","","","","","",""]
[null,"Laos",null,null,null,null,null,null,null,null,null,null,null,null,null,null,null,null,null,null,null,null,null,178,"","","","","","",null,null,null,null,null,null,178,"","","","","","","",""]
[null,"Lesotho",null,null,null,null,null,null,null,null,null,null,null,null,null,null,null,null,null,null,null,null,null,179,"","","","","","",null,null,null,null,null,null,179,"","","","","","","",""]
[null,"Libanon",null,null,null,null,null,null,null,null,null,null,null,null,null,null,null,null,null,null,null,null,null,180,"","","","","","",null,null,null,null,null,null,180,"","","","","","","",""]
[null,"Libérie",null,null,null,null,null,null,null,null,null,null,null,null,null,null,null,null,null,null,null,null,null,181,"","","","","","",null,null,null,null,null,null,181,"","","","","","","",""]
[null,"Libye",null,null,null,null,null,null,null,null,null,null,null,null,null,null,null,null,null,null,null,null,null,182,"","","","","","",null,null,null,null,null,null,182,"","","","","","","",""]
[null,"Lichtenštejnsko",null,null,null,null,null,null,null,null,null,null,null,null,null,null,null,null,null,null,null,null,null,183,"","","","","","",null,null,null,null,null,null,183,"","","","","","","",""]
[null,"Litva",null,null,null,null,null,null,null,null,null,null,null,null,null,null,null,null,null,null,null,null,null,184,"","","","","","",null,null,null,null,null,null,184,"","","","","","","",""]
[null,"Lotyšsko",null,null,null,null,null,null,null,null,null,null,null,null,null,null,null,null,null,null,null,null,null,185,"","","","","","",null,null,null,null,null,null,185,"","","","","","","",""]
[null,"Lucembursko",null,null,null,null,null,null,null,null,null,null,null,null,null,null,null,null,null,null,null,null,null,186,"","","","","","",null,null,null,null,null,null,186,"","","","","","","",""]
[null,"Madagaskar",null,null,null,null,null,null,null,null,null,null,null,null,null,null,null,null,null,null,null,null,null,187,"","","","","","",null,null,null,null,null,null,187,"","","","","","","",""]
[null,"Maďarsko",null,null,null,null,null,null,null,null,null,null,null,null,null,null,null,null,null,null,null,null,null,188,"","","","","","",null,null,null,null,null,null,188,"","","","","","","",""]
[null,"Makedonie",null,null,null,null,null,null,null,null,null,null,null,null,null,null,null,null,null,null,null,null,null,189,"","","","","","",null,null,null,null,null,null,189,"","","","","","","",""]
[null,"Malajsie",null,null,null,null,null,null,null,null,null,null,null,null,null,null,null,null,null,null,null,null,null,190,"","","","","","",null,null,null,null,null,null,190,"","","","","","","",""]
[null,"Malawi",null,null,null,null,null,null,null,null,null,null,null,null,null,null,null,null,null,null,null,null,null,191,"","","","","","",null,null,null,null,null,null,191,"","","","","","","",""]
[null,"Maledivy",null,null,null,null,null,null,null,null,null,null,null,null,null,null,null,null,null,null,null,null,null,192,"","","","","","",null,null,null,null,null,null,192,"","","","","","","",""]
[null,"Mali",null,null,null,null,null,null,null,null,null,null,null,null,null,null,null,null,null,null,null,null,null,193,"","","",{"$f":"IF(Y197=\"\",\"\",AA197-AC197)","v":""},"","",null,null,null,null,null,null,193,"","","","","","","",{"$f":"IF(AL197=\"\",\"\",AO197/(1+$AH$18)^AR197)","v":""}]
[null,"Malta",null,null,null,null,null,null,null,null,null,null,null,null,null,null,null,null,null,null,null,null,null,194,"",{"$f":"IF(Y198=\"\",\"\",EDATE($Z$5,Y197))","v":""},{"$f":"IF(Y198=\"\",\"\",IF(Y198=$U$4,AD197+AC198,IF(Z198>=$U$12,$U$17,AC198)))","v":""},"","",{"$f":"IF(Y198=\"\",\"\",AD197-AB198)","v":""},null,null,null,null,null,null,194,"","","","","","","",""]
[null,"Maroko",null,null,null,null,null,null,null,null,null,null,null,null,null,null,null,null,null,null,null,null,null,195,{"$f":"IF($U$4>=X199,X199,\"\")","v":""},"","","",{"$f":"IF(Y199=\"\",\"\",(AD198*$U$3/12))","v":""},"",null,null,null,null,null,null,195,{"$f":"IF($AH$13=0,IF($AH$4>=AK198,AK198,\"\"),IF($AH$11>=AK198,AK198,\"\"))","v":""},{"$f":"IF(AL199=\"\",\"\",IF($AH$13=0,EDATE(AM198,1),IF(ISEVEN(AL199)=TRUE,EOMONTH(AM198,0),EDATE(CONCATENATE(DAY($AH$8),\".\",MONTH(AM198),\".\",YEAR(AM198)),1))))","v":""},{"$f":"IF(AL199=\"\",\"\",IF(DAY(AM199)=DAY($AH$8),\"platba splátky\",\"platba poplatků\"))","v":""},{"$f":"IF(AL199=\"\",\"\",IF(AT199=\"Ano\",0,IF(AN199=\"platba splátky\",VLOOKUP(AM199,Z:AA,2,FALSE),$AH$13)))","v":""},{"$f":"IF(AL199=\"\",\"\",AM199-$AM$4)","v":""},"","",""]
[null,"Marshallovy ostrovy",null,null,null,null,null,null,null,null,null,null,null,null,null,null,null,null,null,null,null,null,null,196,"","","","","","",null,null,null,null,null,null,196,"","","","","","","",""]
[null,"Mauricius",null,null,null,null,null,null,null,null,null,null,null,null,null,null,null,null,null,null,null,null,null,197,"","","","","","",null,null,null,null,null,null,197,"","","","","","","",""]
[null,"Mauritánie",null,null,null,null,null,null,null,null,null,null,null,null,null,null,null,null,null,null,null,null,null,198,"","","","","","",null,null,null,null,null,null,198,"","","","","","","",""]
[null,"Mexiko",null,null,null,null,null,null,null,null,null,null,null,null,null,null,null,null,null,null,null,null,null,199,"","","","","","",null,null,null,null,null,null,199,"","","","","","","",""]
[null,"Mikronésie",null,null,null,null,null,null,null,null,null,null,null,null,null,null,null,null,null,null,null,null,null,200,"","","","","","",null,null,null,null,null,null,200,"","","","","","","",""]
[null,"Moldavsko",null,null,null,null,null,null,null,null,null,null,null,null,null,null,null,null,null,null,null,null,null,201,"","","","","","",null,null,null,null,null,null,201,"","","","","","","",""]
[null,"Monako",null,null,null,null,null,null,null,null,null,null,null,null,null,null,null,null,null,null,null,null,null,202,"","","","","","",null,null,null,null,null,null,202,"","","","","","","",""]
[null,"Mongolsko",null,null,null,null,null,null,null,null,null,null,null,null,null,null,null,null,null,null,null,null,null,203,"","","","","","",null,null,null,null,null,null,203,"","","","","","","",""]
[null,"Mosambik",null,null,null,null,null,null,null,null,null,null,null,null,null,null,null,null,null,null,null,null,null,204,"","","","","","",null,null,null,null,null,null,204,"","","","","","","",""]
[null,"Myanmar (Barma)",null,null,null,null,null,null,null,null,null,null,null,null,null,null,null,null,null,null,null,null,null,205,"","","","","","",null,null,null,null,null,null,205,"","","","","","","",""]
[null,"Namibie",null,null,null,null,null,null,null,null,null,null,null,null,null,null,null,null,null,null,null,null,null,206,"","","","","","",null,null,null,null,null,null,206,"","","","","","","",""]
[null,"Nauru",null,null,null,null,null,null,null,null,null,null,null,null,null,null,null,null,null,null,null,null,null,207,"","","","","","",null,null,null,null,null,null,207,"","","","","","","",""]
[null,"Německo",null,null,null,null,null,null,null,null,null,null,null,null,null,null,null,null,null,null,null,null,null,208,"","","","","","",null,null,null,null,null,null,208,"","","","","","","",""]
[null,"Nepál",null,null,null,null,null,null,null,null,null,null,null,null,null,null,null,null,null,null,null,null,null,209,"","","","","","",null,null,null,null,null,null,209,"","","","","","","",""]
[null,"Niger",null,null,null,null,null,null,null,null,null,null,null,null,null,null,null,null,null,null,null,null,null,210,"","","","","","",null,null,null,null,null,null,210,"","","","","","","",""]
[null,"Nigérie",null,null,null,null,null,null,null,null,null,null,null,null,null,null,null,null,null,null,null,null,null,211,"","","","","","",null,null,null,null,null,null,211,"","","","","","","",""]
[null,"Nikaragua",null,null,null,null,null,null,null,null,null,null,null,null,null,null,null,null,null,null,null,null,null,212,"","","","","","",null,null,null,null,null,null,212,"","","","","","","",""]
[null,"Nizozemsko",null,null,null,null,null,null,null,null,null,null,null,null,null,null,null,null,null,null,null,null,null,213,"","","","","","",null,null,null,null,null,null,213,"","","","","","","",""]
[null,"Norsko",null,null,null,null,null,null,null,null,null,null,null,null,null,null,null,null,null,null,null,null,null,214,"","","","","","",null,null,null,null,null,null,214,"","","","","","","",""]
[null,"Nový Zéland",null,null,null,null,null,null,null,null,null,null,null,null,null,null,null,null,null,null,null,null,null,215,"","","","","","",null,null,null,null,null,null,215,"","","","","","","",""]
[null,"Omán",null,null,null,null,null,null,null,null,null,null,null,null,null,null,null,null,null,null,null,null,null,216,"","","","","","",null,null,null,null,null,null,216,"","","","","","","",""]
[null,"Pákistán",null,null,null,null,null,null,null,null,null,null,null,null,null,null,null,null,null,null,null,null,null,217,"","","","","","",null,null,null,null,null,null,217,"","","","","","","",""]
[null,"Palau",null,null,null,null,null,null,null,null,null,null,null,null,null,null,null,null,null,null,null,null,null,218,"","","","","","",null,null,null,null,null,null,218,"","","","","","","",""]
[null,"Panama",null,null,null,null,null,null,null,null,null,null,null,null,null,null,null,null,null,null,null,null,null,219,"","","","","","",null,null,null,null,null,null,219,"","","","","","","",""]
[null,"Papua-Nová Guinea",null,null,null,null,null,null,null,null,null,null,null,null,null,null,null,null,null,null,null,null,null,220,"","","","","","",null,null,null,null,null,null,220,"","","","","","","",""]
[null,"Paraguay",null,null,null,null,null,null,null,null,null,null,null,null,null,null,null,null,null,null,null,null,null,221,"","","","","","",null,null,null,null,null,null,221,"","","","","","","",""]
[null,"Peru",null,null,null,null,null,null,null,null,null,null,null,null,null,null,null,null,null,null,null,null,null,222,"","","","","","",null,null,null,null,null,null,222,"","","","","","","",""]
[null,"Polsko",null,null,null,null,null,null,null,null,null,null,null,null,null,null,null,null,null,null,null,null,null,223,"","","","","","",null,null,null,null,null,null,223,"","","","","","","",""]
[null,"Portugalsko",null,null,null,null,null,null,null,null,null,null,null,null,null,null,null,null,null,null,null,null,null,224,"","","","","","",null,null,null,null,null,null,224,"","","","","","","",""]
[null,"Rakousko",null,null,null,null,null,null,null,null,null,null,null,null,null,null,null,null,null,null,null,null,null,225,"","","","","","",null,null,null,null,null,null,225,"","","","","","","",""]
[null,"Rovníková Guinea",null,null,null,null,null,null,null,null,null,null,null,null,null,null,null,null,null,null,null,null,null,226,"","","","","","",null,null,null,null,null,null,226,"","","","","","","",""]
[null,"Rumunsko",null,null,null,null,null,null,null,null,null,null,null,null,null,null,null,null,null,null,null,null,null,227,"","","","","","",null,null,null,null,null,null,227,"","","","","","","",""]
[null,"Rusko",null,null,null,null,null,null,null,null,null,null,null,null,null,null,null,null,null,null,null,null,null,228,"","","","","","",null,null,null,null,null,null,228,"","","","","",{"$f":"IF(AL232=\"\",\"\",IF(OR(MOD(YEAR(AM232),400)=0,AND(MOD(YEAR(AM232),4)=0,MOD(YEAR(AM232),100)<>0)),366,365))","v":""},{"$f":"IF(AL232=\"\",\"\",AP232/AQ232)","v":""},""]
[null,"Rwanda",null,null,null,null,null,null,null,null,null,null,null,null,null,null,null,null,null,null,null,null,null,229,"","","","","","",null,null,null,null,null,null,229,"","","","","","","",""]
[null,"Řecko",null,null,null,null,null,null,null,null,null,null,null,null,null,null,null,null,null,null,null,null,null,230,"","","","","","",null,null,null,null,null,null,230,"","","","","","","",""]
[null,"Salvador",null,null,null,null,null,null,null,null,null,null,null,null,null,null,null,null,null,null,null,null,null,231,"","","","","","",null,null,null,null,null,null,231,"","","","","","","",""]
[null,"Samoa",null,null,null,null,null,null,null,null,null,null,null,null,null,null,null,null,null,null,null,null,null,232,"","","","","","",null,null,null,null,null,null,232,"","","","","","","",""]
[null,"San Marino",null,null,null,null,null,null,null,null,null,null,null,null,null,null,null,null,null,null,null,null,null,233,"","","","","","",null,null,null,null,null,null,233,"","","","","","","",""]
[null,"Saudská Arábie",null,null,null,null,null,null,null,null,null,null,null,null,null,null,null,null,null,null,null,null,null,234,"","","","","","",null,null,null,null,null,null,234,"","","","","","","",""]
[null,"Senegal",null,null,null,null,null,null,null,null,null,null,null,null,null,null,null,null,null,null,null,null,null,235,"","","","","","",null,null,null,null,null,null,235,"","","","","","","",""]
[null,"Seychely",null,null,null,null,null,null,null,null,null,null,null,null,null,null,null,null,null,null,null,null,null,236,"","","","","","",null,null,null,null,null,null,236,"","","","","","","",""]
[null,"Sierra Leone",null,null,null,null,null,null,null,null,null,null,null,null,null,null,null,null,null,null,null,null,null,237,"","","","","","",null,null,null,null,null,null,237,"","","","","","","",""]
[null,"Singapur",null,null,null,null,null,null,null,null,null,null,null,null,null,null,null,null,null,null,null,null,null,238,"","","","","","",null,null,null,null,null,null,238,"","","","","","","",""]
[null,"Slovinsko",null,null,null,null,null,null,null,null,null,null,null,null,null,null,null,null,null,null,null,null,null,239,"","","","","","",null,null,null,null,null,null,239,"","","","","","","",""]
[null,"Somálsko",null,null,null,null,null,null,null,null,null,null,null,null,null,null,null,null,null,null,null,null,null,240,"","","","","","",null,null,null,null,null,null,240,"","","","","","","",""]
[null,"Spojené arabské emiráty",null,null,null,null,null,null,null,null,null,null,null,null,null,null,null,null,null,null,null,null,null,241,"","","","","","",null,null,null,null,null,null,241,"","","","","","","",""]
[null,"Spojené království",null,null,null,null,null,null,null,null,null,null,null,null,null,null,null,null,null,null,null,null,null,242,"","","","","","",null,null,null,null,null,null,242,"","","","","","","",""]
[null,"Spojené státy americké",null,null,null,null,null,null,null,null,null,null,null,null,null,null,null,null,null,null,null,null,null,243,"","","","","","",null,null,null,null,null,null,243,"","","","","","","",""]
[null,"Srbsko a Černá Hora",null,null,null,null,null,null,null,null,null,null,null,null,null,null,null,null,null,null,null,null,null,244,"","","","","","",null,null,null,null,null,null,244,"","","","","","","",""]
[null,"Srí Lanka",null,null,null,null,null,null,null,null,null,null,null,null,null,null,null,null,null,null,null,null,null,245,"","","","","","",null,null,null,null,null,null,245,"","","","","","","",""]
[null,"Středoafrická republika",null,null,null,null,null,null,null,null,null,null,null,null,null,null,null,null,null,null,null,null,null,246,"","","","","","",null,null,null,null,null,null,246,"","","","","","","",""]
[null,"Súdán",null,null,null,null,null,null,null,null,null,null,null,null,null,null,null,null,null,null,null,null,null,247,"","","","","","",null,null,null,null,null,null,247,"","","","","","","",""]
[null,"Surinam",null,null,null,null,null,null,null,null,null,null,null,null,null,null,null,null,null,null,null,null,null,248,"","","","","","",null,null,null,null,null,null,248,"","","","","","","",""]
[null,"Svatá Lucie",null,null,null,null,null,null,null,null,null,null,null,null,null,null,null,null,null,null,null,null,null,249,"","","","","","",null,null,null,null,null,null,249,"","","","","","","",""]
[null,"Svatý Kryštof a Nevis",null,null,null,null,null,null,null,null,null,null,null,null,null,null,null,null,null,null,null,null,null,250,"","","","","","",null,null,null,null,null,null,250,"","","","","","","",""]
[null,"Svatý Tomáš a Princův ostrov",null,null,null,null,null,null,null,null,null,null,null,null,null,null,null,null,null,null,null,null,null,251,"","","","","","",null,null,null,null,null,null,251,"","","","","","","",""]
[null,"Svatý Vincent a Grenadiny",null,null,null,null,null,null,null,null,null,null,null,null,null,null,null,null,null,null,null,null,null,252,"","","","","","",null,null,null,null,null,null,252,"","","","","","","",""]
[null,"Svazijsko",null,null,null,null,null,null,null,null,null,null,null,null,null,null,null,null,null,null,null,null,null,253,"","","","","","",null,null,null,null,null,null,253,"","","","","","","",""]
[null,"Sýrie",null,null,null,null,null,null,null,null,null,null,null,null,null,null,null,null,null,null,null,null,null,254,"","","","","","",null,null,null,null,null,null,254,"","","","","","","",""]
[null,"Šalamounovy ostrovy",null,null,null,null,null,null,null,null,null,null,null,null,null,null,null,null,null,null,null,null,null,255,"","","","","","",null,null,null,null,null,null,255,"","","","","","","",""]
[null,"Španělsko",null,null,null,null,null,null,null,null,null,null,null,null,null,null,null,null,null,null,null,null,null,256,"","","","","","",null,null,null,null,null,null,256,"","","","","","","",""]
[null,"Švédsko",null,null,null,null,null,null,null,null,null,null,null,null,null,null,null,null,null,null,null,null,null,257,"","","",{"$f":"IF(Y261=\"\",\"\",AA261-AC261)","v":""},"","",null,null,null,null,null,null,257,"","","","","","","",{"$f":"IF(AL261=\"\",\"\",AO261/(1+$AH$18)^AR261)","v":""}]
[null,"Švýcarsko",null,null,null,null,null,null,null,null,null,null,null,null,null,null,null,null,null,null,null,null,null,258,"",{"$f":"IF(Y262=\"\",\"\",EDATE($Z$5,Y261))","v":""},{"$f":"IF(Y262=\"\",\"\",IF(Y262=$U$4,AD261+AC262,IF(Z262>=$U$12,$U$17,AC262)))","v":""},"","",{"$f":"IF(Y262=\"\",\"\",AD261-AB262)","v":""},null,null,null,null,null,null,258,"","","","","","","",""]
[null,"Tádžikistán",null,null,null,null,null,null,null,null,null,null,null,null,null,null,null,null,null,null,null,null,null,259,{"$f":"IF($U$4>=X263,X263,\"\")","v":""},"","","",{"$f":"IF(Y263=\"\",\"\",(AD262*$U$3/12))","v":""},"",null,null,null,null,null,null,259,{"$f":"IF($AH$13=0,IF($AH$4>=AK262,AK262,\"\"),IF($AH$11>=AK262,AK262,\"\"))","v":""},{"$f":"IF(AL263=\"\",\"\",IF($AH$13=0,EDATE(AM262,1),IF(ISEVEN(AL263)=TRUE,EOMONTH(AM262,0),EDATE(CONCATENATE(DAY($AH$8),\".\",MONTH(AM262),\".\",YEAR(AM262)),1))))","v":""},{"$f":"IF(AL263=\"\",\"\",IF(DAY(AM263)=DAY($AH$8),\"platba splátky\",\"platba poplatků\"))","v":""},{"$f":"IF(AL263=\"\",\"\",IF(AT263=\"Ano\",0,IF(AN263=\"platba splátky\",VLOOKUP(AM263,Z:AA,2,FALSE),$AH$13)))","v":""},{"$f":"IF(AL263=\"\",\"\",AM263-$AM$4)","v":""},"","",""]
[null,"Taiwan",null,null,null,null,null,null,null,null,null,null,null,null,null,null,null,null,null,null,null,null,null,260,"","","","","","",null,null,null,null,null,null,260,"","","","","","","",""]
[null,"Tanzanie",null,null,null,null,null,null,null,null,null,null,null,null,null,null,null,null,null,null,null,null,null,261,"","","","","","",null,null,null,null,null,null,261,"","","","","","","",""]
[null,"Thajsko",null,null,null,null,null,null,null,null,null,null,null,null,null,null,null,null,null,null,null,null,null,262,"","","","","","",null,null,null,null,null,null,262,"","","","","","","",""]
[null,"Togo",null,null,null,null,null,null,null,null,null,null,null,null,null,null,null,null,null,null,null,null,null,263,"","","","","","",null,null,null,null,null,null,263,"","","","","","","",""]
[null,"Tonga",null,null,null,null,null,null,null,null,null,null,null,null,null,null,null,null,null,null,null,null,null,264,"","","","","","",null,null,null,null,null,null,264,"","","","","","","",""]
[null,"Trinidad a Tobago",null,null,null,null,null,null,null,null,null,null,null,null,null,null,null,null,null,null,null,null,null,265,"","","","","","",null,null,null,null,null,null,265,"","","","","","","",""]
[null,"Tunisko",null,null,null,null,null,null,null,null,null,null,null,null,null,null,null,null,null,null,null,null,null,266,"","","","","","",null,null,null,null,null,null,266,"","","","","","","",""]
[null,"Turecko",null,null,null,null,null,null,null,null,null,null,null,null,null,null,null,null,null,null,null,null,null,267,"","","","","","",null,null,null,null,null,null,267,"","","","","","","",""]
[null,"Turkmenistán",null,null,null,null,null,null,null,null,null,null,null,null,null,null,null,null,null,null,null,null,null,268,"","","","","","",null,null,null,null,null,null,268,"","","","","","","",""]
[null,"Tuvalu",null,null,null,null,null,null,null,null,null,null,null,null,null,null,null,null,null,null,null,null,null,269,"","","","","","",null,null,null,null,null,null,269,"","","","","","","",""]
[null,"Uganda",null,null,null,null,null,null,null,null,null,null,null,null,null,null,null,null,null,null,null,null,null,270,"","","","","","",null,null,null,null,null,null,270,"","","","","","","",""]
[null,"Ukrajina",null,null,null,null,null,null,null,null,null,null,null,null,null,null,null,null,null,null,null,null,null,271,"","","","","","",null,null,null,null,null,null,271,"","","","","","","",""]
[null,"Uruguay",null,null,null,null,null,null,null,null,null,null,null,null,null,null,null,null,null,null,null,null,null,272,"","","","","","",null,null,null,null,null,null,272,"","","","","","","",""]
[null,"Uzbekistán",null,null,null,null,null,null,null,null,null,null,null,null,null,null,null,null,null,null,null,null,null,273,"","","","","","",null,null,null,null,null,null,273,"","","","","","","",""]
[null,"Vanatu",null,null,null,null,null,null,null,null,null,null,null,null,null,null,null,null,null,null,null,null,null,274,"","","","","","",null,null,null,null,null,null,274,"","","","","","","",""]
[null,"Vatikán",null,null,null,null,null,null,null,null,null,null,null,null,null,null,null,null,null,null,null,null,null,275,"","","","","","",null,null,null,null,null,null,275,"","","","","","","",""]
[null,"Venezuela",null,null,null,null,null,null,null,null,null,null,null,null,null,null,null,null,null,null,null,null,null,276,"","","","","","",null,null,null,null,null,null,276,"","","","","","","",""]
[null,"Vietnam",null,null,null,null,null,null,null,null,null,null,null,null,null,null,null,null,null,null,null,null,null,277,"","","","","","",null,null,null,null,null,null,277,"","","","","","","",""]
[null,"Východní Timor",null,null,null,null,null,null,null,null,null,null,null,null,null,null,null,null,null,null,null,null,null,278,"","","","","","",null,null,null,null,null,null,278,"","","","","","","",""]
[null,"Zambie",null,null,null,null,null,null,null,null,null,null,null,null,null,null,null,null,null,null,null,null,null,279,"","","","","","",null,null,null,null,null,null,279,"","","","","","","",""]
[null,"Zimbabwe",null,null,null,null,null,null,null,null,null,null,null,null,null,null,null,null,null,null,null,null,null,280,"","","","","","",null,null,null,null,null,null,280,"","","","","","","",""]
[null,null,null,null,null,null,null,null,null,null,null,null,null,null,null,null,null,null,null,null,null,null,null,281,"","","","","","",null,null,null,null,null,null,281,"","","","","","","",""]
[null,null,null,null,null,null,null,null,null,null,null,null,null,null,null,null,null,null,null,null,null,null,null,282,"","","","","","",null,null,null,null,null,null,282,"","","","","","","",""]
[null,null,null,null,null,null,null,null,null,null,null,null,null,null,null,null,null,null,null,null,null,null,null,283,"","","","","","",null,null,null,null,null,null,283,"","","","","","","",""]
[null,null,null,null,null,null,null,null,null,null,null,null,null,null,null,null,null,null,null,null,null,null,null,284,"","","","","","",null,null,null,null,null,null,284,"","","","","","","",""]
[null,null,null,null,null,null,null,null,null,null,null,null,null,null,null,null,null,null,null,null,null,null,null,285,"","","","","","",null,null,null,null,null,null,285,"","","","","","","",""]
[null,null,null,null,null,null,null,null,null,null,null,null,null,null,null,null,null,null,null,null,null,null,null,286,"","","","","","",null,null,null,null,null,null,286,"","","","","","","",""]
[null,null,null,null,null,null,null,null,null,null,null,null,null,null,null,null,null,null,null,null,null,null,null,287,"","","","","","",null,null,null,null,null,null,287,"","","","","","","",""]
[null,null,null,null,null,null,null,null,null,null,null,null,null,null,null,null,null,null,null,null,null,null,null,288,"","","","","","",null,null,null,null,null,null,288,"","","","","","","",""]
[null,null,null,null,null,null,null,null,null,null,null,null,null,null,null,null,null,null,null,null,null,null,null,289,"","","","","","",null,null,null,null,null,null,289,"","","","","","","",""]
[null,null,null,null,null,null,null,null,null,null,null,null,null,null,null,null,null,null,null,null,null,null,null,290,"","","","","","",null,null,null,null,null,null,290,"","","","","","","",""]
[null,null,null,null,null,null,null,null,null,null,null,null,null,null,null,null,null,null,null,null,null,null,null,291,"","","","","","",null,null,null,null,null,null,291,"","","","","","","",""]
[null,null,null,null,null,null,null,null,null,null,null,null,null,null,null,null,null,null,null,null,null,null,null,292,"","","","","","",null,null,null,null,null,null,292,"","","","","",{"$f":"IF(AL296=\"\",\"\",IF(OR(MOD(YEAR(AM296),400)=0,AND(MOD(YEAR(AM296),4)=0,MOD(YEAR(AM296),100)<>0)),366,365))","v":""},{"$f":"IF(AL296=\"\",\"\",AP296/AQ296)","v":""},""]
[null,null,null,null,null,null,null,null,null,null,null,null,null,null,null,null,null,null,null,null,null,null,null,293,"","","","","","",null,null,null,null,null,null,293,"","","","","","","",""]
[null,null,null,null,null,null,null,null,null,null,null,null,null,null,null,null,null,null,null,null,null,null,null,294,"","","","","","",null,null,null,null,null,null,294,"","","","","","","",""]
[null,null,null,null,null,null,null,null,null,null,null,null,null,null,null,null,null,null,null,null,null,null,null,295,"","","","","","",null,null,null,null,null,null,295,"","","","","","","",""]
[null,null,null,null,null,null,null,null,null,null,null,null,null,null,null,null,null,null,null,null,null,null,null,296,"","","","","","",null,null,null,null,null,null,296,"","","","","","","",""]
[null,null,null,null,null,null,null,null,null,null,null,null,null,null,null,null,null,null,null,null,null,null,null,297,"","","","","","",null,null,null,null,null,null,297,"","","","","","","",""]
[null,null,null,null,null,null,null,null,null,null,null,null,null,null,null,null,null,null,null,null,null,null,null,298,"","","","","","",null,null,null,null,null,null,298,"","","","","","","",""]
[null,null,null,null,null,null,null,null,null,null,null,null,null,null,null,null,null,null,null,null,null,null,null,299,"","","","","","",null,null,null,null,null,null,299,"","","","","","","",""]
[null,null,null,null,null,null,null,null,null,null,null,null,null,null,null,null,null,null,null,null,null,null,null,300,"","","","","","",null,null,null,null,null,null,300,"","","","","","","",""]
[null,null,null,null,null,null,null,null,null,null,null,null,null,null,null,null,null,null,null,null,null,null,null,301,"","","","","","",null,null,null,null,null,null,301,"","","","","","","",""]
[null,null,null,null,null,null,null,null,null,null,null,null,null,null,null,null,null,null,null,null,null,null,null,302,"","","","","","",null,null,null,null,null,null,302,"","","","","","","",""]
[null,null,null,null,null,null,null,null,null,null,null,null,null,null,null,null,null,null,null,null,null,null,null,303,"","","","","","",null,null,null,null,null,null,303,"","","","","","","",""]
[null,null,null,null,null,null,null,null,null,null,null,null,null,null,null,null,null,null,null,null,null,null,null,304,"","","","","","",null,null,null,null,null,null,304,"","","","","","","",""]
[null,null,null,null,null,null,null,null,null,null,null,null,null,null,null,null,null,null,null,null,null,null,null,305,"","","","","","",null,null,null,null,null,null,305,"","","","","","","",""]
[null,null,null,null,null,null,null,null,null,null,null,null,null,null,null,null,null,null,null,null,null,null,null,306,"","","","","","",null,null,null,null,null,null,306,"","","","","","","",""]
[null,null,null,null,null,null,null,null,null,null,null,null,null,null,null,null,null,null,null,null,null,null,null,307,"","","","","","",null,null,null,null,null,null,307,"","","","","","","",""]
[null,null,null,null,null,null,null,null,null,null,null,null,null,null,null,null,null,null,null,null,null,null,null,308,"","","","","","",null,null,null,null,null,null,308,"","","","","","","",""]
[null,null,null,null,null,null,null,null,null,null,null,null,null,null,null,null,null,null,null,null,null,null,null,309,"","","","","","",null,null,null,null,null,null,309,"","","","","","","",""]
[null,null,null,null,null,null,null,null,null,null,null,null,null,null,null,null,null,null,null,null,null,null,null,310,"","","","","","",null,null,null,null,null,null,310,"","","","","","","",""]
[null,null,null,null,null,null,null,null,null,null,null,null,null,null,null,null,null,null,null,null,null,null,null,311,"","","","","","",null,null,null,null,null,null,311,"","","","","","","",""]
[null,null,null,null,null,null,null,null,null,null,null,null,null,null,null,null,null,null,null,null,null,null,null,312,"","","","","","",null,null,null,null,null,null,312,"","","","","","","",""]
[null,null,null,null,null,null,null,null,null,null,null,null,null,null,null,null,null,null,null,null,null,null,null,313,"","","","","","",null,null,null,null,null,null,313,"","","","","","","",""]
[null,null,null,null,null,null,null,null,null,null,null,null,null,null,null,null,null,null,null,null,null,null,null,314,"","","","","","",null,null,null,null,null,null,314,"","","","","","","",""]
[null,null,null,null,null,null,null,null,null,null,null,null,null,null,null,null,null,null,null,null,null,null,null,315,"","","","","","",null,null,null,null,null,null,315,"","","","","","","",""]
[null,null,null,null,null,null,null,null,null,null,null,null,null,null,null,null,null,null,null,null,null,null,null,316,"","","","","","",null,null,null,null,null,null,316,"","","","","","","",""]
[null,null,null,null,null,null,null,null,null,null,null,null,null,null,null,null,null,null,null,null,null,null,null,317,"","","","","","",null,null,null,null,null,null,317,"","","","","","","",""]
[null,null,null,null,null,null,null,null,null,null,null,null,null,null,null,null,null,null,null,null,null,null,null,318,"","","","","","",null,null,null,null,null,null,318,"","","","","","","",""]
[null,null,null,null,null,null,null,null,null,null,null,null,null,null,null,null,null,null,null,null,null,null,null,319,"","","","","","",null,null,null,null,null,null,319,"","","","","","","",""]
[null,null,null,null,null,null,null,null,null,null,null,null,null,null,null,null,null,null,null,null,null,null,null,320,"","","","","","",null,null,null,null,null,null,320,"","","","","","","",""]
[null,null,null,null,null,null,null,null,null,null,null,null,null,null,null,null,null,null,null,null,null,null,null,321,"","","",{"$f":"IF(Y325=\"\",\"\",AA325-AC325)","v":""},"","",null,null,null,null,null,null,321,"","","","","","","",{"$f":"IF(AL325=\"\",\"\",AO325/(1+$AH$18)^AR325)","v":""}]
[null,null,null,null,null,null,null,null,null,null,null,null,null,null,null,null,null,null,null,null,null,null,null,322,"",{"$f":"IF(Y326=\"\",\"\",EDATE($Z$5,Y325))","v":""},{"$f":"IF(Y326=\"\",\"\",IF(Y326=$U$4,AD325+AC326,IF(Z326>=$U$12,$U$17,AC326)))","v":""},"","",{"$f":"IF(Y326=\"\",\"\",AD325-AB326)","v":""},null,null,null,null,null,null,322,"","","","","","","",""]
[null,null,null,null,null,null,null,null,null,null,null,null,null,null,null,null,null,null,null,null,null,null,null,323,{"$f":"IF($U$4>=X327,X327,\"\")","v":""},"","","",{"$f":"IF(Y327=\"\",\"\",(AD326*$U$3/12))","v":""},"",null,null,null,null,null,null,323,{"$f":"IF($AH$13=0,IF($AH$4>=AK326,AK326,\"\"),IF($AH$11>=AK326,AK326,\"\"))","v":""},{"$f":"IF(AL327=\"\",\"\",IF($AH$13=0,EDATE(AM326,1),IF(ISEVEN(AL327)=TRUE,EOMONTH(AM326,0),EDATE(CONCATENATE(DAY($AH$8),\".\",MONTH(AM326),\".\",YEAR(AM326)),1))))","v":""},{"$f":"IF(AL327=\"\",\"\",IF(DAY(AM327)=DAY($AH$8),\"platba splátky\",\"platba poplatků\"))","v":""},{"$f":"IF(AL327=\"\",\"\",IF(AT327=\"Ano\",0,IF(AN327=\"platba splátky\",VLOOKUP(AM327,Z:AA,2,FALSE),$AH$13)))","v":""},{"$f":"IF(AL327=\"\",\"\",AM327-$AM$4)","v":""},"","",""]
[null,null,null,null,null,null,null,null,null,null,null,null,null,null,null,null,null,null,null,null,null,null,null,324,"","","","","","",null,null,null,null,null,null,324,"","","","","","","",""]
[null,null,null,null,null,null,null,null,null,null,null,null,null,null,null,null,null,null,null,null,null,null,null,325,"","","","","","",null,null,null,null,null,null,325,"","","","","","","",""]
[null,null,null,null,null,null,null,null,null,null,null,null,null,null,null,null,null,null,null,null,null,null,null,326,"","","","","","",null,null,null,null,null,null,326,"","","","","","","",""]
[null,null,null,null,null,null,null,null,null,null,null,null,null,null,null,null,null,null,null,null,null,null,null,327,"","","","","","",null,null,null,null,null,null,327,"","","","","","","",""]
[null,null,null,null,null,null,null,null,null,null,null,null,null,null,null,null,null,null,null,null,null,null,null,328,"","","","","","",null,null,null,null,null,null,328,"","","","","","","",""]
[null,null,null,null,null,null,null,null,null,null,null,null,null,null,null,null,null,null,null,null,null,null,null,329,"","","","","","",null,null,null,null,null,null,329,"","","","","","","",""]
[null,null,null,null,null,null,null,null,null,null,null,null,null,null,null,null,null,null,null,null,null,null,null,330,"","","","","","",null,null,null,null,null,null,330,"","","","","","","",""]
[null,null,null,null,null,null,null,null,null,null,null,null,null,null,null,null,null,null,null,null,null,null,null,331,"","","","","","",null,null,null,null,null,null,331,"","","","","","","",""]
[null,null,null,null,null,null,null,null,null,null,null,null,null,null,null,null,null,null,null,null,null,null,null,332,"","","","","","",null,null,null,null,null,null,332,"","","","","","","",""]
[null,null,null,null,null,null,null,null,null,null,null,null,null,null,null,null,null,null,null,null,null,null,null,333,"","","","","","",null,null,null,null,null,null,333,"","","","","","","",""]
[null,null,null,null,null,null,null,null,null,null,null,null,null,null,null,null,null,null,null,null,null,null,null,334,"","","","","","",null,null,null,null,null,null,334,"","","","","","","",""]
[null,null,null,null,null,null,null,null,null,null,null,null,null,null,null,null,null,null,null,null,null,null,null,335,"","","","","","",null,null,null,null,null,null,335,"","","","","","","",""]
[null,null,null,null,null,null,null,null,null,null,null,null,null,null,null,null,null,null,null,null,null,null,null,336,"","","","","","",null,null,null,null,null,null,336,"","","","","","","",""]
[null,null,null,null,null,null,null,null,null,null,null,null,null,null,null,null,null,null,null,null,null,null,null,337,"","","","","","",null,null,null,null,null,null,337,"","","","","","","",""]
[null,null,null,null,null,null,null,null,null,null,null,null,null,null,null,null,null,null,null,null,null,null,null,338,"","","","","","",null,null,null,null,null,null,338,"","","","","","","",""]
[null,null,null,null,null,null,null,null,null,null,null,null,null,null,null,null,null,null,null,null,null,null,null,339,"","","","","","",null,null,null,null,null,null,339,"","","","","","","",""]
[null,null,null,null,null,null,null,null,null,null,null,null,null,null,null,null,null,null,null,null,null,null,null,340,"","","","","","",null,null,null,null,null,null,340,"","","","","","","",""]
[null,null,null,null,null,null,null,null,null,null,null,null,null,null,null,null,null,null,null,null,null,null,null,341,"","","","","","",null,null,null,null,null,null,341,"","","","","","","",""]
[null,null,null,null,null,null,null,null,null,null,null,null,null,null,null,null,null,null,null,null,null,null,null,342,"","","","","","",null,null,null,null,null,null,342,"","","","","","","",""]
[null,null,null,null,null,null,null,null,null,null,null,null,null,null,null,null,null,null,null,null,null,null,null,343,"","","","","","",null,null,null,null,null,null,343,"","","","","","","",""]
[null,null,null,null,null,null,null,null,null,null,null,null,null,null,null,null,null,null,null,null,null,null,null,344,"","","","","","",null,null,null,null,null,null,344,"","","","","","","",""]
[null,null,null,null,null,null,null,null,null,null,null,null,null,null,null,null,null,null,null,null,null,null,null,345,"","","","","","",null,null,null,null,null,null,345,"","","","","","","",""]
[null,null,null,null,null,null,null,null,null,null,null,null,null,null,null,null,null,null,null,null,null,null,null,346,"","","","","","",null,null,null,null,null,null,346,"","","","","","","",""]
[null,null,null,null,null,null,null,null,null,null,null,null,null,null,null,null,null,null,null,null,null,null,null,347,"","","","","","",null,null,null,null,null,null,347,"","","","","","","",""]
[null,null,null,null,null,null,null,null,null,null,null,null,null,null,null,null,null,null,null,null,null,null,null,348,"","","","","","",null,null,null,null,null,null,348,"","","","","","","",""]
[null,null,null,null,null,null,null,null,null,null,null,null,null,null,null,null,null,null,null,null,null,null,null,349,"","","","","","",null,null,null,null,null,null,349,"","","","","","","",""]
[null,null,null,null,null,null,null,null,null,null,null,null,null,null,null,null,null,null,null,null,null,null,null,350,"","","","","","",null,null,null,null,null,null,350,"","","","","","","",""]
[null,null,null,null,null,null,null,null,null,null,null,null,null,null,null,null,null,null,null,null,null,null,null,351,"","","","","","",null,null,null,null,null,null,351,"","","","","","","",""]
[null,null,null,null,null,null,null,null,null,null,null,null,null,null,null,null,null,null,null,null,null,null,null,352,"","","","","","",null,null,null,null,null,null,352,"","","","","","","",""]
[null,null,null,null,null,null,null,null,null,null,null,null,null,null,null,null,null,null,null,null,null,null,null,353,"","","","","","",null,null,null,null,null,null,353,"","","","","","","",""]
[null,null,null,null,null,null,null,null,null,null,null,null,null,null,null,null,null,null,null,null,null,null,null,354,"","","","","","",null,null,null,null,null,null,354,"","","","","","","",""]
[null,null,null,null,null,null,null,null,null,null,null,null,null,null,null,null,null,null,null,null,null,null,null,355,"","","","","","",null,null,null,null,null,null,355,"","","","","","","",""]
[null,null,null,null,null,null,null,null,null,null,null,null,null,null,null,null,null,null,null,null,null,null,null,356,"","","","","","",null,null,null,null,null,null,356,"","","","","",{"$f":"IF(AL360=\"\",\"\",IF(OR(MOD(YEAR(AM360),400)=0,AND(MOD(YEAR(AM360),4)=0,MOD(YEAR(AM360),100)<>0)),366,365))","v":""},{"$f":"IF(AL360=\"\",\"\",AP360/AQ360)","v":""},""]
[null,null,null,null,null,null,null,null,null,null,null,null,null,null,null,null,null,null,null,null,null,null,null,357,"","","","","","",null,null,null,null,null,null,357,"","","","","","","",""]
[null,null,null,null,null,null,null,null,null,null,null,null,null,null,null,null,null,null,null,null,null,null,null,358,"","","","","","",null,null,null,null,null,null,358,"","","","","","","",""]
[null,null,null,null,null,null,null,null,null,null,null,null,null,null,null,null,null,null,null,null,null,null,null,359,"","","","","","",null,null,null,null,null,null,359,"","","","","","","",""]
[null,null,null,null,null,null,null,null,null,null,null,null,null,null,null,null,null,null,null,null,null,null,null,360,"","","","","","",null,null,null,null,null,null,360,"","","","","","","",""]
[null,null,null,null,null,null,null,null,null,null,null,null,null,null,null,null,null,null,null,null,null,null,null,null,null,null,null,null,null,null,null,null,null,null,null,null,361,"","","","","","","",""]
[null,null,null,null,null,null,null,null,null,null,null,null,null,null,null,null,null,null,null,null,null,null,null,null,null,null,null,null,null,null,null,null,null,null,null,null,362,"","","","","","","",""]
[null,null,null,null,null,null,null,null,null,null,null,null,null,null,null,null,null,null,null,null,null,null,null,null,null,null,null,null,null,null,null,null,null,null,null,null,363,"","","","","","","",""]
[null,null,null,null,null,null,null,null,null,null,null,null,null,null,null,null,null,null,null,null,null,null,null,null,null,null,null,null,null,null,null,null,null,null,null,null,364,"","","","","","","",""]
[null,null,null,null,null,null,null,null,null,null,null,null,null,null,null,null,null,null,null,null,null,null,null,null,null,null,null,null,null,null,null,null,null,null,null,null,365,"","","","","","","",""]
[null,null,null,null,null,null,null,null,null,null,null,null,null,null,null,null,null,null,null,null,null,null,null,null,null,null,null,null,null,null,null,null,null,null,null,null,366,"","","","","","","",""]
[null,null,null,null,null,null,null,null,null,null,null,null,null,null,null,null,null,null,null,null,null,null,null,null,null,null,null,null,null,null,null,null,null,null,null,null,367,"","","","","","","",""]
[null,null,null,null,null,null,null,null,null,null,null,null,null,null,null,null,null,null,null,null,null,null,null,null,null,null,null,null,null,null,null,null,null,null,null,null,368,"","","","","","","",""]
[null,null,null,null,null,null,null,null,null,null,null,null,null,null,null,null,null,null,null,null,null,null,null,null,null,null,null,null,null,null,null,null,null,null,null,null,369,"","","","","","","",""]
[null,null,null,null,null,null,null,null,null,null,null,null,null,null,null,null,null,null,null,null,null,null,null,null,null,null,null,null,null,null,null,null,null,null,null,null,370,"","","","","","","",""]
[null,null,null,null,null,null,null,null,null,null,null,null,null,null,null,null,null,null,null,null,null,null,null,null,null,null,null,null,null,null,null,null,null,null,null,null,371,"","","","","","","",""]
[null,null,null,null,null,null,null,null,null,null,null,null,null,null,null,null,null,null,null,null,null,null,null,null,null,null,null,null,null,null,null,null,null,null,null,null,372,"","","","","","","",""]
[null,null,null,null,null,null,null,null,null,null,null,null,null,null,null,null,null,null,null,null,null,null,null,null,null,null,null,null,null,null,null,null,null,null,null,null,373,"","","","","","","",""]
[null,null,null,null,null,null,null,null,null,null,null,null,null,null,null,null,null,null,null,null,null,null,null,null,null,null,null,null,null,null,null,null,null,null,null,null,374,"","","","","","","",""]
[null,null,null,null,null,null,null,null,null,null,null,null,null,null,null,null,null,null,null,null,null,null,null,null,null,null,null,null,null,null,null,null,null,null,null,null,375,"","","","","","","",""]
[null,null,null,null,null,null,null,null,null,null,null,null,null,null,null,null,null,null,null,null,null,null,null,null,null,null,null,null,null,null,null,null,null,null,null,null,376,"","","","","","","",""]
[null,null,null,null,null,null,null,null,null,null,null,null,null,null,null,null,null,null,null,null,null,null,null,null,null,null,null,null,null,null,null,null,null,null,null,null,377,"","","","","","","",""]
[null,null,null,null,null,null,null,null,null,null,null,null,null,null,null,null,null,null,null,null,null,null,null,null,null,null,null,null,null,null,null,null,null,null,null,null,378,"","","","","","","",""]
[null,null,null,null,null,null,null,null,null,null,null,null,null,null,null,null,null,null,null,null,null,null,null,null,null,null,null,null,null,null,null,null,null,null,null,null,379,"","","","","","","",""]
[null,null,null,null,null,null,null,null,null,null,null,null,null,null,null,null,null,null,null,null,null,null,null,null,null,null,null,null,null,null,null,null,null,null,null,null,380,"","","","","","","",""]
[null,null,null,null,null,null,null,null,null,null,null,null,null,null,null,null,null,null,null,null,null,null,null,null,null,null,null,null,null,null,null,null,null,null,null,null,381,"","","","","","","",""]
[null,null,null,null,null,null,null,null,null,null,null,null,null,null,null,null,null,null,null,null,null,null,null,null,null,null,null,null,null,null,null,null,null,null,null,null,382,"","","","","","","",""]
[null,null,null,null,null,null,null,null,null,null,null,null,null,null,null,null,null,null,null,null,null,null,null,null,null,null,null,null,null,null,null,null,null,null,null,null,383,"","","","","","","",""]
[null,null,null,null,null,null,null,null,null,null,null,null,null,null,null,null,null,null,null,null,null,null,null,null,null,null,null,null,null,null,null,null,null,null,null,null,384,"","","","","","","",""]
[null,null,null,null,null,null,null,null,null,null,null,null,null,null,null,null,null,null,null,null,null,null,null,null,null,null,null,null,null,null,null,null,null,null,null,null,385,"","","","","","","",{"$f":"IF(AL389=\"\",\"\",AO389/(1+$AH$18)^AR389)","v":""}]
[null,null,null,null,null,null,null,null,null,null,null,null,null,null,null,null,null,null,null,null,null,null,null,null,null,null,null,null,null,null,null,null,null,null,null,null,386,"","","","","","","",""]
[null,null,null,null,null,null,null,null,null,null,null,null,null,null,null,null,null,null,null,null,null,null,null,null,null,null,null,null,null,null,null,null,null,null,null,null,387,{"$f":"IF($AH$13=0,IF($AH$4>=AK390,AK390,\"\"),IF($AH$11>=AK390,AK390,\"\"))","v":""},{"$f":"IF(AL391=\"\",\"\",IF($AH$13=0,EDATE(AM390,1),IF(ISEVEN(AL391)=TRUE,EOMONTH(AM390,0),EDATE(CONCATENATE(DAY($AH$8),\".\",MONTH(AM390),\".\",YEAR(AM390)),1))))","v":""},{"$f":"IF(AL391=\"\",\"\",IF(DAY(AM391)=DAY($AH$8),\"platba splátky\",\"platba poplatků\"))","v":""},{"$f":"IF(AL391=\"\",\"\",IF(AT391=\"Ano\",0,IF(AN391=\"platba splátky\",VLOOKUP(AM391,Z:AA,2,FALSE),$AH$13)))","v":""},{"$f":"IF(AL391=\"\",\"\",AM391-$AM$4)","v":""},"","",""]
[null,null,null,null,null,null,null,null,null,null,null,null,null,null,null,null,null,null,null,null,null,null,null,null,null,null,null,null,null,null,null,null,null,null,null,null,388,"","","","","","","",""]
[null,null,null,null,null,null,null,null,null,null,null,null,null,null,null,null,null,null,null,null,null,null,null,null,null,null,null,null,null,null,null,null,null,null,null,null,389,"","","","","","","",""]
[null,null,null,null,null,null,null,null,null,null,null,null,null,null,null,null,null,null,null,null,null,null,null,null,null,null,null,null,null,null,null,null,null,null,null,null,390,"","","","","","","",""]
[null,null,null,null,null,null,null,null,null,null,null,null,null,null,null,null,null,null,null,null,null,null,null,null,null,null,null,null,null,null,null,null,null,null,null,null,391,"","","","","","","",""]
[null,null,null,null,null,null,null,null,null,null,null,null,null,null,null,null,null,null,null,null,null,null,null,null,null,null,null,null,null,null,null,null,null,null,null,null,392,"","","","","","","",""]
[null,null,null,null,null,null,null,null,null,null,null,null,null,null,null,null,null,null,null,null,null,null,null,null,null,null,null,null,null,null,null,null,null,null,null,null,393,"","","","","","","",""]
[null,null,null,null,null,null,null,null,null,null,null,null,null,null,null,null,null,null,null,null,null,null,null,null,null,null,null,null,null,null,null,null,null,null,null,null,394,"","","","","","","",""]
[null,null,null,null,null,null,null,null,null,null,null,null,null,null,null,null,null,null,null,null,null,null,null,null,null,null,null,null,null,null,null,null,null,null,null,null,395,"","","","","","","",""]
[null,null,null,null,null,null,null,null,null,null,null,null,null,null,null,null,null,null,null,null,null,null,null,null,null,null,null,null,null,null,null,null,null,null,null,null,396,"","","","","","","",""]
[null,null,null,null,null,null,null,null,null,null,null,null,null,null,null,null,null,null,null,null,null,null,null,null,null,null,null,null,null,null,null,null,null,null,null,null,397,"","","","","","","",""]
[null,null,null,null,null,null,null,null,null,null,null,null,null,null,null,null,null,null,null,null,null,null,null,null,null,null,null,null,null,null,null,null,null,null,null,null,398,"","","","","","","",""]
[null,null,null,null,null,null,null,null,null,null,null,null,null,null,null,null,null,null,null,null,null,null,null,null,null,null,null,null,null,null,null,null,null,null,null,null,399,"","","","","","","",""]
[null,null,null,null,null,null,null,null,null,null,null,null,null,null,null,null,null,null,null,null,null,null,null,null,null,null,null,null,null,null,null,null,null,null,null,null,400,"","","","","","","",""]
[null,null,null,null,null,null,null,null,null,null,null,null,null,null,null,null,null,null,null,null,null,null,null,null,null,null,null,null,null,null,null,null,null,null,null,null,401,"","","","","","","",""]
[null,null,null,null,null,null,null,null,null,null,null,null,null,null,null,null,null,null,null,null,null,null,null,null,null,null,null,null,null,null,null,null,null,null,null,null,402,"","","","","","","",""]
[null,null,null,null,null,null,null,null,null,null,null,null,null,null,null,null,null,null,null,null,null,null,null,null,null,null,null,null,null,null,null,null,null,null,null,null,403,"","","","","","","",""]
[null,null,null,null,null,null,null,null,null,null,null,null,null,null,null,null,null,null,null,null,null,null,null,null,null,null,null,null,null,null,null,null,null,null,null,null,404,"","","","","","","",""]
[null,null,null,null,null,null,null,null,null,null,null,null,null,null,null,null,null,null,null,null,null,null,null,null,null,null,null,null,null,null,null,null,null,null,null,null,405,"","","","","","","",""]
[null,null,null,null,null,null,null,null,null,null,null,null,null,null,null,null,null,null,null,null,null,null,null,null,null,null,null,null,null,null,null,null,null,null,null,null,406,"","","","","","","",""]
[null,null,null,null,null,null,null,null,null,null,null,null,null,null,null,null,null,null,null,null,null,null,null,null,null,null,null,null,null,null,null,null,null,null,null,null,407,"","","","","","","",""]
[null,null,null,null,null,null,null,null,null,null,null,null,null,null,null,null,null,null,null,null,null,null,null,null,null,null,null,null,null,null,null,null,null,null,null,null,408,"","","","","","","",""]
[null,null,null,null,null,null,null,null,null,null,null,null,null,null,null,null,null,null,null,null,null,null,null,null,null,null,null,null,null,null,null,null,null,null,null,null,409,"","","","","","","",""]
[null,null,null,null,null,null,null,null,null,null,null,null,null,null,null,null,null,null,null,null,null,null,null,null,null,null,null,null,null,null,null,null,null,null,null,null,410,"","","","","","","",""]
[null,null,null,null,null,null,null,null,null,null,null,null,null,null,null,null,null,null,null,null,null,null,null,null,null,null,null,null,null,null,null,null,null,null,null,null,411,"","","","","","","",""]
[null,null,null,null,null,null,null,null,null,null,null,null,null,null,null,null,null,null,null,null,null,null,null,null,null,null,null,null,null,null,null,null,null,null,null,null,412,"","","","","","","",""]
[null,null,null,null,null,null,null,null,null,null,null,null,null,null,null,null,null,null,null,null,null,null,null,null,null,null,null,null,null,null,null,null,null,null,null,null,413,"","","","","","","",""]
[null,null,null,null,null,null,null,null,null,null,null,null,null,null,null,null,null,null,null,null,null,null,null,null,null,null,null,null,null,null,null,null,null,null,null,null,414,"","","","","","","",""]
[null,null,null,null,null,null,null,null,null,null,null,null,null,null,null,null,null,null,null,null,null,null,null,null,null,null,null,null,null,null,null,null,null,null,null,null,415,"","","","","","","",""]
[null,null,null,null,null,null,null,null,null,null,null,null,null,null,null,null,null,null,null,null,null,null,null,null,null,null,null,null,null,null,null,null,null,null,null,null,416,"","","","","","","",""]
[null,null,null,null,null,null,null,null,null,null,null,null,null,null,null,null,null,null,null,null,null,null,null,null,null,null,null,null,null,null,null,null,null,null,null,null,417,"","","","","","","",""]
[null,null,null,null,null,null,null,null,null,null,null,null,null,null,null,null,null,null,null,null,null,null,null,null,null,null,null,null,null,null,null,null,null,null,null,null,418,"","","","","","","",""]
[null,null,null,null,null,null,null,null,null,null,null,null,null,null,null,null,null,null,null,null,null,null,null,null,null,null,null,null,null,null,null,null,null,null,null,null,419,"","","","","","","",""]
[null,null,null,null,null,null,null,null,null,null,null,null,null,null,null,null,null,null,null,null,null,null,null,null,null,null,null,null,null,null,null,null,null,null,null,null,420,"","","","","",{"$f":"IF(AL424=\"\",\"\",IF(OR(MOD(YEAR(AM424),400)=0,AND(MOD(YEAR(AM424),4)=0,MOD(YEAR(AM424),100)<>0)),366,365))","v":""},{"$f":"IF(AL424=\"\",\"\",AP424/AQ424)","v":""},""]
[null,null,null,null,null,null,null,null,null,null,null,null,null,null,null,null,null,null,null,null,null,null,null,null,null,null,null,null,null,null,null,null,null,null,null,null,421,"","","","","","","",""]
[null,null,null,null,null,null,null,null,null,null,null,null,null,null,null,null,null,null,null,null,null,null,null,null,null,null,null,null,null,null,null,null,null,null,null,null,422,"","","","","","","",""]
[null,null,null,null,null,null,null,null,null,null,null,null,null,null,null,null,null,null,null,null,null,null,null,null,null,null,null,null,null,null,null,null,null,null,null,null,423,"","","","","","","",""]
[null,null,null,null,null,null,null,null,null,null,null,null,null,null,null,null,null,null,null,null,null,null,null,null,null,null,null,null,null,null,null,null,null,null,null,null,424,"","","","","","","",""]
[null,null,null,null,null,null,null,null,null,null,null,null,null,null,null,null,null,null,null,null,null,null,null,null,null,null,null,null,null,null,null,null,null,null,null,null,425,"","","","","","","",""]
[null,null,null,null,null,null,null,null,null,null,null,null,null,null,null,null,null,null,null,null,null,null,null,null,null,null,null,null,null,null,null,null,null,null,null,null,426,"","","","","","","",""]
[null,null,null,null,null,null,null,null,null,null,null,null,null,null,null,null,null,null,null,null,null,null,null,null,null,null,null,null,null,null,null,null,null,null,null,null,427,"","","","","","","",""]
[null,null,null,null,null,null,null,null,null,null,null,null,null,null,null,null,null,null,null,null,null,null,null,null,null,null,null,null,null,null,null,null,null,null,null,null,428,"","","","","","","",""]
[null,null,null,null,null,null,null,null,null,null,null,null,null,null,null,null,null,null,null,null,null,null,null,null,null,null,null,null,null,null,null,null,null,null,null,null,429,"","","","","","","",""]
[null,null,null,null,null,null,null,null,null,null,null,null,null,null,null,null,null,null,null,null,null,null,null,null,null,null,null,null,null,null,null,null,null,null,null,null,430,"","","","","","","",""]
[null,null,null,null,null,null,null,null,null,null,null,null,null,null,null,null,null,null,null,null,null,null,null,null,null,null,null,null,null,null,null,null,null,null,null,null,431,"","","","","","","",""]
[null,null,null,null,null,null,null,null,null,null,null,null,null,null,null,null,null,null,null,null,null,null,null,null,null,null,null,null,null,null,null,null,null,null,null,null,432,"","","","","","","",""]
[null,null,null,null,null,null,null,null,null,null,null,null,null,null,null,null,null,null,null,null,null,null,null,null,null,null,null,null,null,null,null,null,null,null,null,null,433,"","","","","","","",""]
[null,null,null,null,null,null,null,null,null,null,null,null,null,null,null,null,null,null,null,null,null,null,null,null,null,null,null,null,null,null,null,null,null,null,null,null,434,"","","","","","","",""]
[null,null,null,null,null,null,null,null,null,null,null,null,null,null,null,null,null,null,null,null,null,null,null,null,null,null,null,null,null,null,null,null,null,null,null,null,435,"","","","","","","",""]
[null,null,null,null,null,null,null,null,null,null,null,null,null,null,null,null,null,null,null,null,null,null,null,null,null,null,null,null,null,null,null,null,null,null,null,null,436,"","","","","","","",""]
[null,null,null,null,null,null,null,null,null,null,null,null,null,null,null,null,null,null,null,null,null,null,null,null,null,null,null,null,null,null,null,null,null,null,null,null,437,"","","","","","","",""]
[null,null,null,null,null,null,null,null,null,null,null,null,null,null,null,null,null,null,null,null,null,null,null,null,null,null,null,null,null,null,null,null,null,null,null,null,438,"","","","","","","",""]
[null,null,null,null,null,null,null,null,null,null,null,null,null,null,null,null,null,null,null,null,null,null,null,null,null,null,null,null,null,null,null,null,null,null,null,null,439,"","","","","","","",""]
[null,null,null,null,null,null,null,null,null,null,null,null,null,null,null,null,null,null,null,null,null,null,null,null,null,null,null,null,null,null,null,null,null,null,null,null,440,"","","","","","","",""]
[null,null,null,null,null,null,null,null,null,null,null,null,null,null,null,null,null,null,null,null,null,null,null,null,null,null,null,null,null,null,null,null,null,null,null,null,441,"","","","","","","",""]
[null,null,null,null,null,null,null,null,null,null,null,null,null,null,null,null,null,null,null,null,null,null,null,null,null,null,null,null,null,null,null,null,null,null,null,null,442,"","","","","","","",""]
[null,null,null,null,null,null,null,null,null,null,null,null,null,null,null,null,null,null,null,null,null,null,null,null,null,null,null,null,null,null,null,null,null,null,null,null,443,"","","","","","","",""]
[null,null,null,null,null,null,null,null,null,null,null,null,null,null,null,null,null,null,null,null,null,null,null,null,null,null,null,null,null,null,null,null,null,null,null,null,444,"","","","","","","",""]
[null,null,null,null,null,null,null,null,null,null,null,null,null,null,null,null,null,null,null,null,null,null,null,null,null,null,null,null,null,null,null,null,null,null,null,null,445,"","","","","","","",""]
[null,null,null,null,null,null,null,null,null,null,null,null,null,null,null,null,null,null,null,null,null,null,null,null,null,null,null,null,null,null,null,null,null,null,null,null,446,"","","","","","","",""]
[null,null,null,null,null,null,null,null,null,null,null,null,null,null,null,null,null,null,null,null,null,null,null,null,null,null,null,null,null,null,null,null,null,null,null,null,447,"","","","","","","",""]
[null,null,null,null,null,null,null,null,null,null,null,null,null,null,null,null,null,null,null,null,null,null,null,null,null,null,null,null,null,null,null,null,null,null,null,null,448,"","","","","","","",""]
[null,null,null,null,null,null,null,null,null,null,null,null,null,null,null,null,null,null,null,null,null,null,null,null,null,null,null,null,null,null,null,null,null,null,null,null,449,"","","","","","","",{"$f":"IF(AL453=\"\",\"\",AO453/(1+$AH$18)^AR453)","v":""}]
[null,null,null,null,null,null,null,null,null,null,null,null,null,null,null,null,null,null,null,null,null,null,null,null,null,null,null,null,null,null,null,null,null,null,null,null,450,"","","","","","","",""]
[null,null,null,null,null,null,null,null,null,null,null,null,null,null,null,null,null,null,null,null,null,null,null,null,null,null,null,null,null,null,null,null,null,null,null,null,451,{"$f":"IF($AH$13=0,IF($AH$4>=AK454,AK454,\"\"),IF($AH$11>=AK454,AK454,\"\"))","v":""},{"$f":"IF(AL455=\"\",\"\",IF($AH$13=0,EDATE(AM454,1),IF(ISEVEN(AL455)=TRUE,EOMONTH(AM454,0),EDATE(CONCATENATE(DAY($AH$8),\".\",MONTH(AM454),\".\",YEAR(AM454)),1))))","v":""},{"$f":"IF(AL455=\"\",\"\",IF(DAY(AM455)=DAY($AH$8),\"platba splátky\",\"platba poplatků\"))","v":""},{"$f":"IF(AL455=\"\",\"\",IF(AT455=\"Ano\",0,IF(AN455=\"platba splátky\",VLOOKUP(AM455,Z:AA,2,FALSE),$AH$13)))","v":""},{"$f":"IF(AL455=\"\",\"\",AM455-$AM$4)","v":""},"","",""]
[null,null,null,null,null,null,null,null,null,null,null,null,null,null,null,null,null,null,null,null,null,null,null,null,null,null,null,null,null,null,null,null,null,null,null,null,452,"","","","","","","",""]
[null,null,null,null,null,null,null,null,null,null,null,null,null,null,null,null,null,null,null,null,null,null,null,null,null,null,null,null,null,null,null,null,null,null,null,null,453,"","","","","","","",""]
[null,null,null,null,null,null,null,null,null,null,null,null,null,null,null,null,null,null,null,null,null,null,null,null,null,null,null,null,null,null,null,null,null,null,null,null,454,"","","","","","","",""]
[null,null,null,null,null,null,null,null,null,null,null,null,null,null,null,null,null,null,null,null,null,null,null,null,null,null,null,null,null,null,null,null,null,null,null,null,455,"","","","","","","",""]
[null,null,null,null,null,null,null,null,null,null,null,null,null,null,null,null,null,null,null,null,null,null,null,null,null,null,null,null,null,null,null,null,null,null,null,null,456,"","","","","","","",""]
[null,null,null,null,null,null,null,null,null,null,null,null,null,null,null,null,null,null,null,null,null,null,null,null,null,null,null,null,null,null,null,null,null,null,null,null,457,"","","","","","","",""]
[null,null,null,null,null,null,null,null,null,null,null,null,null,null,null,null,null,null,null,null,null,null,null,null,null,null,null,null,null,null,null,null,null,null,null,null,458,"","","","","","","",""]
[null,null,null,null,null,null,null,null,null,null,null,null,null,null,null,null,null,null,null,null,null,null,null,null,null,null,null,null,null,null,null,null,null,null,null,null,459,"","","","","","","",""]
[null,null,null,null,null,null,null,null,null,null,null,null,null,null,null,null,null,null,null,null,null,null,null,null,null,null,null,null,null,null,null,null,null,null,null,null,460,"","","","","","","",""]
[null,null,null,null,null,null,null,null,null,null,null,null,null,null,null,null,null,null,null,null,null,null,null,null,null,null,null,null,null,null,null,null,null,null,null,null,461,"","","","","","","",""]
[null,null,null,null,null,null,null,null,null,null,null,null,null,null,null,null,null,null,null,null,null,null,null,null,null,null,null,null,null,null,null,null,null,null,null,null,462,"","","","","","","",""]
[null,null,null,null,null,null,null,null,null,null,null,null,null,null,null,null,null,null,null,null,null,null,null,null,null,null,null,null,null,null,null,null,null,null,null,null,463,"","","","","","","",""]
[null,null,null,null,null,null,null,null,null,null,null,null,null,null,null,null,null,null,null,null,null,null,null,null,null,null,null,null,null,null,null,null,null,null,null,null,464,"","","","","","","",""]
[null,null,null,null,null,null,null,null,null,null,null,null,null,null,null,null,null,null,null,null,null,null,null,null,null,null,null,null,null,null,null,null,null,null,null,null,465,"","","","","","","",""]
[null,null,null,null,null,null,null,null,null,null,null,null,null,null,null,null,null,null,null,null,null,null,null,null,null,null,null,null,null,null,null,null,null,null,null,null,466,"","","","","","","",""]
[null,null,null,null,null,null,null,null,null,null,null,null,null,null,null,null,null,null,null,null,null,null,null,null,null,null,null,null,null,null,null,null,null,null,null,null,467,"","","","","","","",""]
[null,null,null,null,null,null,null,null,null,null,null,null,null,null,null,null,null,null,null,null,null,null,null,null,null,null,null,null,null,null,null,null,null,null,null,null,468,"","","","","","","",""]
[null,null,null,null,null,null,null,null,null,null,null,null,null,null,null,null,null,null,null,null,null,null,null,null,null,null,null,null,null,null,null,null,null,null,null,null,469,"","","","","","","",""]
[null,null,null,null,null,null,null,null,null,null,null,null,null,null,null,null,null,null,null,null,null,null,null,null,null,null,null,null,null,null,null,null,null,null,null,null,470,"","","","","","","",""]
[null,null,null,null,null,null,null,null,null,null,null,null,null,null,null,null,null,null,null,null,null,null,null,null,null,null,null,null,null,null,null,null,null,null,null,null,471,"","","","","","","",""]
[null,null,null,null,null,null,null,null,null,null,null,null,null,null,null,null,null,null,null,null,null,null,null,null,null,null,null,null,null,null,null,null,null,null,null,null,472,"","","","","","","",""]
[null,null,null,null,null,null,null,null,null,null,null,null,null,null,null,null,null,null,null,null,null,null,null,null,null,null,null,null,null,null,null,null,null,null,null,null,473,"","","","","","","",""]
[null,null,null,null,null,null,null,null,null,null,null,null,null,null,null,null,null,null,null,null,null,null,null,null,null,null,null,null,null,null,null,null,null,null,null,null,474,"","","","","","","",""]
[null,null,null,null,null,null,null,null,null,null,null,null,null,null,null,null,null,null,null,null,null,null,null,null,null,null,null,null,null,null,null,null,null,null,null,null,475,"","","","","","","",""]
[null,null,null,null,null,null,null,null,null,null,null,null,null,null,null,null,null,null,null,null,null,null,null,null,null,null,null,null,null,null,null,null,null,null,null,null,476,"","","","","","","",""]
[null,null,null,null,null,null,null,null,null,null,null,null,null,null,null,null,null,null,null,null,null,null,null,null,null,null,null,null,null,null,null,null,null,null,null,null,477,"","","","","","","",""]
[null,null,null,null,null,null,null,null,null,null,null,null,null,null,null,null,null,null,null,null,null,null,null,null,null,null,null,null,null,null,null,null,null,null,null,null,478,"","","","","","","",""]
[null,null,null,null,null,null,null,null,null,null,null,null,null,null,null,null,null,null,null,null,null,null,null,null,null,null,null,null,null,null,null,null,null,null,null,null,479,"","","","","","","",""]
[null,null,null,null,null,null,null,null,null,null,null,null,null,null,null,null,null,null,null,null,null,null,null,null,null,null,null,null,null,null,null,null,null,null,null,null,480,"","","","","","","",""]
[null,null,null,null,null,null,null,null,null,null,null,null,null,null,null,null,null,null,null,null,null,null,null,null,null,null,null,null,null,null,null,null,null,null,null,null,481,"","","","","","","",""]
[null,null,null,null,null,null,null,null,null,null,null,null,null,null,null,null,null,null,null,null,null,null,null,null,null,null,null,null,null,null,null,null,null,null,null,null,482,"","","","","","","",""]
[null,null,null,null,null,null,null,null,null,null,null,null,null,null,null,null,null,null,null,null,null,null,null,null,null,null,null,null,null,null,null,null,null,null,null,null,483,"","","","","","","",""]
[null,null,null,null,null,null,null,null,null,null,null,null,null,null,null,null,null,null,null,null,null,null,null,null,null,null,null,null,null,null,null,null,null,null,null,null,484,"","","","","",{"$f":"IF(AL488=\"\",\"\",IF(OR(MOD(YEAR(AM488),400)=0,AND(MOD(YEAR(AM488),4)=0,MOD(YEAR(AM488),100)<>0)),366,365))","v":""},{"$f":"IF(AL488=\"\",\"\",AP488/AQ488)","v":""},""]
[null,null,null,null,null,null,null,null,null,null,null,null,null,null,null,null,null,null,null,null,null,null,null,null,null,null,null,null,null,null,null,null,null,null,null,null,485,"","","","","","","",""]
[null,null,null,null,null,null,null,null,null,null,null,null,null,null,null,null,null,null,null,null,null,null,null,null,null,null,null,null,null,null,null,null,null,null,null,null,486,"","","","","","","",""]
[null,null,null,null,null,null,null,null,null,null,null,null,null,null,null,null,null,null,null,null,null,null,null,null,null,null,null,null,null,null,null,null,null,null,null,null,487,"","","","","","","",""]
[null,null,null,null,null,null,null,null,null,null,null,null,null,null,null,null,null,null,null,null,null,null,null,null,null,null,null,null,null,null,null,null,null,null,null,null,488,"","","","","","","",""]
[null,null,null,null,null,null,null,null,null,null,null,null,null,null,null,null,null,null,null,null,null,null,null,null,null,null,null,null,null,null,null,null,null,null,null,null,489,"","","","","","","",""]
[null,null,null,null,null,null,null,null,null,null,null,null,null,null,null,null,null,null,null,null,null,null,null,null,null,null,null,null,null,null,null,null,null,null,null,null,490,"","","","","","","",""]
[null,null,null,null,null,null,null,null,null,null,null,null,null,null,null,null,null,null,null,null,null,null,null,null,null,null,null,null,null,null,null,null,null,null,null,null,491,"","","","","","","",""]
[null,null,null,null,null,null,null,null,null,null,null,null,null,null,null,null,null,null,null,null,null,null,null,null,null,null,null,null,null,null,null,null,null,null,null,null,492,"","","","","","","",""]
[null,null,null,null,null,null,null,null,null,null,null,null,null,null,null,null,null,null,null,null,null,null,null,null,null,null,null,null,null,null,null,null,null,null,null,null,493,"","","","","","","",""]
[null,null,null,null,null,null,null,null,null,null,null,null,null,null,null,null,null,null,null,null,null,null,null,null,null,null,null,null,null,null,null,null,null,null,null,null,494,"","","","","","","",""]
[null,null,null,null,null,null,null,null,null,null,null,null,null,null,null,null,null,null,null,null,null,null,null,null,null,null,null,null,null,null,null,null,null,null,null,null,495,"","","","","","","",""]
[null,null,null,null,null,null,null,null,null,null,null,null,null,null,null,null,null,null,null,null,null,null,null,null,null,null,null,null,null,null,null,null,null,null,null,null,496,"","","","","","","",""]
[null,null,null,null,null,null,null,null,null,null,null,null,null,null,null,null,null,null,null,null,null,null,null,null,null,null,null,null,null,null,null,null,null,null,null,null,497,"","","","","","","",""]
[null,null,null,null,null,null,null,null,null,null,null,null,null,null,null,null,null,null,null,null,null,null,null,null,null,null,null,null,null,null,null,null,null,null,null,null,498,"","","","","","","",""]
[null,null,null,null,null,null,null,null,null,null,null,null,null,null,null,null,null,null,null,null,null,null,null,null,null,null,null,null,null,null,null,null,null,null,null,null,499,"","","","","","","",""]
[null,null,null,null,null,null,null,null,null,null,null,null,null,null,null,null,null,null,null,null,null,null,null,null,null,null,null,null,null,null,null,null,null,null,null,null,500,"","","","","","","",""]
[null,null,null,null,null,null,null,null,null,null,null,null,null,null,null,null,null,null,null,null,null,null,null,null,null,null,null,null,null,null,null,null,null,null,null,null,501,"","","","","","","",""]
[null,null,null,null,null,null,null,null,null,null,null,null,null,null,null,null,null,null,null,null,null,null,null,null,null,null,null,null,null,null,null,null,null,null,null,null,502,"","","","","","","",""]
[null,null,null,null,null,null,null,null,null,null,null,null,null,null,null,null,null,null,null,null,null,null,null,null,null,null,null,null,null,null,null,null,null,null,null,null,503,"","","","","","","",""]
[null,null,null,null,null,null,null,null,null,null,null,null,null,null,null,null,null,null,null,null,null,null,null,null,null,null,null,null,null,null,null,null,null,null,null,null,504,"","","","","","","",""]
[null,null,null,null,null,null,null,null,null,null,null,null,null,null,null,null,null,null,null,null,null,null,null,null,null,null,null,null,null,null,null,null,null,null,null,null,505,"","","","","","","",""]
[null,null,null,null,null,null,null,null,null,null,null,null,null,null,null,null,null,null,null,null,null,null,null,null,null,null,null,null,null,null,null,null,null,null,null,null,506,"","","","","","","",""]
[null,null,null,null,null,null,null,null,null,null,null,null,null,null,null,null,null,null,null,null,null,null,null,null,null,null,null,null,null,null,null,null,null,null,null,null,507,"","","","","","","",""]
[null,null,null,null,null,null,null,null,null,null,null,null,null,null,null,null,null,null,null,null,null,null,null,null,null,null,null,null,null,null,null,null,null,null,null,null,508,"","","","","","","",""]
[null,null,null,null,null,null,null,null,null,null,null,null,null,null,null,null,null,null,null,null,null,null,null,null,null,null,null,null,null,null,null,null,null,null,null,null,509,"","","","","","","",""]
[null,null,null,null,null,null,null,null,null,null,null,null,null,null,null,null,null,null,null,null,null,null,null,null,null,null,null,null,null,null,null,null,null,null,null,null,510,"","","","","","","",""]
[null,null,null,null,null,null,null,null,null,null,null,null,null,null,null,null,null,null,null,null,null,null,null,null,null,null,null,null,null,null,null,null,null,null,null,null,511,"","","","","","","",""]
[null,null,null,null,null,null,null,null,null,null,null,null,null,null,null,null,null,null,null,null,null,null,null,null,null,null,null,null,null,null,null,null,null,null,null,null,512,"","","","","","","",""]
[null,null,null,null,null,null,null,null,null,null,null,null,null,null,null,null,null,null,null,null,null,null,null,null,null,null,null,null,null,null,null,null,null,null,null,null,513,"","","","","","","",{"$f":"IF(AL517=\"\",\"\",AO517/(1+$AH$18)^AR517)","v":""}]
[null,null,null,null,null,null,null,null,null,null,null,null,null,null,null,null,null,null,null,null,null,null,null,null,null,null,null,null,null,null,null,null,null,null,null,null,514,"","","","","","","",""]
[null,null,null,null,null,null,null,null,null,null,null,null,null,null,null,null,null,null,null,null,null,null,null,null,null,null,null,null,null,null,null,null,null,null,null,null,515,{"$f":"IF($AH$13=0,IF($AH$4>=AK518,AK518,\"\"),IF($AH$11>=AK518,AK518,\"\"))","v":""},{"$f":"IF(AL519=\"\",\"\",IF($AH$13=0,EDATE(AM518,1),IF(ISEVEN(AL519)=TRUE,EOMONTH(AM518,0),EDATE(CONCATENATE(DAY($AH$8),\".\",MONTH(AM518),\".\",YEAR(AM518)),1))))","v":""},{"$f":"IF(AL519=\"\",\"\",IF(DAY(AM519)=DAY($AH$8),\"platba splátky\",\"platba poplatků\"))","v":""},{"$f":"IF(AL519=\"\",\"\",IF(AT519=\"Ano\",0,IF(AN519=\"platba splátky\",VLOOKUP(AM519,Z:AA,2,FALSE),$AH$13)))","v":""},{"$f":"IF(AL519=\"\",\"\",AM519-$AM$4)","v":""},"","",""]
[null,null,null,null,null,null,null,null,null,null,null,null,null,null,null,null,null,null,null,null,null,null,null,null,null,null,null,null,null,null,null,null,null,null,null,null,516,"","","","","","","",""]
[null,null,null,null,null,null,null,null,null,null,null,null,null,null,null,null,null,null,null,null,null,null,null,null,null,null,null,null,null,null,null,null,null,null,null,null,517,"","","","","","","",""]
[null,null,null,null,null,null,null,null,null,null,null,null,null,null,null,null,null,null,null,null,null,null,null,null,null,null,null,null,null,null,null,null,null,null,null,null,518,"","","","","","","",""]
[null,null,null,null,null,null,null,null,null,null,null,null,null,null,null,null,null,null,null,null,null,null,null,null,null,null,null,null,null,null,null,null,null,null,null,null,519,"","","","","","","",""]
[null,null,null,null,null,null,null,null,null,null,null,null,null,null,null,null,null,null,null,null,null,null,null,null,null,null,null,null,null,null,null,null,null,null,null,null,520,"","","","","","","",""]
[null,null,null,null,null,null,null,null,null,null,null,null,null,null,null,null,null,null,null,null,null,null,null,null,null,null,null,null,null,null,null,null,null,null,null,null,521,"","","","","","","",""]
[null,null,null,null,null,null,null,null,null,null,null,null,null,null,null,null,null,null,null,null,null,null,null,null,null,null,null,null,null,null,null,null,null,null,null,null,522,"","","","","","","",""]
[null,null,null,null,null,null,null,null,null,null,null,null,null,null,null,null,null,null,null,null,null,null,null,null,null,null,null,null,null,null,null,null,null,null,null,null,523,"","","","","","","",""]
[null,null,null,null,null,null,null,null,null,null,null,null,null,null,null,null,null,null,null,null,null,null,null,null,null,null,null,null,null,null,null,null,null,null,null,null,524,"","","","","","","",""]
[null,null,null,null,null,null,null,null,null,null,null,null,null,null,null,null,null,null,null,null,null,null,null,null,null,null,null,null,null,null,null,null,null,null,null,null,525,"","","","","","","",""]
[null,null,null,null,null,null,null,null,null,null,null,null,null,null,null,null,null,null,null,null,null,null,null,null,null,null,null,null,null,null,null,null,null,null,null,null,526,"","","","","","","",""]
[null,null,null,null,null,null,null,null,null,null,null,null,null,null,null,null,null,null,null,null,null,null,null,null,null,null,null,null,null,null,null,null,null,null,null,null,527,"","","","","","","",""]
[null,null,null,null,null,null,null,null,null,null,null,null,null,null,null,null,null,null,null,null,null,null,null,null,null,null,null,null,null,null,null,null,null,null,null,null,528,"","","","","","","",""]
[null,null,null,null,null,null,null,null,null,null,null,null,null,null,null,null,null,null,null,null,null,null,null,null,null,null,null,null,null,null,null,null,null,null,null,null,529,"","","","","","","",""]
[null,null,null,null,null,null,null,null,null,null,null,null,null,null,null,null,null,null,null,null,null,null,null,null,null,null,null,null,null,null,null,null,null,null,null,null,530,"","","","","","","",""]
[null,null,null,null,null,null,null,null,null,null,null,null,null,null,null,null,null,null,null,null,null,null,null,null,null,null,null,null,null,null,null,null,null,null,null,null,531,"","","","","","","",""]
[null,null,null,null,null,null,null,null,null,null,null,null,null,null,null,null,null,null,null,null,null,null,null,null,null,null,null,null,null,null,null,null,null,null,null,null,532,"","","","","","","",""]
[null,null,null,null,null,null,null,null,null,null,null,null,null,null,null,null,null,null,null,null,null,null,null,null,null,null,null,null,null,null,null,null,null,null,null,null,533,"","","","","","","",""]
[null,null,null,null,null,null,null,null,null,null,null,null,null,null,null,null,null,null,null,null,null,null,null,null,null,null,null,null,null,null,null,null,null,null,null,null,534,"","","","","","","",""]
[null,null,null,null,null,null,null,null,null,null,null,null,null,null,null,null,null,null,null,null,null,null,null,null,null,null,null,null,null,null,null,null,null,null,null,null,535,"","","","","","","",""]
[null,null,null,null,null,null,null,null,null,null,null,null,null,null,null,null,null,null,null,null,null,null,null,null,null,null,null,null,null,null,null,null,null,null,null,null,536,"","","","","","","",""]
[null,null,null,null,null,null,null,null,null,null,null,null,null,null,null,null,null,null,null,null,null,null,null,null,null,null,null,null,null,null,null,null,null,null,null,null,537,"","","","","","","",""]
[null,null,null,null,null,null,null,null,null,null,null,null,null,null,null,null,null,null,null,null,null,null,null,null,null,null,null,null,null,null,null,null,null,null,null,null,538,"","","","","","","",""]
[null,null,null,null,null,null,null,null,null,null,null,null,null,null,null,null,null,null,null,null,null,null,null,null,null,null,null,null,null,null,null,null,null,null,null,null,539,"","","","","","","",""]
[null,null,null,null,null,null,null,null,null,null,null,null,null,null,null,null,null,null,null,null,null,null,null,null,null,null,null,null,null,null,null,null,null,null,null,null,540,"","","","","","","",""]
[null,null,null,null,null,null,null,null,null,null,null,null,null,null,null,null,null,null,null,null,null,null,null,null,null,null,null,null,null,null,null,null,null,null,null,null,541,"","","","","","","",""]
[null,null,null,null,null,null,null,null,null,null,null,null,null,null,null,null,null,null,null,null,null,null,null,null,null,null,null,null,null,null,null,null,null,null,null,null,542,"","","","","","","",""]
[null,null,null,null,null,null,null,null,null,null,null,null,null,null,null,null,null,null,null,null,null,null,null,null,null,null,null,null,null,null,null,null,null,null,null,null,543,"","","","","","","",""]
[null,null,null,null,null,null,null,null,null,null,null,null,null,null,null,null,null,null,null,null,null,null,null,null,null,null,null,null,null,null,null,null,null,null,null,null,544,"","","","","","","",""]
[null,null,null,null,null,null,null,null,null,null,null,null,null,null,null,null,null,null,null,null,null,null,null,null,null,null,null,null,null,null,null,null,null,null,null,null,545,"","","","","","","",""]
[null,null,null,null,null,null,null,null,null,null,null,null,null,null,null,null,null,null,null,null,null,null,null,null,null,null,null,null,null,null,null,null,null,null,null,null,546,"","","","","","","",""]
[null,null,null,null,null,null,null,null,null,null,null,null,null,null,null,null,null,null,null,null,null,null,null,null,null,null,null,null,null,null,null,null,null,null,null,null,547,"","","","","","","",""]
[null,null,null,null,null,null,null,null,null,null,null,null,null,null,null,null,null,null,null,null,null,null,null,null,null,null,null,null,null,null,null,null,null,null,null,null,548,"","","","","",{"$f":"IF(AL552=\"\",\"\",IF(OR(MOD(YEAR(AM552),400)=0,AND(MOD(YEAR(AM552),4)=0,MOD(YEAR(AM552),100)<>0)),366,365))","v":""},{"$f":"IF(AL552=\"\",\"\",AP552/AQ552)","v":""},""]
[null,null,null,null,null,null,null,null,null,null,null,null,null,null,null,null,null,null,null,null,null,null,null,null,null,null,null,null,null,null,null,null,null,null,null,null,549,"","","","","","","",""]
[null,null,null,null,null,null,null,null,null,null,null,null,null,null,null,null,null,null,null,null,null,null,null,null,null,null,null,null,null,null,null,null,null,null,null,null,550,"","","","","","","",""]
[null,null,null,null,null,null,null,null,null,null,null,null,null,null,null,null,null,null,null,null,null,null,null,null,null,null,null,null,null,null,null,null,null,null,null,null,551,"","","","","","","",""]
[null,null,null,null,null,null,null,null,null,null,null,null,null,null,null,null,null,null,null,null,null,null,null,null,null,null,null,null,null,null,null,null,null,null,null,null,552,"","","","","","","",""]
[null,null,null,null,null,null,null,null,null,null,null,null,null,null,null,null,null,null,null,null,null,null,null,null,null,null,null,null,null,null,null,null,null,null,null,null,553,"","","","","","","",""]
[null,null,null,null,null,null,null,null,null,null,null,null,null,null,null,null,null,null,null,null,null,null,null,null,null,null,null,null,null,null,null,null,null,null,null,null,554,"","","","","","","",""]
[null,null,null,null,null,null,null,null,null,null,null,null,null,null,null,null,null,null,null,null,null,null,null,null,null,null,null,null,null,null,null,null,null,null,null,null,555,"","","","","","","",""]
[null,null,null,null,null,null,null,null,null,null,null,null,null,null,null,null,null,null,null,null,null,null,null,null,null,null,null,null,null,null,null,null,null,null,null,null,556,"","","","","","","",""]
[null,null,null,null,null,null,null,null,null,null,null,null,null,null,null,null,null,null,null,null,null,null,null,null,null,null,null,null,null,null,null,null,null,null,null,null,557,"","","","","","","",""]
[null,null,null,null,null,null,null,null,null,null,null,null,null,null,null,null,null,null,null,null,null,null,null,null,null,null,null,null,null,null,null,null,null,null,null,null,558,"","","","","","","",""]
[null,null,null,null,null,null,null,null,null,null,null,null,null,null,null,null,null,null,null,null,null,null,null,null,null,null,null,null,null,null,null,null,null,null,null,null,559,"","","","","","","",""]
[null,null,null,null,null,null,null,null,null,null,null,null,null,null,null,null,null,null,null,null,null,null,null,null,null,null,null,null,null,null,null,null,null,null,null,null,560,"","","","","","","",""]
[null,null,null,null,null,null,null,null,null,null,null,null,null,null,null,null,null,null,null,null,null,null,null,null,null,null,null,null,null,null,null,null,null,null,null,null,561,"","","","","","","",""]
[null,null,null,null,null,null,null,null,null,null,null,null,null,null,null,null,null,null,null,null,null,null,null,null,null,null,null,null,null,null,null,null,null,null,null,null,562,"","","","","","","",""]
[null,null,null,null,null,null,null,null,null,null,null,null,null,null,null,null,null,null,null,null,null,null,null,null,null,null,null,null,null,null,null,null,null,null,null,null,563,"","","","","","","",""]
[null,null,null,null,null,null,null,null,null,null,null,null,null,null,null,null,null,null,null,null,null,null,null,null,null,null,null,null,null,null,null,null,null,null,null,null,564,"","","","","","","",""]
[null,null,null,null,null,null,null,null,null,null,null,null,null,null,null,null,null,null,null,null,null,null,null,null,null,null,null,null,null,null,null,null,null,null,null,null,565,"","","","","","","",""]
[null,null,null,null,null,null,null,null,null,null,null,null,null,null,null,null,null,null,null,null,null,null,null,null,null,null,null,null,null,null,null,null,null,null,null,null,566,"","","","","","","",""]
[null,null,null,null,null,null,null,null,null,null,null,null,null,null,null,null,null,null,null,null,null,null,null,null,null,null,null,null,null,null,null,null,null,null,null,null,567,"","","","","","","",""]
[null,null,null,null,null,null,null,null,null,null,null,null,null,null,null,null,null,null,null,null,null,null,null,null,null,null,null,null,null,null,null,null,null,null,null,null,568,"","","","","","","",""]
[null,null,null,null,null,null,null,null,null,null,null,null,null,null,null,null,null,null,null,null,null,null,null,null,null,null,null,null,null,null,null,null,null,null,null,null,569,"","","","","","","",""]
[null,null,null,null,null,null,null,null,null,null,null,null,null,null,null,null,null,null,null,null,null,null,null,null,null,null,null,null,null,null,null,null,null,null,null,null,570,"","","","","","","",""]
[null,null,null,null,null,null,null,null,null,null,null,null,null,null,null,null,null,null,null,null,null,null,null,null,null,null,null,null,null,null,null,null,null,null,null,null,571,"","","","","","","",""]
[null,null,null,null,null,null,null,null,null,null,null,null,null,null,null,null,null,null,null,null,null,null,null,null,null,null,null,null,null,null,null,null,null,null,null,null,572,"","","","","","","",""]
[null,null,null,null,null,null,null,null,null,null,null,null,null,null,null,null,null,null,null,null,null,null,null,null,null,null,null,null,null,null,null,null,null,null,null,null,573,"","","","","","","",""]
[null,null,null,null,null,null,null,null,null,null,null,null,null,null,null,null,null,null,null,null,null,null,null,null,null,null,null,null,null,null,null,null,null,null,null,null,574,"","","","","","","",""]
[null,null,null,null,null,null,null,null,null,null,null,null,null,null,null,null,null,null,null,null,null,null,null,null,null,null,null,null,null,null,null,null,null,null,null,null,575,"","","","","","","",""]
[null,null,null,null,null,null,null,null,null,null,null,null,null,null,null,null,null,null,null,null,null,null,null,null,null,null,null,null,null,null,null,null,null,null,null,null,576,"","","","","","","",""]
[null,null,null,null,null,null,null,null,null,null,null,null,null,null,null,null,null,null,null,null,null,null,null,null,null,null,null,null,null,null,null,null,null,null,null,null,577,"","","","","","","",{"$f":"IF(AL581=\"\",\"\",AO581/(1+$AH$18)^AR581)","v":""}]
[null,null,null,null,null,null,null,null,null,null,null,null,null,null,null,null,null,null,null,null,null,null,null,null,null,null,null,null,null,null,null,null,null,null,null,null,578,"","","","","","","",""]
[null,null,null,null,null,null,null,null,null,null,null,null,null,null,null,null,null,null,null,null,null,null,null,null,null,null,null,null,null,null,null,null,null,null,null,null,579,{"$f":"IF($AH$13=0,IF($AH$4>=AK582,AK582,\"\"),IF($AH$11>=AK582,AK582,\"\"))","v":""},{"$f":"IF(AL583=\"\",\"\",IF($AH$13=0,EDATE(AM582,1),IF(ISEVEN(AL583)=TRUE,EOMONTH(AM582,0),EDATE(CONCATENATE(DAY($AH$8),\".\",MONTH(AM582),\".\",YEAR(AM582)),1))))","v":""},{"$f":"IF(AL583=\"\",\"\",IF(DAY(AM583)=DAY($AH$8),\"platba splátky\",\"platba poplatků\"))","v":""},{"$f":"IF(AL583=\"\",\"\",IF(AT583=\"Ano\",0,IF(AN583=\"platba splátky\",VLOOKUP(AM583,Z:AA,2,FALSE),$AH$13)))","v":""},{"$f":"IF(AL583=\"\",\"\",AM583-$AM$4)","v":""},"","",""]
[null,null,null,null,null,null,null,null,null,null,null,null,null,null,null,null,null,null,null,null,null,null,null,null,null,null,null,null,null,null,null,null,null,null,null,null,580,"","","","","","","",""]
[null,null,null,null,null,null,null,null,null,null,null,null,null,null,null,null,null,null,null,null,null,null,null,null,null,null,null,null,null,null,null,null,null,null,null,null,581,"","","","","","","",""]
[null,null,null,null,null,null,null,null,null,null,null,null,null,null,null,null,null,null,null,null,null,null,null,null,null,null,null,null,null,null,null,null,null,null,null,null,582,"","","","","","","",""]
[null,null,null,null,null,null,null,null,null,null,null,null,null,null,null,null,null,null,null,null,null,null,null,null,null,null,null,null,null,null,null,null,null,null,null,null,583,"","","","","","","",""]
[null,null,null,null,null,null,null,null,null,null,null,null,null,null,null,null,null,null,null,null,null,null,null,null,null,null,null,null,null,null,null,null,null,null,null,null,584,"","","","","","","",""]
[null,null,null,null,null,null,null,null,null,null,null,null,null,null,null,null,null,null,null,null,null,null,null,null,null,null,null,null,null,null,null,null,null,null,null,null,585,"","","","","","","",""]
[null,null,null,null,null,null,null,null,null,null,null,null,null,null,null,null,null,null,null,null,null,null,null,null,null,null,null,null,null,null,null,null,null,null,null,null,586,"","","","","","","",""]
[null,null,null,null,null,null,null,null,null,null,null,null,null,null,null,null,null,null,null,null,null,null,null,null,null,null,null,null,null,null,null,null,null,null,null,null,587,"","","","","","","",""]
[null,null,null,null,null,null,null,null,null,null,null,null,null,null,null,null,null,null,null,null,null,null,null,null,null,null,null,null,null,null,null,null,null,null,null,null,588,"","","","","","","",""]
[null,null,null,null,null,null,null,null,null,null,null,null,null,null,null,null,null,null,null,null,null,null,null,null,null,null,null,null,null,null,null,null,null,null,null,null,589,"","","","","","","",""]
[null,null,null,null,null,null,null,null,null,null,null,null,null,null,null,null,null,null,null,null,null,null,null,null,null,null,null,null,null,null,null,null,null,null,null,null,590,"","","","","","","",""]
[null,null,null,null,null,null,null,null,null,null,null,null,null,null,null,null,null,null,null,null,null,null,null,null,null,null,null,null,null,null,null,null,null,null,null,null,591,"","","","","","","",""]
[null,null,null,null,null,null,null,null,null,null,null,null,null,null,null,null,null,null,null,null,null,null,null,null,null,null,null,null,null,null,null,null,null,null,null,null,592,"","","","","","","",""]
[null,null,null,null,null,null,null,null,null,null,null,null,null,null,null,null,null,null,null,null,null,null,null,null,null,null,null,null,null,null,null,null,null,null,null,null,593,"","","","","","","",""]
[null,null,null,null,null,null,null,null,null,null,null,null,null,null,null,null,null,null,null,null,null,null,null,null,null,null,null,null,null,null,null,null,null,null,null,null,594,"","","","","","","",""]
[null,null,null,null,null,null,null,null,null,null,null,null,null,null,null,null,null,null,null,null,null,null,null,null,null,null,null,null,null,null,null,null,null,null,null,null,595,"","","","","","","",""]
[null,null,null,null,null,null,null,null,null,null,null,null,null,null,null,null,null,null,null,null,null,null,null,null,null,null,null,null,null,null,null,null,null,null,null,null,596,"","","","","","","",""]
[null,null,null,null,null,null,null,null,null,null,null,null,null,null,null,null,null,null,null,null,null,null,null,null,null,null,null,null,null,null,null,null,null,null,null,null,597,"","","","","","","",""]
[null,null,null,null,null,null,null,null,null,null,null,null,null,null,null,null,null,null,null,null,null,null,null,null,null,null,null,null,null,null,null,null,null,null,null,null,598,"","","","","","","",""]
[null,null,null,null,null,null,null,null,null,null,null,null,null,null,null,null,null,null,null,null,null,null,null,null,null,null,null,null,null,null,null,null,null,null,null,null,599,"","","","","","","",""]
[null,null,null,null,null,null,null,null,null,null,null,null,null,null,null,null,null,null,null,null,null,null,null,null,null,null,null,null,null,null,null,null,null,null,null,null,600,"","","","","","","",""]
[null,null,null,null,null,null,null,null,null,null,null,null,null,null,null,null,null,null,null,null,null,null,null,null,null,null,null,null,null,null,null,null,null,null,null,null,601,"","","","","","","",""]
[null,null,null,null,null,null,null,null,null,null,null,null,null,null,null,null,null,null,null,null,null,null,null,null,null,null,null,null,null,null,null,null,null,null,null,null,602,"","","","","","","",""]
[null,null,null,null,null,null,null,null,null,null,null,null,null,null,null,null,null,null,null,null,null,null,null,null,null,null,null,null,null,null,null,null,null,null,null,null,603,"","","","","","","",""]
[null,null,null,null,null,null,null,null,null,null,null,null,null,null,null,null,null,null,null,null,null,null,null,null,null,null,null,null,null,null,null,null,null,null,null,null,604,"","","","","","","",""]
[null,null,null,null,null,null,null,null,null,null,null,null,null,null,null,null,null,null,null,null,null,null,null,null,null,null,null,null,null,null,null,null,null,null,null,null,605,"","","","","","","",""]
[null,null,null,null,null,null,null,null,null,null,null,null,null,null,null,null,null,null,null,null,null,null,null,null,null,null,null,null,null,null,null,null,null,null,null,null,606,"","","","","","","",""]
[null,null,null,null,null,null,null,null,null,null,null,null,null,null,null,null,null,null,null,null,null,null,null,null,null,null,null,null,null,null,null,null,null,null,null,null,607,"","","","","","","",""]
[null,null,null,null,null,null,null,null,null,null,null,null,null,null,null,null,null,null,null,null,null,null,null,null,null,null,null,null,null,null,null,null,null,null,null,null,608,"","","","","","","",""]
[null,null,null,null,null,null,null,null,null,null,null,null,null,null,null,null,null,null,null,null,null,null,null,null,null,null,null,null,null,null,null,null,null,null,null,null,609,"","","","","","","",""]
[null,null,null,null,null,null,null,null,null,null,null,null,null,null,null,null,null,null,null,null,null,null,null,null,null,null,null,null,null,null,null,null,null,null,null,null,610,"","","","","","","",""]
[null,null,null,null,null,null,null,null,null,null,null,null,null,null,null,null,null,null,null,null,null,null,null,null,null,null,null,null,null,null,null,null,null,null,null,null,611,"","","","","","","",""]
[null,null,null,null,null,null,null,null,null,null,null,null,null,null,null,null,null,null,null,null,null,null,null,null,null,null,null,null,null,null,null,null,null,null,null,null,612,"","","","","",{"$f":"IF(AL616=\"\",\"\",IF(OR(MOD(YEAR(AM616),400)=0,AND(MOD(YEAR(AM616),4)=0,MOD(YEAR(AM616),100)<>0)),366,365))","v":""},{"$f":"IF(AL616=\"\",\"\",AP616/AQ616)","v":""},""]
[null,null,null,null,null,null,null,null,null,null,null,null,null,null,null,null,null,null,null,null,null,null,null,null,null,null,null,null,null,null,null,null,null,null,null,null,613,"","","","","","","",""]
[null,null,null,null,null,null,null,null,null,null,null,null,null,null,null,null,null,null,null,null,null,null,null,null,null,null,null,null,null,null,null,null,null,null,null,null,614,"","","","","","","",""]
[null,null,null,null,null,null,null,null,null,null,null,null,null,null,null,null,null,null,null,null,null,null,null,null,null,null,null,null,null,null,null,null,null,null,null,null,615,"","","","","","","",""]
[null,null,null,null,null,null,null,null,null,null,null,null,null,null,null,null,null,null,null,null,null,null,null,null,null,null,null,null,null,null,null,null,null,null,null,null,616,"","","","","","","",""]
[null,null,null,null,null,null,null,null,null,null,null,null,null,null,null,null,null,null,null,null,null,null,null,null,null,null,null,null,null,null,null,null,null,null,null,null,617,"","","","","","","",""]
[null,null,null,null,null,null,null,null,null,null,null,null,null,null,null,null,null,null,null,null,null,null,null,null,null,null,null,null,null,null,null,null,null,null,null,null,618,"","","","","","","",""]
[null,null,null,null,null,null,null,null,null,null,null,null,null,null,null,null,null,null,null,null,null,null,null,null,null,null,null,null,null,null,null,null,null,null,null,null,619,"","","","","","","",""]
[null,null,null,null,null,null,null,null,null,null,null,null,null,null,null,null,null,null,null,null,null,null,null,null,null,null,null,null,null,null,null,null,null,null,null,null,620,"","","","","","","",""]
[null,null,null,null,null,null,null,null,null,null,null,null,null,null,null,null,null,null,null,null,null,null,null,null,null,null,null,null,null,null,null,null,null,null,null,null,621,"","","","","","","",""]
[null,null,null,null,null,null,null,null,null,null,null,null,null,null,null,null,null,null,null,null,null,null,null,null,null,null,null,null,null,null,null,null,null,null,null,null,622,"","","","","","","",""]
[null,null,null,null,null,null,null,null,null,null,null,null,null,null,null,null,null,null,null,null,null,null,null,null,null,null,null,null,null,null,null,null,null,null,null,null,623,"","","","","","","",""]
[null,null,null,null,null,null,null,null,null,null,null,null,null,null,null,null,null,null,null,null,null,null,null,null,null,null,null,null,null,null,null,null,null,null,null,null,624,"","","","","","","",""]
[null,null,null,null,null,null,null,null,null,null,null,null,null,null,null,null,null,null,null,null,null,null,null,null,null,null,null,null,null,null,null,null,null,null,null,null,625,"","","","","","","",""]
[null,null,null,null,null,null,null,null,null,null,null,null,null,null,null,null,null,null,null,null,null,null,null,null,null,null,null,null,null,null,null,null,null,null,null,null,626,"","","","","","","",""]
[null,null,null,null,null,null,null,null,null,null,null,null,null,null,null,null,null,null,null,null,null,null,null,null,null,null,null,null,null,null,null,null,null,null,null,null,627,"","","","","","","",""]
[null,null,null,null,null,null,null,null,null,null,null,null,null,null,null,null,null,null,null,null,null,null,null,null,null,null,null,null,null,null,null,null,null,null,null,null,628,"","","","","","","",""]
[null,null,null,null,null,null,null,null,null,null,null,null,null,null,null,null,null,null,null,null,null,null,null,null,null,null,null,null,null,null,null,null,null,null,null,null,629,"","","","","","","",""]
[null,null,null,null,null,null,null,null,null,null,null,null,null,null,null,null,null,null,null,null,null,null,null,null,null,null,null,null,null,null,null,null,null,null,null,null,630,"","","","","","","",""]
[null,null,null,null,null,null,null,null,null,null,null,null,null,null,null,null,null,null,null,null,null,null,null,null,null,null,null,null,null,null,null,null,null,null,null,null,631,"","","","","","","",""]
[null,null,null,null,null,null,null,null,null,null,null,null,null,null,null,null,null,null,null,null,null,null,null,null,null,null,null,null,null,null,null,null,null,null,null,null,632,"","","","","","","",""]
[null,null,null,null,null,null,null,null,null,null,null,null,null,null,null,null,null,null,null,null,null,null,null,null,null,null,null,null,null,null,null,null,null,null,null,null,633,"","","","","","","",""]
[null,null,null,null,null,null,null,null,null,null,null,null,null,null,null,null,null,null,null,null,null,null,null,null,null,null,null,null,null,null,null,null,null,null,null,null,634,"","","","","","","",""]
[null,null,null,null,null,null,null,null,null,null,null,null,null,null,null,null,null,null,null,null,null,null,null,null,null,null,null,null,null,null,null,null,null,null,null,null,635,"","","","","","","",""]
[null,null,null,null,null,null,null,null,null,null,null,null,null,null,null,null,null,null,null,null,null,null,null,null,null,null,null,null,null,null,null,null,null,null,null,null,636,"","","","","","","",""]
[null,null,null,null,null,null,null,null,null,null,null,null,null,null,null,null,null,null,null,null,null,null,null,null,null,null,null,null,null,null,null,null,null,null,null,null,637,"","","","","","","",""]
[null,null,null,null,null,null,null,null,null,null,null,null,null,null,null,null,null,null,null,null,null,null,null,null,null,null,null,null,null,null,null,null,null,null,null,null,638,"","","","","","","",""]
[null,null,null,null,null,null,null,null,null,null,null,null,null,null,null,null,null,null,null,null,null,null,null,null,null,null,null,null,null,null,null,null,null,null,null,null,639,"","","","","","","",""]
[null,null,null,null,null,null,null,null,null,null,null,null,null,null,null,null,null,null,null,null,null,null,null,null,null,null,null,null,null,null,null,null,null,null,null,null,640,"","","","","","","",""]
[null,null,null,null,null,null,null,null,null,null,null,null,null,null,null,null,null,null,null,null,null,null,null,null,null,null,null,null,null,null,null,null,null,null,null,null,641,"","","","","","","",{"$f":"IF(AL645=\"\",\"\",AO645/(1+$AH$18)^AR645)","v":""}]
[null,null,null,null,null,null,null,null,null,null,null,null,null,null,null,null,null,null,null,null,null,null,null,null,null,null,null,null,null,null,null,null,null,null,null,null,642,"","","","","","","",""]
[null,null,null,null,null,null,null,null,null,null,null,null,null,null,null,null,null,null,null,null,null,null,null,null,null,null,null,null,null,null,null,null,null,null,null,null,643,{"$f":"IF($AH$13=0,IF($AH$4>=AK646,AK646,\"\"),IF($AH$11>=AK646,AK646,\"\"))","v":""},{"$f":"IF(AL647=\"\",\"\",IF($AH$13=0,EDATE(AM646,1),IF(ISEVEN(AL647)=TRUE,EOMONTH(AM646,0),EDATE(CONCATENATE(DAY($AH$8),\".\",MONTH(AM646),\".\",YEAR(AM646)),1))))","v":""},{"$f":"IF(AL647=\"\",\"\",IF(DAY(AM647)=DAY($AH$8),\"platba splátky\",\"platba poplatků\"))","v":""},{"$f":"IF(AL647=\"\",\"\",IF(AT647=\"Ano\",0,IF(AN647=\"platba splátky\",VLOOKUP(AM647,Z:AA,2,FALSE),$AH$13)))","v":""},{"$f":"IF(AL647=\"\",\"\",AM647-$AM$4)","v":""},"","",""]
[null,null,null,null,null,null,null,null,null,null,null,null,null,null,null,null,null,null,null,null,null,null,null,null,null,null,null,null,null,null,null,null,null,null,null,null,644,"","","","","","","",""]
[null,null,null,null,null,null,null,null,null,null,null,null,null,null,null,null,null,null,null,null,null,null,null,null,null,null,null,null,null,null,null,null,null,null,null,null,645,"","","","","","","",""]
[null,null,null,null,null,null,null,null,null,null,null,null,null,null,null,null,null,null,null,null,null,null,null,null,null,null,null,null,null,null,null,null,null,null,null,null,646,"","","","","","","",""]
[null,null,null,null,null,null,null,null,null,null,null,null,null,null,null,null,null,null,null,null,null,null,null,null,null,null,null,null,null,null,null,null,null,null,null,null,647,"","","","","","","",""]
[null,null,null,null,null,null,null,null,null,null,null,null,null,null,null,null,null,null,null,null,null,null,null,null,null,null,null,null,null,null,null,null,null,null,null,null,648,"","","","","","","",""]
[null,null,null,null,null,null,null,null,null,null,null,null,null,null,null,null,null,null,null,null,null,null,null,null,null,null,null,null,null,null,null,null,null,null,null,null,649,"","","","","","","",""]
[null,null,null,null,null,null,null,null,null,null,null,null,null,null,null,null,null,null,null,null,null,null,null,null,null,null,null,null,null,null,null,null,null,null,null,null,650,"","","","","","","",""]
[null,null,null,null,null,null,null,null,null,null,null,null,null,null,null,null,null,null,null,null,null,null,null,null,null,null,null,null,null,null,null,null,null,null,null,null,651,"","","","","","","",""]
[null,null,null,null,null,null,null,null,null,null,null,null,null,null,null,null,null,null,null,null,null,null,null,null,null,null,null,null,null,null,null,null,null,null,null,null,652,"","","","","","","",""]
[null,null,null,null,null,null,null,null,null,null,null,null,null,null,null,null,null,null,null,null,null,null,null,null,null,null,null,null,null,null,null,null,null,null,null,null,653,"","","","","","","",""]
[null,null,null,null,null,null,null,null,null,null,null,null,null,null,null,null,null,null,null,null,null,null,null,null,null,null,null,null,null,null,null,null,null,null,null,null,654,"","","","","","","",""]
[null,null,null,null,null,null,null,null,null,null,null,null,null,null,null,null,null,null,null,null,null,null,null,null,null,null,null,null,null,null,null,null,null,null,null,null,655,"","","","","","","",""]
[null,null,null,null,null,null,null,null,null,null,null,null,null,null,null,null,null,null,null,null,null,null,null,null,null,null,null,null,null,null,null,null,null,null,null,null,656,"","","","","","","",""]
[null,null,null,null,null,null,null,null,null,null,null,null,null,null,null,null,null,null,null,null,null,null,null,null,null,null,null,null,null,null,null,null,null,null,null,null,657,"","","","","","","",""]
[null,null,null,null,null,null,null,null,null,null,null,null,null,null,null,null,null,null,null,null,null,null,null,null,null,null,null,null,null,null,null,null,null,null,null,null,658,"","","","","","","",""]
[null,null,null,null,null,null,null,null,null,null,null,null,null,null,null,null,null,null,null,null,null,null,null,null,null,null,null,null,null,null,null,null,null,null,null,null,659,"","","","","","","",""]
[null,null,null,null,null,null,null,null,null,null,null,null,null,null,null,null,null,null,null,null,null,null,null,null,null,null,null,null,null,null,null,null,null,null,null,null,660,"","","","","","","",""]
[null,null,null,null,null,null,null,null,null,null,null,null,null,null,null,null,null,null,null,null,null,null,null,null,null,null,null,null,null,null,null,null,null,null,null,null,661,"","","","","","","",""]
[null,null,null,null,null,null,null,null,null,null,null,null,null,null,null,null,null,null,null,null,null,null,null,null,null,null,null,null,null,null,null,null,null,null,null,null,662,"","","","","","","",""]
[null,null,null,null,null,null,null,null,null,null,null,null,null,null,null,null,null,null,null,null,null,null,null,null,null,null,null,null,null,null,null,null,null,null,null,null,663,"","","","","","","",""]
[null,null,null,null,null,null,null,null,null,null,null,null,null,null,null,null,null,null,null,null,null,null,null,null,null,null,null,null,null,null,null,null,null,null,null,null,664,"","","","","","","",""]
[null,null,null,null,null,null,null,null,null,null,null,null,null,null,null,null,null,null,null,null,null,null,null,null,null,null,null,null,null,null,null,null,null,null,null,null,665,"","","","","","","",""]
[null,null,null,null,null,null,null,null,null,null,null,null,null,null,null,null,null,null,null,null,null,null,null,null,null,null,null,null,null,null,null,null,null,null,null,null,666,"","","","","","","",""]
[null,null,null,null,null,null,null,null,null,null,null,null,null,null,null,null,null,null,null,null,null,null,null,null,null,null,null,null,null,null,null,null,null,null,null,null,667,"","","","","","","",""]
[null,null,null,null,null,null,null,null,null,null,null,null,null,null,null,null,null,null,null,null,null,null,null,null,null,null,null,null,null,null,null,null,null,null,null,null,668,"","","","","","","",""]
[null,null,null,null,null,null,null,null,null,null,null,null,null,null,null,null,null,null,null,null,null,null,null,null,null,null,null,null,null,null,null,null,null,null,null,null,669,"","","","","","","",""]
[null,null,null,null,null,null,null,null,null,null,null,null,null,null,null,null,null,null,null,null,null,null,null,null,null,null,null,null,null,null,null,null,null,null,null,null,670,"","","","","","","",""]
[null,null,null,null,null,null,null,null,null,null,null,null,null,null,null,null,null,null,null,null,null,null,null,null,null,null,null,null,null,null,null,null,null,null,null,null,671,"","","","","","","",""]
[null,null,null,null,null,null,null,null,null,null,null,null,null,null,null,null,null,null,null,null,null,null,null,null,null,null,null,null,null,null,null,null,null,null,null,null,672,"","","","","","","",""]
[null,null,null,null,null,null,null,null,null,null,null,null,null,null,null,null,null,null,null,null,null,null,null,null,null,null,null,null,null,null,null,null,null,null,null,null,673,"","","","","","","",""]
[null,null,null,null,null,null,null,null,null,null,null,null,null,null,null,null,null,null,null,null,null,null,null,null,null,null,null,null,null,null,null,null,null,null,null,null,674,"","","","","","","",""]
[null,null,null,null,null,null,null,null,null,null,null,null,null,null,null,null,null,null,null,null,null,null,null,null,null,null,null,null,null,null,null,null,null,null,null,null,675,"","","","","","","",""]
[null,null,null,null,null,null,null,null,null,null,null,null,null,null,null,null,null,null,null,null,null,null,null,null,null,null,null,null,null,null,null,null,null,null,null,null,676,"","","","","",{"$f":"IF(AL680=\"\",\"\",IF(OR(MOD(YEAR(AM680),400)=0,AND(MOD(YEAR(AM680),4)=0,MOD(YEAR(AM680),100)<>0)),366,365))","v":""},{"$f":"IF(AL680=\"\",\"\",AP680/AQ680)","v":""},""]
[null,null,null,null,null,null,null,null,null,null,null,null,null,null,null,null,null,null,null,null,null,null,null,null,null,null,null,null,null,null,null,null,null,null,null,null,677,"","","","","","","",""]
[null,null,null,null,null,null,null,null,null,null,null,null,null,null,null,null,null,null,null,null,null,null,null,null,null,null,null,null,null,null,null,null,null,null,null,null,678,"","","","","","","",""]
[null,null,null,null,null,null,null,null,null,null,null,null,null,null,null,null,null,null,null,null,null,null,null,null,null,null,null,null,null,null,null,null,null,null,null,null,679,"","","","","","","",""]
[null,null,null,null,null,null,null,null,null,null,null,null,null,null,null,null,null,null,null,null,null,null,null,null,null,null,null,null,null,null,null,null,null,null,null,null,680,"","","","","","","",""]
[null,null,null,null,null,null,null,null,null,null,null,null,null,null,null,null,null,null,null,null,null,null,null,null,null,null,null,null,null,null,null,null,null,null,null,null,681,"","","","","","","",""]
[null,null,null,null,null,null,null,null,null,null,null,null,null,null,null,null,null,null,null,null,null,null,null,null,null,null,null,null,null,null,null,null,null,null,null,null,682,"","","","","","","",""]
[null,null,null,null,null,null,null,null,null,null,null,null,null,null,null,null,null,null,null,null,null,null,null,null,null,null,null,null,null,null,null,null,null,null,null,null,683,"","","","","","","",""]
[null,null,null,null,null,null,null,null,null,null,null,null,null,null,null,null,null,null,null,null,null,null,null,null,null,null,null,null,null,null,null,null,null,null,null,null,684,"","","","","","","",""]
[null,null,null,null,null,null,null,null,null,null,null,null,null,null,null,null,null,null,null,null,null,null,null,null,null,null,null,null,null,null,null,null,null,null,null,null,685,"","","","","","","",""]
[null,null,null,null,null,null,null,null,null,null,null,null,null,null,null,null,null,null,null,null,null,null,null,null,null,null,null,null,null,null,null,null,null,null,null,null,686,"","","","","","","",""]
[null,null,null,null,null,null,null,null,null,null,null,null,null,null,null,null,null,null,null,null,null,null,null,null,null,null,null,null,null,null,null,null,null,null,null,null,687,"","","","","","","",""]
[null,null,null,null,null,null,null,null,null,null,null,null,null,null,null,null,null,null,null,null,null,null,null,null,null,null,null,null,null,null,null,null,null,null,null,null,688,"","","","","","","",""]
[null,null,null,null,null,null,null,null,null,null,null,null,null,null,null,null,null,null,null,null,null,null,null,null,null,null,null,null,null,null,null,null,null,null,null,null,689,"","","","","","","",""]
[null,null,null,null,null,null,null,null,null,null,null,null,null,null,null,null,null,null,null,null,null,null,null,null,null,null,null,null,null,null,null,null,null,null,null,null,690,"","","","","","","",""]
[null,null,null,null,null,null,null,null,null,null,null,null,null,null,null,null,null,null,null,null,null,null,null,null,null,null,null,null,null,null,null,null,null,null,null,null,691,"","","","","","","",""]
[null,null,null,null,null,null,null,null,null,null,null,null,null,null,null,null,null,null,null,null,null,null,null,null,null,null,null,null,null,null,null,null,null,null,null,null,692,"","","","","","","",""]
[null,null,null,null,null,null,null,null,null,null,null,null,null,null,null,null,null,null,null,null,null,null,null,null,null,null,null,null,null,null,null,null,null,null,null,null,693,"","","","","","","",""]
[null,null,null,null,null,null,null,null,null,null,null,null,null,null,null,null,null,null,null,null,null,null,null,null,null,null,null,null,null,null,null,null,null,null,null,null,694,"","","","","","","",""]
[null,null,null,null,null,null,null,null,null,null,null,null,null,null,null,null,null,null,null,null,null,null,null,null,null,null,null,null,null,null,null,null,null,null,null,null,695,"","","","","","","",""]
[null,null,null,null,null,null,null,null,null,null,null,null,null,null,null,null,null,null,null,null,null,null,null,null,null,null,null,null,null,null,null,null,null,null,null,null,696,"","","","","","","",""]
[null,null,null,null,null,null,null,null,null,null,null,null,null,null,null,null,null,null,null,null,null,null,null,null,null,null,null,null,null,null,null,null,null,null,null,null,697,"","","","","","","",""]
[null,null,null,null,null,null,null,null,null,null,null,null,null,null,null,null,null,null,null,null,null,null,null,null,null,null,null,null,null,null,null,null,null,null,null,null,698,"","","","","","","",""]
[null,null,null,null,null,null,null,null,null,null,null,null,null,null,null,null,null,null,null,null,null,null,null,null,null,null,null,null,null,null,null,null,null,null,null,null,699,"","","","","","","",""]
[null,null,null,null,null,null,null,null,null,null,null,null,null,null,null,null,null,null,null,null,null,null,null,null,null,null,null,null,null,null,null,null,null,null,null,null,700,"","","","","","","",""]
[null,null,null,null,null,null,null,null,null,null,null,null,null,null,null,null,null,null,null,null,null,null,null,null,null,null,null,null,null,null,null,null,null,null,null,null,701,"","","","","","","",""]
[null,null,null,null,null,null,null,null,null,null,null,null,null,null,null,null,null,null,null,null,null,null,null,null,null,null,null,null,null,null,null,null,null,null,null,null,702,"","","","","","","",""]
[null,null,null,null,null,null,null,null,null,null,null,null,null,null,null,null,null,null,null,null,null,null,null,null,null,null,null,null,null,null,null,null,null,null,null,null,703,"","","","","","","",""]
[null,null,null,null,null,null,null,null,null,null,null,null,null,null,null,null,null,null,null,null,null,null,null,null,null,null,null,null,null,null,null,null,null,null,null,null,704,"","","","","","","",""]
[null,null,null,null,null,null,null,null,null,null,null,null,null,null,null,null,null,null,null,null,null,null,null,null,null,null,null,null,null,null,null,null,null,null,null,null,705,"","","","","","","",{"$f":"IF(AL709=\"\",\"\",AO709/(1+$AH$18)^AR709)","v":""}]
[null,null,null,null,null,null,null,null,null,null,null,null,null,null,null,null,null,null,null,null,null,null,null,null,null,null,null,null,null,null,null,null,null,null,null,null,706,"","","","","","","",""]
[null,null,null,null,null,null,null,null,null,null,null,null,null,null,null,null,null,null,null,null,null,null,null,null,null,null,null,null,null,null,null,null,null,null,null,null,707,{"$f":"IF($AH$13=0,IF($AH$4>=AK710,AK710,\"\"),IF($AH$11>=AK710,AK710,\"\"))","v":""},{"$f":"IF(AL711=\"\",\"\",IF($AH$13=0,EDATE(AM710,1),IF(ISEVEN(AL711)=TRUE,EOMONTH(AM710,0),EDATE(CONCATENATE(DAY($AH$8),\".\",MONTH(AM710),\".\",YEAR(AM710)),1))))","v":""},{"$f":"IF(AL711=\"\",\"\",IF(DAY(AM711)=DAY($AH$8),\"platba splátky\",\"platba poplatků\"))","v":""},{"$f":"IF(AL711=\"\",\"\",IF(AT711=\"Ano\",0,IF(AN711=\"platba splátky\",VLOOKUP(AM711,Z:AA,2,FALSE),$AH$13)))","v":""},{"$f":"IF(AL711=\"\",\"\",AM711-$AM$4)","v":""},"","",""]
[null,null,null,null,null,null,null,null,null,null,null,null,null,null,null,null,null,null,null,null,null,null,null,null,null,null,null,null,null,null,null,null,null,null,null,null,708,"","","","","","","",""]
[null,null,null,null,null,null,null,null,null,null,null,null,null,null,null,null,null,null,null,null,null,null,null,null,null,null,null,null,null,null,null,null,null,null,null,null,709,"","","","","","","",""]
[null,null,null,null,null,null,null,null,null,null,null,null,null,null,null,null,null,null,null,null,null,null,null,null,null,null,null,null,null,null,null,null,null,null,null,null,710,"","","","","","","",""]
[null,null,null,null,null,null,null,null,null,null,null,null,null,null,null,null,null,null,null,null,null,null,null,null,null,null,null,null,null,null,null,null,null,null,null,null,711,"","","","","","","",""]
[null,null,null,null,null,null,null,null,null,null,null,null,null,null,null,null,null,null,null,null,null,null,null,null,null,null,null,null,null,null,null,null,null,null,null,null,712,"","","","","","","",""]
[null,null,null,null,null,null,null,null,null,null,null,null,null,null,null,null,null,null,null,null,null,null,null,null,null,null,null,null,null,null,null,null,null,null,null,null,713,"","","","","","","",""]
[null,null,null,null,null,null,null,null,null,null,null,null,null,null,null,null,null,null,null,null,null,null,null,null,null,null,null,null,null,null,null,null,null,null,null,null,714,"","","","","","","",""]
[null,null,null,null,null,null,null,null,null,null,null,null,null,null,null,null,null,null,null,null,null,null,null,null,null,null,null,null,null,null,null,null,null,null,null,null,715,"","","","","","","",""]
[null,null,null,null,null,null,null,null,null,null,null,null,null,null,null,null,null,null,null,null,null,null,null,null,null,null,null,null,null,null,null,null,null,null,null,null,716,"","","","","","","",""]
[null,null,null,null,null,null,null,null,null,null,null,null,null,null,null,null,null,null,null,null,null,null,null,null,null,null,null,null,null,null,null,null,null,null,null,null,717,"","","","","","","",""]
[null,null,null,null,null,null,null,null,null,null,null,null,null,null,null,null,null,null,null,null,null,null,null,null,null,null,null,null,null,null,null,null,null,null,null,null,718,"","","","","","","",""]
[null,null,null,null,null,null,null,null,null,null,null,null,null,null,null,null,null,null,null,null,null,null,null,null,null,null,null,null,null,null,null,null,null,null,null,null,719,"","","","","","","",""]
[null,null,null,null,null,null,null,null,null,null,null,null,null,null,null,null,null,null,null,null,null,null,null,null,null,null,null,null,null,null,null,null,null,null,null,null,720,"","","","","","","",""]